Workbook

Sheet Main
B10: 2023-03-27
B12: Sheet No. | C12: Template Name | D12: Summary
B13: 1 | C13: Future Intra | D13: For Intraday trading in F&O segment
B14: 2 | C14: Cash Intra | D14: For Intraday trading in cash market segment
B15: 3 | C15: Mid-cap Intra | D15: For Intraday trading in Mid-cap stocks
B16: 4 | C16: Bulk Deals | D16: Reveals Bulk Deals carried on NSE & BSE
B17: 5 | C17: Call Tracker
K27: `

Sheet Future Intra
M5: Back to Main Page
A6: FOR INTRA DAY TRADING | L6: =Main!B10 -> 2023-03-27
A9: Sr.no | B9: Sector | C9: Scrip | D9: Expiry Date | E9: CLOSE RATE | F9: Pivot Point | G9: Supports | J9: Resistances
E10: Point | F10: Point | G10: S1 | H10: S2 | I10: S3 | J10: R1 | K10: R2 | L10: R3 | M10: HIGH | N10: LOW | O10: OI | P10: % Change in OI
A11: 1 | B11: Index | C11: NIFTY | D11: 2023-03-29 | E11: 16955.05 | F11: 17002.30 | G11: 16884.70 | H11: 16814.35 | I11: 16696.75 | J11: 17072.65 | K11: 17190.25 | L11: 17260.60 | M11: 17119.9 | N11: 16931.95 | O11: 16845500 | P11: 2.55%
A12: 2 | B12: Index | C12: BANKNIFTY | D12: 2023-03-29 | E12: 39423.80 | F12: 39535.27 | G12: 39236.53 | H12: 39049.27 | I12: 38750.53 | J12: 39722.53 | K12: 40021.27 | L12: 40208.53 | M12: 39834 | N12: 39348 | O12: 5717000 | P12: -0.40%
A13: 3 | B13: Index | C13: FINNIFTY | D13: 2023-03-28 | E13: 17610.85 | F13: 17665.35 | G13: 17541.45 | H13: 17472.05 | I13: 17348.15 | J13: 17734.75 | K13: 17858.65 | L13: 17928.05 | M13: 17789.25 | N13: 17595.95 | O13: 29840 | P13: -19.18%
A14: 4 | B14: Index | C14: MIDCPNIFTY | D14: 2023-03-28 | E14: 6992.10 | F14: 2330.70 | G14: 4661.40 | H14: 2330.70 | I14: 4661.40 | J14: 4661.40 | K14: 2330.70 | L14: 4661.40 | M14: 0 | N14: 0 | O14: 0
A15: 5 | B15: Chemical | C15: AARTIIND | D15: 2023-03-29 | E15: 496.40 | F15: 504.42 | G15: 485.93 | H15: 475.47 | I15: 456.98 | J15: 514.88 | K15: 533.37 | L15: 543.83 | M15: 522.9 | N15: 493.95 | O15: 4593400 | P15: 1.50%
A16: 6 | B16: Capital_Goods | C16: ABB | D16: 2023-03-29 | E16: 3340.35 | F16: 3349.25 | G16: 3316.80 | H16: 3293.25 | I16: 3260.80 | J16: 3372.80 | K16: 3405.25 | L16: 3428.80 | M16: 3381.7 | N16: 3325.7 | O16: 1678000 | P16: -1.97%
A17: 7 | B17: Pharma | C17: ABBOTINDIA | D17: 2023-03-29 | E17: 21199.40 | F17: 21369.77 | G17: 20967.18 | H17: 20734.97 | I17: 20332.38 | J17: 21601.98 | K17: 22004.57 | L17: 22236.78 | M17: 21772.35 | N17: 21137.55 | O17: 45000 | P17: -7.94%
A18: 8 | B18: Others | C18: ABCAPITAL | D18: 2023-03-29 | E18: 143.75 | F18: 146.47 | G18: 139.93 | H18: 136.12 | I18: 129.58 | J18: 150.28 | K18: 156.82 | L18: 160.63 | M18: 153 | N18: 142.65 | O18: 36444600 | P18: 0.40%
A19: 9 | B19: Textile | C19: ABFRL | D19: 2023-03-29 | E19: 211.75 | F19: 211.45 | G19: 209.30 | H19: 206.85 | I19: 204.70 | J19: 213.90 | K19: 216.05 | L19: 218.50 | M19: 213.6 | N19: 209 | O19: 26390000 | P19: -3.81%
A20: 10 | B20: Cement | C20: ACC | D20: 2023-03-29 | E20: 1702.75 | F20: 1715.57 | G20: 1684.08 | H20: 1665.42 | I20: 1633.93 | J20: 1734.23 | K20: 1765.72 | L20: 1784.38 | M20: 1747.05 | N20: 1696.9 | O20: 4893750 | P20: 0.37%
A21: 11 | B21: Others | C21: ADANIENT | D21: 2023-03-29 | E21: 1741.85 | F21: 1754.87 | G21: 1683.73 | H21: 1625.62 | I21: 1554.48 | J21: 1812.98 | K21: 1884.12 | L21: 1942.23 | M21: 1826 | N21: 1696.75 | O21: 16168500 | P21: 1.91%
A22: 12 | B22: Others | C22: ADANIPORTS | D22: 2023-03-29 | E22: 639.75 | F22: 645.48 | G22: 630.02 | H22: 620.28 | I22: 604.82 | J22: 655.22 | K22: 670.68 | L22: 680.42 | M22: 660.95 | N22: 635.75 | O22: 38819375 | P22: 1.11%
A23: 13 | B23: Pharma | C23: ALKEM | D23: 2023-03-29 | E23: 3162.70 | F23: 3173.55 | G23: 3141.65 | H23: 3120.60 | I23: 3088.70 | J23: 3194.60 | K23: 3226.50 | L23: 3247.55 | M23: 3205.45 | N23: 3152.5 | O23: 504200 | P23: 1.20%
A24: 14 | B24: Cement | C24: AMBUJACEM | D24: 2023-03-29 | E24: 371.55 | F24: 372.27 | G24: 368.03 | H24: 364.52 | I24: 360.28 | J24: 375.78 | K24: 380.02 | L24: 383.53 | M24: 376.5 | N24: 368.75 | O24: 63210600 | P24: 0.97%
A25: 15 | B25: Others | C25: APOLLOHOSP | D25: 2023-03-29 | E25: 4293.30 | F25: 4302.42 | G25: 4245.08 | H25: 4196.87 | I25: 4139.53 | J25: 4350.63 | K25: 4407.97 | L25: 4456.18 | M25: 4359.75 | N25: 4254.2 | O25: 1488375 | P25: 0.60%
A26: 16 | B26: Automobile | C26: APOLLOTYRE | D26: 2023-03-29 | E26: 306.10 | F26: 308.48 | G26: 302.97 | H26: 299.83 | I26: 294.32 | J26: 311.62 | K26: 317.13 | L26: 320.27 | M26: 314 | N26: 305.35 | O26: 14997500 | P26: 3.98%
A27: 17 | B27: Automobile | C27: ASHOKLEY | D27: 2023-03-29 | E27: 137.45 | F27: 137.77 | G27: 136.38 | H27: 135.32 | I27: 133.93 | J27: 138.83 | K27: 140.22 | L27: 141.28 | M27: 139.15 | N27: 136.7 | O27: 65310000 | P27: -5.67%
A28: 18 | B28: FMCG | C28: ASIANPAINT | D28: 2023-03-29 | E28: 2799.65 | F28: 2797.70 | G28: 2778.95 | H28: 2758.25 | I28: 2739.50 | J28: 2818.40 | K28: 2837.15 | L28: 2857.85 | M28: 2816.45 | N28: 2777 | O28: 6291800 | P28: -2.10%
A29: 19 | B29: Others | C29: ASTRAL | D29: 2023-03-29 | E29: 1331.20 | F29: 1337.10 | G29: 1320.60 | H29: 1310.00 | I29: 1293.50 | J29: 1347.70 | K29: 1364.20 | L29: 1374.80 | M29: 1353.6 | N29: 1326.5 | O29: 2186586 | P29: 2.13%
A30: 20 | B30: Others | C30: ATUL | D30: 2023-03-29 | E30: 6898.95 | F30: 6895.95 | G30: 6845.00 | H30: 6791.05 | I30: 6740.10 | J30: 6949.90 | K30: 7000.85 | L30: 7054.80 | M30: 6946.9 | N30: 6842 | O30: 151350 | P30: -5.21%
A31: 21 | B31: Banking | C31: AUBANK | D31: 2023-03-29 | E31: 559.60 | F31: 558.48 | G31: 549.67 | H31: 539.73 | I31: 530.92 | J31: 568.42 | K31: 577.23 | L31: 587.17 | M31: 567.3 | N31: 548.55 | O31: 13930000 | P31: -11.49%
A32: 22 | B32: Pharma | C32: AUROPHARMA | D32: 2023-03-29 | E32: 500.55 | F32: 496.62 | G32: 489.78 | H32: 479.02 | I32: 472.18 | J32: 507.38 | K32: 514.22 | L32: 524.98 | M32: 503.45 | N32: 485.85 | O32: 13853000 | P32: -0.80%
A33: 23 | B33: Banking | C33: AXISBANK | D33: 2023-03-29 | E33: 841.05 | F33: 844.30 | G33: 835.15 | H33: 829.25 | I33: 820.10 | J33: 850.20 | K33: 859.35 | L33: 865.25 | M33: 853.45 | N33: 838.4 | O33: 50914800 | P33: 0.69%
A34: 24 | B34: Automobile | C34: BAJAJ-AUTO | D34: 2023-03-29 | E34: 3835.05 | F34: 3846.43 | G34: 3810.07 | H34: 3785.08 | I34: 3748.72 | J34: 3871.42 | K34: 3907.78 | L34: 3932.77 | M34: 3882.8 | N34: 3821.45 | O34: 1511500 | P34: -6.68%
A35: 25 | B35: Finance | C35: BAJAJFINSV | D35: 2023-03-29 | E35: 1241.10 | F35: 1257.80 | G35: 1221.30 | H35: 1201.50 | I35: 1165.00 | J35: 1277.60 | K35: 1314.10 | L35: 1333.90 | M35: 1294.3 | N35: 1238 | O35: 10526000 | P35: -0.27%
A36: 26 | B36: Finance | C36: BAJFINANCE | D36: 2023-03-29 | E36: 5655.30 | F36: 5709.45 | G36: 5583.85 | H36: 5512.40 | I36: 5386.80 | J36: 5780.90 | K36: 5906.50 | L36: 5977.95 | M36: 5835.05 | N36: 5638 | O36: 5528500 | P36: 0.74%
A37: 27 | B37: Automobile | C37: BALKRISIND | D37: 2023-03-29 | E37: 1970.00 | F37: 1973.98 | G37: 1953.62 | H37: 1937.23 | I37: 1916.87 | J37: 1990.37 | K37: 2010.73 | L37: 2027.12 | M37: 1994.35 | N37: 1957.6 | O37: 1602300 | P37: -0.07%
A38: 28 | B38: Others | C38: BALRAMCHIN | D38: 2023-03-29 | E38: 368.05 | F38: 370.33 | G38: 364.47 | H38: 360.88 | I38: 355.02 | J38: 373.92 | K38: 379.78 | L38: 383.37 | M38: 376.2 | N38: 366.75 | O38: 5956800 | P38: -4.88%
A39: 29 | B39: Banking | C39: BANDHANBNK | D39: 2023-03-29 | E39: 203.15 | F39: 206.05 | G39: 199.05 | H39: 194.95 | I39: 187.95 | J39: 210.15 | K39: 217.15 | L39: 221.25 | M39: 213.05 | N39: 201.95 | O39: 46141200 | P39: 1.36%
A40: 30 | B40: Banking | C40: BANKBARODA | D40: 2023-03-29 | E40: 159.40 | F40: 160.75 | G40: 157.55 | H40: 155.70 | I40: 152.50 | J40: 162.60 | K40: 165.80 | L40: 167.65 | M40: 163.95 | N40: 158.9 | O40: 94500900 | P40: -0.50%
A41: 31 | B41: FMCG | C41: BATAINDIA | D41: 2023-03-29 | E41: 1415.80 | F41: 1413.50 | G41: 1404.30 | H41: 1392.80 | I41: 1383.60 | J41: 1425.00 | K41: 1434.20 | L41: 1445.70 | M41: 1422.7 | N41: 1402 | O41: 2894375 | P41: -5.55%
A42: 32 | B42: Capital_Goods | C42: BEL | D42: 2023-03-29 | E42: 91.65 | F42: 92.67 | G42: 90.38 | H42: 89.12 | I42: 86.83 | J42: 93.93 | K42: 96.22 | L42: 97.48 | M42: 94.95 | N42: 91.4 | O42: 108129000 | P42: -3.75%
A43: 33 | B43: FMCG | C43: BERGEPAINT | D43: 2023-03-29 | E43: 573.45 | F43: 572.78 | G43: 569.07 | H43: 564.68 | I43: 560.97 | J43: 577.17 | K43: 580.88 | L43: 585.27 | M43: 576.5 | N43: 568.4 | O43: 8514000 | P43: -5.79%
A44: 34 | B44: Automobile | C44: BHARATFORG | D44: 2023-03-29 | E44: 766.35 | F44: 768.38 | G44: 761.82 | H44: 757.28 | I44: 750.72 | J44: 772.92 | K44: 779.48 | L44: 784.02 | M44: 774.95 | N44: 763.85 | O44: 7627000 | P44: -4.83%
A45: 35 | B45: Telecom | C45: BHARTIARTL | D45: 2023-03-29 | E45: 762.55 | F45: 763.35 | G45: 758.50 | H45: 754.45 | I45: 749.60 | J45: 767.40 | K45: 772.25 | L45: 776.30 | M45: 768.2 | N45: 759.3 | O45: 40157450 | P45: -0.47%
A46: 36 | B46: Capital_Goods | C46: BHEL | D46: 2023-03-29 | E46: 71.85 | F46: 72.60 | G46: 70.80 | H46: 69.75 | I46: 67.95 | J46: 73.65 | K46: 75.45 | L46: 76.50 | M46: 74.4 | N46: 71.55 | O46: 73143000 | P46: 2.41%
A47: 37 | B47: Pharma | C47: BIOCON | D47: 2023-03-29 | E47: 198.40 | F47: 200.13 | G47: 194.07 | H47: 189.73 | I47: 183.67 | J47: 204.47 | K47: 210.53 | L47: 214.87 | M47: 206.2 | N47: 195.8 | O47: 40523700 | P47: -4.54%
A48: 38 | B48: Automobile | C48: BOSCHLTD | D48: 2023-03-29 | E48: 18396.30 | F48: 18432.48 | G48: 18293.87 | H48: 18191.43 | I48: 18052.82 | J48: 18534.92 | K48: 18673.53 | L48: 18775.97 | M48: 18571.1 | N48: 18330.05 | O48: 144100 | P48: -1.64%
A49: 39 | B49: Oil_Gas | C49: BPCL | D49: 2023-03-29 | E49: 346.30 | F49: 347.17 | G49: 344.13 | H49: 341.97 | I49: 338.93 | J49: 349.33 | K49: 352.37 | L49: 354.53 | M49: 350.2 | N49: 345 | O49: 15346800 | P49: 0.92%
A50: 40 | B50: FMCG | C50: BRITANNIA | D50: 2023-03-29 | E50: 4200.05 | F50: 4211.72 | G50: 4180.93 | H50: 4161.82 | I50: 4131.03 | J50: 4230.83 | K50: 4261.62 | L50: 4280.73 | M50: 4242.5 | N50: 4192.6 | O50: 1463600 | P50: 2.28%
A51: 41 | B51: Technology | C51: BSOFT | D51: 2023-03-29 | E51: 264.60 | F51: 267.75 | G51: 260.35 | H51: 256.10 | I51: 248.70 | J51: 272.00 | K51: 279.40 | L51: 283.65 | M51: 275.15 | N51: 263.5 | O51: 7490000 | P51: -1.19%
A52: 42 | B52: Banking | C52: CANBK | D52: 2023-03-29 | E52: 273.65 | F52: 275.88 | G52: 270.27 | H52: 266.88 | I52: 261.27 | J52: 279.27 | K52: 284.88 | L52: 288.27 | M52: 281.5 | N52: 272.5 | O52: 44080200 | P52: 0.79%
A53: 43 | B53: Finance | C53: CANFINHOME | D53: 2023-03-29 | E53: 524.00 | F53: 528.88 | G53: 515.62 | H53: 507.23 | I53: 493.97 | J53: 537.27 | K53: 550.53 | L53: 558.92 | M53: 542.15 | N53: 520.5 | O53: 3908775 | P53: -0.72%
A54: 44 | B54: Others | C54: CHAMBLFERT | D54: 2023-03-29 | E54: 261.55 | F54: 264.15 | G54: 258.45 | H54: 255.35 | I54: 249.65 | J54: 267.25 | K54: 272.95 | L54: 276.05 | M54: 269.85 | N54: 261.05 | O54: 5229000 | P54: -0.37%
A55: 45 | B55: Finance | C55: CHOLAFIN | D55: 2023-03-29 | E55: 729.35 | F55: 733.12 | G55: 722.23 | H55: 715.12 | I55: 704.23 | J55: 740.23 | K55: 751.12 | L55: 758.23 | M55: 744 | N55: 726 | O55: 10185000 | P55: 3.15%
A56: 46 | B56: Pharma | C56: CIPLA | D56: 2023-03-29 | E56: 878.50 | F56: 875.35 | G56: 870.10 | H56: 861.70 | I56: 856.45 | J56: 883.75 | K56: 889.00 | L56: 897.40 | M56: 880.6 | N56: 866.95 | O56: 15745600 | P56: -3.62%
A57: 47 | B57: Others | C57: COALINDIA | D57: 2023-03-29 | E57: 209.15 | F57: 210.73 | G57: 206.97 | H57: 204.78 | I57: 201.02 | J57: 212.92 | K57: 216.68 | L57: 218.87 | M57: 214.5 | N57: 208.55 | O57: 42575400 | P57: -0.17%
A58: 48 | B58: Technology | C58: COFORGE | D58: 2023-03-29 | E58: 3696.50 | F58: 3732.32 | G58: 3631.73 | H58: 3566.97 | I58: 3466.38 | J58: 3797.08 | K58: 3897.67 | L58: 3962.43 | M58: 3832.9 | N58: 3667.55 | O58: 780000 | P58: -0.61%
A59: 49 | B59: FMCG | C59: COLPAL | D59: 2023-03-29 | E59: 1506.30 | F59: 1511.37 | G59: 1496.73 | H59: 1487.17 | I59: 1472.53 | J59: 1520.93 | K59: 1535.57 | L59: 1545.13 | M59: 1526 | N59: 1501.8 | O59: 1965600 | P59: 7.96%
A60: 50 | B60: Others | C60: CONCOR | D60: 2023-03-29 | E60: 582.95 | F60: 584.65 | G60: 578.60 | H60: 574.25 | I60: 568.20 | J60: 589.00 | K60: 595.05 | L60: 599.40 | M60: 590.7 | N60: 580.3 | O60: 8986000 | P60: 1.40%
A61: 51 | B61: Others | C61: COROMANDEL | D61: 2023-03-29 | E61: 883.25 | F61: 887.25 | G61: 876.25 | H61: 869.25 | I61: 858.25 | J61: 894.25 | K61: 905.25 | L61: 912.25 | M61: 898.25 | N61: 880.25 | O61: 1811600 | P61: 6.99%
A62: 52 | B62: Capital_Goods | C62: CROMPTON | D62: 2023-03-29 | E62: 293.35 | F62: 293.77 | G62: 290.58 | H62: 287.82 | I62: 284.63 | J62: 296.53 | K62: 299.72 | L62: 302.48 | M62: 296.95 | N62: 291 | O62: 6675000 | P62: -0.65%
A63: 53 | B63: Banking | C63: CUB | D63: 2023-03-29 | E63: 125.20 | F63: 126.17 | G63: 123.88 | H63: 122.57 | I63: 120.28 | J63: 127.48 | K63: 129.77 | L63: 131.08 | M63: 128.45 | N63: 124.85 | O63: 15555000 | P63: -5.98%
A64: 54 | B64: Capital_Goods | C64: CUMMINSIND | D64: 2023-03-29 | E64: 1618.95 | F64: 1624.90 | G64: 1609.60 | H64: 1600.25 | I64: 1584.95 | J64: 1634.25 | K64: 1649.55 | L64: 1658.90 | M64: 1640.2 | N64: 1615.55 | O64: 3554400 | P64: 0.20%
A65: 55 | B65: FMCG | C65: DABUR | D65: 2023-03-29 | E65: 536.80 | F65: 537.72 | G65: 534.48 | H65: 532.17 | I65: 528.93 | J65: 540.03 | K65: 543.27 | L65: 545.58 | M65: 540.95 | N65: 535.4 | O65: 10651250 | P65: -0.56%
A66: 56 | B66: Cement | C66: DALBHARAT | D66: 2023-03-29 | E66: 1828.90 | F66: 1822.10 | G66: 1810.20 | H66: 1791.50 | I66: 1779.60 | J66: 1840.80 | K66: 1852.70 | L66: 1871.40 | M66: 1834 | N66: 1803.4 | O66: 1879000 | P66: 1.98%
A67: 57 | B67: Chemical | C67: DEEPAKNTR | D67: 2023-03-29 | E67: 1779.45 | F67: 1793.92 | G67: 1760.88 | H67: 1742.32 | I67: 1709.28 | J67: 1812.48 | K67: 1845.52 | L67: 1864.08 | M67: 1826.95 | N67: 1775.35 | O67: 1802000 | P67: -0.83%
A68: 58 | B68: Others | C68: DELTACORP | D68: 2023-03-29 | E68: 185.50 | F68: 187.03 | G68: 182.77 | H68: 180.03 | I68: 175.77 | J68: 189.77 | K68: 194.03 | L68: 196.77 | M68: 191.3 | N68: 184.3 | O68: 17592400 | P68: 9.46%
A69: 59 | B69: Pharma | C69: DIVISLAB | D69: 2023-03-29 | E69: 2814.15 | F69: 2815.92 | G69: 2799.03 | H69: 2783.92 | I69: 2767.03 | J69: 2831.03 | K69: 2847.92 | L69: 2863.03 | M69: 2832.8 | N69: 2800.8 | O69: 2999550 | P69: -4.04%
A70: 60 | B70: Others | C70: DIXON | D70: 2023-03-29 | E70: 2875.15 | F70: 2876.67 | G70: 2845.48 | H70: 2815.82 | I70: 2784.63 | J70: 2906.33 | K70: 2937.52 | L70: 2967.18 | M70: 2907.85 | N70: 2847 | O70: 675625 | P70: -6.23%
A71: 61 | B71: Realty | C71: DLF | D71: 2023-03-29 | E71: 354.95 | F71: 359.05 | G71: 349.80 | H71: 344.65 | I71: 335.40 | J71: 364.20 | K71: 373.45 | L71: 378.60 | M71: 368.3 | N71: 353.9 | O71: 43670550 | P71: -1.73%
A72: 62 | B72: Pharma | C72: DRREDDY | D72: 2023-03-29 | E72: 4463.50 | F72: 4472.77 | G72: 4445.03 | H72: 4426.57 | I72: 4398.83 | J72: 4491.23 | K72: 4518.97 | L72: 4537.43 | M72: 4500.5 | N72: 4454.3 | O72: 2385875 | P72: -0.81%
A73: 63 | B73: Automobile | C73: EICHERMOT | D73: 2023-03-29 | E73: 2911.60 | F73: 2914.93 | G73: 2890.27 | H73: 2868.93 | I73: 2844.27 | J73: 2936.27 | K73: 2960.93 | L73: 2982.27 | M73: 2939.6 | N73: 2893.6 | O73: 3463950 | P73: 4.21%
A74: 64 | B74: Automobile | C74: ESCORTS | D74: 2023-03-29 | E74: 1832.45 | F74: 1842.95 | G74: 1817.80 | H74: 1803.15 | I74: 1778.00 | J74: 1857.60 | K74: 1882.75 | L74: 1897.40 | M74: 1868.1 | N74: 1828.3 | O74: 1611500 | P74: -1.00%
A75: 65 | B75: Automobile | C75: EXIDEIND | D75: 2023-03-29 | E75: 175.25 | F75: 175.93 | G75: 173.87 | H75: 172.48 | I75: 170.42 | J75: 177.32 | K75: 179.38 | L75: 180.77 | M75: 178 | N75: 174.55 | O75: 17881200 | P75: -1.21%
A76: 66 | B76: Banking | C76: FEDERALBNK | D76: 2023-03-29 | E76: 126.80 | F76: 127.13 | G76: 125.77 | H76: 124.73 | I76: 123.37 | J76: 128.17 | K76: 129.53 | L76: 130.57 | M76: 128.5 | N76: 126.1 | O76: 67515000 | P76: 0.82%
A77: 67 | B77: Technology | C77: FSL | D77: 2023-03-29 | E77: 110.05 | F77: 110.40 | G77: 108.80 | H77: 107.55 | I77: 105.95 | J77: 111.65 | K77: 113.25 | L77: 114.50 | M77: 112 | N77: 109.15 | O77: 12064000 | P77: -8.52%
A78: 68 | B78: Oil_Gas | C78: GAIL | D78: 2023-03-29 | E78: 103.45 | F78: 103.97 | G78: 102.38 | H78: 101.32 | I78: 99.73 | J78: 105.03 | K78: 106.62 | L78: 107.68 | M78: 105.55 | N78: 102.9 | O78: 93366600 | P78: 7.77%
A79: 69 | B79: Pharma | C79: GLENMARK | D79: 2023-03-29 | E79: 426.30 | F79: 431.22 | G79: 420.08 | H79: 413.87 | I79: 402.73 | J79: 437.43 | K79: 448.57 | L79: 454.78 | M79: 442.35 | N79: 425 | O79: 5710100 | P79: -2.77%
A80: 70 | B80: Infrastructure | C80: GMRINFRA | D80: 2023-03-29 | E80: 38.75 | F80: 39.03 | G80: 38.37 | H80: 37.98 | I80: 37.32 | J80: 39.42 | K80: 40.08 | L80: 40.47 | M80: 39.7 | N80: 38.65 | O80: 152887500 | P80: 8.98%
A81: 71 | B81: Others | C81: GNFC | D81: 2023-03-29 | E81: 515.00 | F81: 520.32 | G81: 507.68 | H81: 500.37 | I81: 487.73 | J81: 527.63 | K81: 540.27 | L81: 547.58 | M81: 532.95 | N81: 513 | O81: 8231600 | P81: 4.11%
A82: 72 | B82: FMCG | C82: GODREJCP | D82: 2023-03-29 | E82: 953.40 | F82: 952.27 | G82: 946.83 | H82: 940.27 | I82: 934.83 | J82: 958.83 | K82: 964.27 | L82: 970.83 | M82: 957.7 | N82: 945.7 | O82: 5831000 | P82: 1.82%
A83: 73 | B83: Realty | C83: GODREJPROP | D83: 2023-03-29 | E83: 1044.20 | F83: 1051.40 | G83: 1031.95 | H83: 1019.70 | I83: 1000.25 | J83: 1063.65 | K83: 1083.10 | L83: 1095.35 | M83: 1070.85 | N83: 1039.15 | O83: 4939775 | P83: 2.23%
A84: 74 | B84: Pharma | C84: GRANULES | D84: 2023-03-29 | E84: 282.60 | F84: 281.77 | G84: 279.58 | H84: 276.57 | I84: 274.38 | J84: 284.78 | K84: 286.97 | L84: 289.98 | M84: 283.95 | N84: 278.75 | O84: 6606000 | P84: 3.70%
A85: 75 | B85: Cement | C85: GRASIM | D85: 2023-03-29 | E85: 1595.50 | F85: 1598.72 | G85: 1586.88 | H85: 1578.27 | I85: 1566.43 | J85: 1607.33 | K85: 1619.17 | L85: 1627.78 | M85: 1610.55 | N85: 1590.1 | O85: 11254650 | P85: 0.91%
A86: 76 | B86: Oil_Gas | C86: GUJGASLTD | D86: 2023-03-29 | E86: 483.45 | F86: 486.73 | G86: 478.27 | H86: 473.08 | I86: 464.62 | J86: 491.92 | K86: 500.38 | L86: 505.57 | M86: 495.2 | N86: 481.55 | O86: 4137500 | P86: -4.47%
A87: 77 | B87: Others | C87: HAL | D87: 2023-03-29 | E87: 2572.00 | F87: 2572.32 | G87: 2524.73 | H87: 2477.47 | I87: 2429.88 | J87: 2619.58 | K87: 2667.17 | L87: 2714.43 | M87: 2619.9 | N87: 2525.05 | O87: 3901200 | P87: -27.19%
A88: 78 | B88: Capital_Goods | C88: HAVELLS | D88: 2023-03-29 | E88: 1180.95 | F88: 1183.98 | G88: 1170.97 | H88: 1160.98 | I88: 1147.97 | J88: 1193.97 | K88: 1206.98 | L88: 1216.97 | M88: 1197 | N88: 1174 | O88: 4923000 | P88: 2.71%
A89: 79 | B89: Technology | C89: HCLTECH | D89: 2023-03-29 | E89: 1053.20 | F89: 1065.45 | G89: 1037.05 | H89: 1020.90 | I89: 992.50 | J89: 1081.60 | K89: 1110.00 | L89: 1126.15 | M89: 1093.85 | N89: 1049.3 | O89: 11632600 | P89: 0.04%
A90: 80 | B90: Finance | C90: HDFC | D90: 2023-03-29 | E90: 2563.35 | F90: 2567.10 | G90: 2548.25 | H90: 2533.15 | I90: 2514.30 | J90: 2582.20 | K90: 2601.05 | L90: 2616.15 | M90: 2585.95 | N90: 2552 | O90: 23315100 | P90: -0.89%
A91: 81 | B91: Finance | C91: HDFCAMC | D91: 2023-03-29 | E91: 1671.35 | F91: 1675.48 | G91: 1648.97 | H91: 1626.58 | I91: 1600.07 | J91: 1697.87 | K91: 1724.38 | L91: 1746.77 | M91: 1702 | N91: 1653.1 | O91: 3662400 | P91: 6.77%
A92: 82 | B92: Banking | C92: HDFCBANK | D92: 2023-03-29 | E92: 1562.90 | F92: 1566.00 | G92: 1555.00 | H92: 1547.10 | I92: 1536.10 | J92: 1573.90 | K92: 1584.90 | L92: 1592.80 | M92: 1577 | N92: 1558.1 | O92: 75767450 | P92: -0.82%
A93: 83 | B93: Finance | C93: HDFCLIFE | D93: 2023-03-29 | E93: 492.10 | F93: 491.90 | G93: 481.70 | H93: 471.30 | I93: 461.10 | J93: 502.30 | K93: 512.50 | L93: 522.90 | M93: 502.1 | N93: 481.5 | O93: 20849400 | P93: -4.76%
A94: 84 | B94: Automobile | C94: HEROMOTOCO | D94: 2023-03-29 | E94: 2315.40 | F94: 2333.93 | G94: 2287.47 | H94: 2259.53 | I94: 2213.07 | J94: 2361.87 | K94: 2408.33 | L94: 2436.27 | M94: 2380.4 | N94: 2306 | O94: 2990700 | P94: -1.12%
A95: 85 | B95: Metals | C95: HINDALCO | D95: 2023-03-29 | E95: 388.70 | F95: 392.12 | G95: 383.48 | H95: 378.27 | I95: 369.63 | J95: 397.33 | K95: 405.97 | L95: 411.18 | M95: 400.75 | N95: 386.9 | O95: 27818000 | P95: 2.16%
A96: 86 | B96: Metals | C96: HINDCOPPER | D96: 2023-03-29 | E96: 96.10 | F96: 97.18 | G96: 94.77 | H96: 93.43 | I96: 91.02 | J96: 98.52 | K96: 100.93 | L96: 102.27 | M96: 99.6 | N96: 95.85 | O96: 20649600 | P96: 1.08%
A97: 87 | B97: Oil_Gas | C97: HINDPETRO | D97: 2023-03-29 | E97: 239.40 | F97: 240.18 | G97: 237.57 | H97: 235.73 | I97: 233.12 | J97: 242.02 | K97: 244.63 | L97: 246.47 | M97: 242.8 | N97: 238.35 | O97: 20204100 | P97: -1.04%
A98: 88 | B98: FMCG | C98: HINDUNILVR | D98: 2023-03-29 | E98: 2482.35 | F98: 2484.55 | G98: 2469.30 | H98: 2456.25 | I98: 2441.00 | J98: 2497.60 | K98: 2512.85 | L98: 2525.90 | M98: 2499.8 | N98: 2471.5 | O98: 9581700 | P98: -1.54%
A99: 89 | B99: Others | C99: HONAUT | D99: 2023-03-29 | E99: 35749.60 | F99: 35585.60 | G99: 35276.25 | H99: 34802.90 | I99: 34493.55 | J99: 36058.95 | K99: 36368.30 | L99: 36841.65 | M99: 35894.95 | N99: 35112.25 | O99: 21195 | P99: -3.35%
A100: 90 | B100: Finance | C100: IBULHSGFIN | D100: 2023-03-29 | E100: 94.75 | F100: 95.85 | G100: 92.05 | H100: 89.35 | I100: 85.55 | J100: 98.55 | K100: 102.35 | L100: 105.05 | M100: 99.65 | N100: 93.15 | O100: 47292000 | P100: -5.66%
A101: 91 | B101: Banking | C101: ICICIBANK | D101: 2023-03-29 | E101: 852.55 | F101: 853.97 | G101: 848.23 | H101: 843.92 | I101: 838.18 | J101: 858.28 | K101: 864.02 | L101: 868.33 | M101: 859.7 | N101: 849.65 | O101: 65582300 | P101: 1.93%
A102: 92 | B102: Finance | C102: ICICIGI | D102: 2023-03-29 | E102: 1077.00 | F102: 1078.62 | G102: 1069.73 | H102: 1062.47 | I102: 1053.58 | J102: 1085.88 | K102: 1094.77 | L102: 1102.03 | M102: 1087.5 | N102: 1071.35 | O102: 3848375 | P102: -0.54%
A103: 93 | B103: Finance | C103: ICICIPRULI | D103: 2023-03-29 | E103: 420.70 | F103: 417.00 | G103: 408.95 | H103: 397.20 | I103: 389.15 | J103: 428.75 | K103: 436.80 | L103: 448.55 | M103: 425.05 | N103: 405.25 | O103: 17652000 | P103: -0.30%
A104: 94 | B104: Telecom | C104: IDEA | D104: 2023-03-29 | E104: 6.30 | F104: 6.33 | G104: 6.17 | H104: 6.03 | I104: 5.87 | J104: 6.47 | K104: 6.63 | L104: 6.77 | M104: 6.5 | N104: 6.2 | O104: 593880000 | P104: 2.55%
A105: 95 | B105: Finance | C105: IDFC | D105: 2023-03-29 | E105: 79.10 | F105: 79.68 | G105: 78.22 | H105: 77.33 | I105: 75.87 | J105: 80.57 | K105: 82.03 | L105: 82.92 | M105: 81.15 | N105: 78.8 | O105: 174890000 | P105: 0.42%
A106: 96 | B106: Banking | C106: IDFCFIRSTB | D106: 2023-03-29 | E106: 54.15 | F106: 54.70 | G106: 53.40 | H106: 52.65 | I106: 51.35 | J106: 55.45 | K106: 56.75 | L106: 57.50 | M106: 56 | N106: 53.95 | O106: 195330000 | P106: -0.37%
A107: 97 | B107: Others | C107: IEX | D107: 2023-03-29 | E107: 143.25 | F107: 144.62 | G107: 141.13 | H107: 139.02 | I107: 135.53 | J107: 146.73 | K107: 150.22 | L107: 152.33 | M107: 148.1 | N107: 142.5 | O107: 39532500 | P107: 3.24%
A108: 98 | B108: Oil_Gas | C108: IGL | D108: 2023-03-29 | E108: 432.70 | F108: 436.10 | G108: 427.00 | H108: 421.30 | I108: 412.20 | J108: 441.80 | K108: 450.90 | L108: 456.60 | M108: 445.2 | N108: 430.4 | O108: 13304500 | P108: -0.02%
A109: 99 | B109: Infrastructure | C109: INDHOTEL | D109: 2023-03-29 | E109: 310.20 | F109: 311.63 | G109: 307.77 | H109: 305.33 | I109: 301.47 | J109: 314.07 | K109: 317.93 | L109: 320.37 | M109: 315.5 | N109: 309.2 | O109: 22176000 | P109: 0.05%
A110: 100 | B110: Cement | C110: INDIACEM | D110: 2023-03-29 | E110: 175.65 | F110: 177.12 | G110: 173.48 | H110: 171.32 | I110: 167.68 | J110: 179.28 | K110: 182.92 | L110: 185.08 | M110: 180.75 | N110: 174.95 | O110: 18815200 | P110: -3.58%
A111: 101 | B111: Others | C111: INDIAMART | D111: 2023-03-29 | E111: 4980.35 | F111: 4995.33 | G111: 4911.32 | H111: 4842.28 | I111: 4758.27 | J111: 5064.37 | K111: 5148.38 | L111: 5217.42 | M111: 5079.35 | N111: 4926.3 | O111: 440700 | P111: 6.26%
A112: 102 | B112: Others | C112: INDIGO | D112: 2023-03-29 | E112: 1867.55 | F112: 1883.38 | G112: 1843.02 | H112: 1818.48 | I112: 1778.12 | J112: 1907.92 | K112: 1948.28 | L112: 1972.82 | M112: 1923.75 | N112: 1858.85 | O112: 3482700 | P112: 1.05%
A113: 103 | B113: Banking | C113: INDUSINDBK | D113: 2023-03-29 | E113: 1009.15 | F113: 1013.55 | G113: 1000.30 | H113: 991.45 | I113: 978.20 | J113: 1022.40 | K113: 1035.65 | L113: 1044.50 | M113: 1026.8 | N113: 1004.7 | O113: 29979450 | P113: -1.11%
A114: 104 | B114: Telecom | C114: INDUSTOWER | D114: 2023-03-29 | E114: 148.50 | F114: 150.28 | G114: 146.42 | H114: 144.33 | I114: 140.47 | J114: 152.37 | K114: 156.23 | L114: 158.32 | M114: 154.15 | N114: 148.2 | O114: 29682800 | P114: -4.60%
A115: 105 | B115: Technology | C115: INFY | D115: 2023-03-29 | E115: 1382.50 | F115: 1390.25 | G115: 1372.50 | H115: 1362.50 | I115: 1344.75 | J115: 1400.25 | K115: 1418.00 | L115: 1428.00 | M115: 1408 | N115: 1380.25 | O115: 40487200 | P115: -1.86%
A116: 106 | B116: Technology | C116: INTELLECT | D116: 2023-03-29 | E116: 403.65 | F116: 406.37 | G116: 398.73 | H116: 393.82 | I116: 386.18 | J116: 411.28 | K116: 418.92 | L116: 423.83 | M116: 414 | N116: 401.45 | O116: 4562000 | P116: 2.17%
A117: 107 | B117: Oil_Gas | C117: IOC | D117: 2023-03-29 | E117: 78.25 | F117: 78.50 | G117: 77.75 | H117: 77.25 | I117: 76.50 | J117: 79.00 | K117: 79.75 | L117: 80.25 | M117: 79.25 | N117: 78 | O117: 77376000 | P117: -3.45%
A118: 108 | B118: Pharma | C118: IPCALAB | D118: 2023-03-29 | E118: 782.65 | F118: 784.80 | G118: 778.60 | H118: 774.55 | I118: 768.35 | J118: 788.85 | K118: 795.05 | L118: 799.10 | M118: 791 | N118: 780.75 | O118: 2466100 | P118: 4.69%
A119: 109 | B119: Others | C119: IRCTC | D119: 2023-03-29 | E119: 599.75 | F119: 602.15 | G119: 595.35 | H119: 590.95 | I119: 584.15 | J119: 606.55 | K119: 613.35 | L119: 617.75 | M119: 608.95 | N119: 597.75 | O119: 14257250 | P119: 1.01%
A120: 110 | B120: FMCG | C120: ITC | D120: 2023-03-29 | E120: 379.10 | F120: 380.07 | G120: 377.33 | H120: 375.57 | I120: 372.83 | J120: 381.83 | K120: 384.57 | L120: 386.33 | M120: 382.8 | N120: 378.3 | O120: 62048000 | P120: 1.20%
A121: 111 | B121: Metals | C121: JINDALSTEL | D121: 2023-03-29 | E121: 533.90 | F121: 541.35 | G121: 525.20 | H121: 516.50 | I121: 500.35 | J121: 550.05 | K121: 566.20 | L121: 574.90 | M121: 557.5 | N121: 532.65 | O121: 23250000 | P121: 5.29%
A122: 112 | B122: Cement | C122: JKCEMENT | D122: 2023-03-29 | E122: 2806.10 | F122: 2797.98 | G122: 2766.12 | H122: 2726.13 | I122: 2694.27 | J122: 2837.97 | K122: 2869.83 | L122: 2909.82 | M122: 2829.85 | N122: 2758 | O122: 437750 | P122: -11.88%
A123: 113 | B123: Metals | C123: JSWSTEEL | D123: 2023-03-29 | E123: 656.90 | F123: 660.03 | G123: 652.67 | H123: 648.43 | I123: 641.07 | J123: 664.27 | K123: 671.63 | L123: 675.87 | M123: 667.4 | N123: 655.8 | O123: 23760000 | P123: -0.72%
A124: 114 | B124: Others | C124: JUBLFOOD | D124: 2023-03-29 | E124: 437.10 | F124: 439.33 | G124: 432.07 | H124: 427.03 | I124: 419.77 | J124: 444.37 | K124: 451.63 | L124: 456.67 | M124: 446.6 | N124: 434.3 | O124: 17940000 | P124: 5.27%
A125: 115 | B125: Banking | C125: KOTAKBANK | D125: 2023-03-29 | E125: 1692.05 | F125: 1692.62 | G125: 1676.43 | H125: 1660.82 | I125: 1644.63 | J125: 1708.23 | K125: 1724.42 | L125: 1740.03 | M125: 1708.8 | N125: 1677 | O125: 43771200 | P125: -1.98%
A126: 116 | B126: Finance | C126: L&TFH | D126: 2023-03-29 | E126: 82.20 | F126: 82.80 | G126: 80.90 | H126: 79.60 | I126: 77.70 | J126: 84.10 | K126: 86.00 | L126: 87.30 | M126: 84.7 | N126: 81.5 | O126: 77540636 | P126: 5.95%
A127: 117 | B127: Others | C127: LALPATHLAB | D127: 2023-03-29 | E127: 1821.10 | F127: 1823.10 | G127: 1806.25 | H127: 1791.40 | I127: 1774.55 | J127: 1837.95 | K127: 1854.80 | L127: 1869.65 | M127: 1839.95 | N127: 1808.25 | O127: 1019750 | P127: 0.37%
A128: 118 | B128: Pharma | C128: LAURUSLABS | D128: 2023-03-29 | E128: 299.30 | F128: 300.97 | G128: 296.78 | H128: 294.27 | I128: 290.08 | J128: 303.48 | K128: 307.67 | L128: 310.18 | M128: 305.15 | N128: 298.45 | O128: 10208000 | P128: -0.09%
A129: 119 | B129: Finance | C129: LICHSGFIN | D129: 2023-03-29 | E129: 321.40 | F129: 325.63 | G129: 316.27 | H129: 311.13 | I129: 301.77 | J129: 330.77 | K129: 340.13 | L129: 345.27 | M129: 335 | N129: 320.5 | O129: 15536000 | P129: 0.79%
A130: 120 | B130: Capital_Goods | C130: LT | D130: 2023-03-29 | E130: 2160.20 | F130: 2176.18 | G130: 2137.67 | H130: 2115.13 | I130: 2076.62 | J130: 2198.72 | K130: 2237.23 | L130: 2259.77 | M130: 2214.7 | N130: 2153.65 | O130: 8589000 | P130: 1.87%
A131: 121 | B131: Technology | C131: LTIM | D131: 2023-03-29 | E131: 4616.55 | F131: 4649.93 | G131: 4571.62 | H131: 4526.68 | I131: 4448.37 | J131: 4694.87 | K131: 4773.18 | L131: 4818.12 | M131: 4728.25 | N131: 4605 | O131: 1395600 | P131: 0.17%
A132: 122 | B132: Technology | C132: LTTS | D132: 2023-03-29 | E132: 3364.35 | F132: 3360.08 | G132: 3326.32 | H132: 3288.28 | I132: 3254.52 | J132: 3398.12 | K132: 3431.88 | L132: 3469.92 | M132: 3393.85 | N132: 3322.05 | O132: 1429000 | P132: -10.37%
A133: 123 | B133: Pharma | C133: LUPIN | D133: 2023-03-29 | E133: 641.90 | F133: 646.43 | G133: 635.92 | H133: 629.93 | I133: 619.42 | J133: 652.42 | K133: 662.93 | L133: 668.92 | M133: 656.95 | N133: 640.45 | O133: 7424750 | P133: -0.87%
A134: 124 | B134: Automobile | C134: M&M | D134: 2023-03-29 | E134: 1152.50 | F134: 1157.58 | G134: 1143.92 | H134: 1135.33 | I134: 1121.67 | J134: 1166.17 | K134: 1179.83 | L134: 1188.42 | M134: 1171.25 | N134: 1149 | O134: 15556100 | P134: -0.74%
A135: 125 | B135: Finance | C135: M&MFIN | D135: 2023-03-29 | E135: 220.40 | F135: 222.73 | G135: 217.47 | H135: 214.53 | I135: 209.27 | J135: 225.67 | K135: 230.93 | L135: 233.87 | M135: 228 | N135: 219.8 | O135: 26660000 | P135: 0.74%
A136: 126 | B136: Finance | C136: MANAPPURAM | D136: 2023-03-29 | E136: 117.65 | F136: 118.87 | G136: 115.73 | H136: 113.82 | I136: 110.68 | J136: 120.78 | K136: 123.92 | L136: 125.83 | M136: 122 | N136: 116.95 | O136: 44004000 | P136: 1.72%
A137: 127 | B137: FMCG | C137: MARICO | D137: 2023-03-29 | E137: 478.15 | F137: 479.07 | G137: 475.98 | H137: 473.82 | I137: 470.73 | J137: 481.23 | K137: 484.32 | L137: 486.48 | M137: 482.15 | N137: 476.9 | O137: 9537600 | P137: 0.68%
A138: 128 | B138: Automobile | C138: MARUTI | D138: 2023-03-29 | E138: 8233.70 | F138: 8274.12 | G138: 8164.23 | H138: 8094.77 | I138: 7984.88 | J138: 8343.58 | K138: 8453.47 | L138: 8522.93 | M138: 8384 | N138: 8204.65 | O138: 2203500 | P138: -0.33%
A139: 129 | B139: FMCG | C139: MCDOWELL-N | D139: 2023-03-29 | E139: 764.35 | F139: 767.65 | G139: 759.50 | H139: 754.65 | I139: 746.50 | J139: 772.50 | K139: 780.65 | L139: 785.50 | M139: 775.8 | N139: 762.8 | O139: 12422500 | P139: -0.59%
A140: 130 | B140: Others | C140: MCX | D140: 2023-03-29 | E140: 1474.10 | F140: 1477.07 | G140: 1439.48 | H140: 1404.87 | I140: 1367.28 | J140: 1511.68 | K140: 1549.27 | L140: 1583.88 | M140: 1514.65 | N140: 1442.45 | O140: 880800 | P140: -1.83%
A141: 131 | B141: Pharma | C141: METROPOLIS | D141: 2023-03-29 | E141: 1207.30 | F141: 1216.12 | G141: 1193.18 | H141: 1179.07 | I141: 1156.13 | J141: 1230.23 | K141: 1253.17 | L141: 1267.28 | M141: 1239.05 | N141: 1202 | O141: 1086400 | P141: 11.68%
A142: 132 | B142: Finance | C142: MFSL | D142: 2023-03-29 | E142: 618.60 | F142: 622.43 | G142: 610.82 | H142: 603.03 | I142: 591.42 | J142: 630.22 | K142: 641.83 | L142: 649.62 | M142: 634.05 | N142: 614.65 | O142: 4733950 | P142: -5.78%
A143: 133 | B143: Oil_Gas | C143: MGL | D143: 2023-03-29 | E143: 961.90 | F143: 967.33 | G143: 953.67 | H143: 945.43 | I143: 931.77 | J143: 975.57 | K143: 989.23 | L143: 997.47 | M143: 981 | N143: 959.1 | O143: 2588800 | P143: 2.28%
A144: 134 | B144: Automobile | C144: MOTHERSON | D144: 2023-03-29 | E144: 64.75 | F144: 65.10 | G144: 63.85 | H144: 62.95 | I144: 61.70 | J144: 66.00 | K144: 67.25 | L144: 68.15 | M144: 66.35 | N144: 64.2 | O144: 77800500 | P144: 0.06%
A145: 135 | B145: Technology | C145: MPHASIS | D145: 2023-03-29 | E145: 1743.05 | F145: 1764.42 | G145: 1713.23 | H145: 1683.42 | I145: 1632.23 | J145: 1794.23 | K145: 1845.42 | L145: 1875.23 | M145: 1815.6 | N145: 1734.6 | O145: 3245550 | P145: 3.14%
A146: 136 | B146: Automobile | C146: MRF | D146: 2023-03-29 | E146: 84097.70 | F146: 84336.65 | G146: 83673.30 | H146: 83248.90 | I146: 82585.55 | J146: 84761.05 | K146: 85424.40 | L146: 85848.80 | M146: 85000 | N146: 83912.25 | O146: 58890 | P146: 5.92%
A147: 137 | B147: Finance | C147: MUTHOOTFIN | D147: 2023-03-29 | E147: 959.15 | F147: 960.75 | G147: 947.05 | H147: 934.95 | I147: 921.25 | J147: 972.85 | K147: 986.55 | L147: 998.65 | M147: 974.45 | N147: 948.65 | O147: 8627300 | P147: -12.90%
A148: 138 | B148: Metals | C148: NATIONALUM | D148: 2023-03-29 | E148: 77.15 | F148: 77.47 | G148: 76.18 | H148: 75.22 | I148: 73.93 | J148: 78.43 | K148: 79.72 | L148: 80.68 | M148: 78.75 | N148: 76.5 | O148: 52312500 | P148: -1.65%
A149: 139 | B149: Others | C149: NAUKRI | D149: 2023-03-29 | E149: 3486.55 | F149: 3504.52 | G149: 3454.03 | H149: 3421.52 | I149: 3371.03 | J149: 3537.03 | K149: 3587.52 | L149: 3620.03 | M149: 3555 | N149: 3472 | O149: 1540250 | P149: -4.17%
A150: 140 | B150: Chemical | C150: NAVINFLUOR | D150: 2023-03-29 | E150: 4224.90 | F150: 4245.87 | G150: 4193.73 | H150: 4162.57 | I150: 4110.43 | J150: 4277.03 | K150: 4329.17 | L150: 4360.33 | M150: 4298 | N150: 4214.7 | O150: 535350 | P150: -2.88%
A151: 141 | B151: FMCG | C151: NESTLEIND | D151: 2023-03-29 | E151: 18935.65 | F151: 18980.92 | G151: 18836.33 | H151: 18737.02 | I151: 18592.43 | J151: 19080.23 | K151: 19224.82 | L151: 19324.13 | M151: 19125.5 | N151: 18881.6 | O151: 214680 | P151: -1.07%
A152: 142 | B152: Metals | C152: NMDC | D152: 2023-03-29 | E152: 108.30 | F152: 109.17 | G152: 106.98 | H152: 105.67 | I152: 103.48 | J152: 110.48 | K152: 112.67 | L152: 113.98 | M152: 111.35 | N152: 107.85 | O152: 54387000 | P152: -3.23%
A153: 143 | B153: Power | C153: NTPC | D153: 2023-03-29 | E153: 173.15 | F153: 173.63 | G153: 172.27 | H153: 171.38 | I153: 170.02 | J153: 174.52 | K153: 175.88 | L153: 176.77 | M153: 175 | N153: 172.75 | O153: 64603800 | P153: -4.72%
A154: 144 | B154: Realty | C154: OBEROIRLTY | D154: 2023-03-29 | E154: 846.15 | F154: 849.37 | G154: 836.83 | H154: 827.52 | I154: 814.98 | J154: 858.68 | K154: 871.22 | L154: 880.53 | M154: 861.9 | N154: 840.05 | O154: 6396600 | P154: 3.81%
A155: 145 | B155: Technology | C155: OFSS | D155: 2023-03-29 | E155: 3198.60 | F155: 3203.80 | G155: 3182.65 | H155: 3166.70 | I155: 3145.55 | J155: 3219.75 | K155: 3240.90 | L155: 3256.85 | M155: 3224.95 | N155: 3187.85 | O155: 295800 | P155: 0.89%
A156: 146 | B156: Oil_Gas | C156: ONGC | D156: 2023-03-29 | E156: 149.55 | F156: 150.70 | G156: 147.95 | H156: 146.35 | I156: 143.60 | J156: 152.30 | K156: 155.05 | L156: 156.65 | M156: 153.45 | N156: 149.1 | O156: 34195700 | P156: 5.91%
A157: 147 | B157: Textile | C157: PAGEIND | D157: 2023-03-29 | E157: 37144.90 | F157: 37324.17 | G157: 36883.48 | H157: 36622.07 | I157: 36181.38 | J157: 37585.58 | K157: 38026.27 | L157: 38287.68 | M157: 37764.85 | N157: 37062.75 | O157: 127680 | P157: -0.22%
A158: 148 | B158: Pharma | C158: PEL | D158: 2023-03-29 | E158: 649.30 | F158: 655.32 | G158: 638.78 | H158: 628.27 | I158: 611.73 | J158: 665.83 | K158: 682.37 | L158: 692.88 | M158: 671.85 | N158: 644.8 | O158: 10227250 | P158: -0.25%
A159: 149 | B159: Technology | C159: PERSISTENT | D159: 2023-03-29 | E159: 4338.25 | F159: 4409.17 | G159: 4257.38 | H159: 4176.52 | I159: 4024.73 | J159: 4490.03 | K159: 4641.82 | L159: 4722.68 | M159: 4560.95 | N159: 4328.3 | O159: 1204525 | P159: 2.29%
A160: 150 | B160: Oil_Gas | C160: PETRONET | D160: 2023-03-29 | E160: 224.50 | F160: 226.32 | G160: 221.98 | H160: 219.47 | I160: 215.13 | J160: 228.83 | K160: 233.17 | L160: 235.68 | M160: 230.65 | N160: 223.8 | O160: 13317000 | P160: -2.38%
A161: 151 | B161: Finance | C161: PFC | D161: 2023-03-29 | E161: 148.40 | F161: 149.47 | G161: 146.68 | H161: 144.97 | I161: 142.18 | J161: 151.18 | K161: 153.97 | L161: 155.68 | M161: 152.25 | N161: 147.75 | O161: 60047000 | P161: -3.16%
A162: 152 | B162: FMCG | C162: PIDILITIND | D162: 2023-03-29 | E162: 2366.05 | F162: 2367.83 | G162: 2350.67 | H162: 2335.28 | I162: 2318.12 | J162: 2383.22 | K162: 2400.38 | L162: 2415.77 | M162: 2385 | N162: 2352.45 | O162: 2714000 | P162: -0.89%
A163: 153 | B163: Chemical | C163: PIIND | D163: 2023-03-29 | E163: 2936.85 | F163: 2944.20 | G163: 2910.65 | H163: 2884.45 | I163: 2850.90 | J163: 2970.40 | K163: 3003.95 | L163: 3030.15 | M163: 2977.75 | N163: 2918 | O163: 2283750 | P163: 1.35%
A164: 154 | B164: Banking | C164: PNB | D164: 2023-03-29 | E164: 45.60 | F164: 46.03 | G164: 44.87 | H164: 44.13 | I164: 42.97 | J164: 46.77 | K164: 47.93 | L164: 48.67 | M164: 47.2 | N164: 45.3 | O164: 246496000 | P164: 0.89%
A165: 155 | B165: Others | C165: POLYCAB | D165: 2023-03-29 | E165: 2823.25 | F165: 2832.72 | G165: 2800.53 | H165: 2777.82 | I165: 2745.63 | J165: 2855.43 | K165: 2887.62 | L165: 2910.33 | M165: 2864.9 | N165: 2810 | O165: 1416600 | P165: 0.90%
A166: 156 | B166: Power | C166: POWERGRID | D166: 2023-03-29 | E166: 222.50 | F166: 222.65 | G166: 220.90 | H166: 219.30 | I166: 217.55 | J166: 224.25 | K166: 226.00 | L166: 227.60 | M166: 224.4 | N166: 221.05 | O166: 31271400 | P166: -2.84%
A167: 157 | B167: Media | C167: PVR | D167: 2023-03-29 | E167: 1511.10 | F167: 1523.57 | G167: 1494.03 | H167: 1476.97 | I167: 1447.43 | J167: 1540.63 | K167: 1570.17 | L167: 1587.23 | M167: 1553.1 | N167: 1506.5 | O167: 2682537 | P167: 0.26%
A168: 158 | B168: Others | C168: RAIN | D168: 2023-03-29 | E168: 148.50 | F168: 150.45 | G168: 146.15 | H168: 143.80 | I168: 139.50 | J168: 152.80 | K168: 157.10 | L168: 159.45 | M168: 154.75 | N168: 148.1 | O168: 13023500 | P168: 3.71%
A169: 159 | B169: Cement | C169: RAMCOCEM | D169: 2023-03-29 | E169: 742.10 | F169: 737.67 | G169: 731.38 | H169: 720.67 | I169: 714.38 | J169: 748.38 | K169: 754.67 | L169: 765.38 | M169: 743.95 | N169: 726.95 | O169: 3086350 | P169: 10.26%
A170: 160 | B170: Banking | C170: RBLBANK | D170: 2023-03-29 | E170: 135.15 | F170: 136.73 | G170: 132.82 | H170: 130.48 | I170: 126.57 | J170: 139.07 | K170: 142.98 | L170: 145.32 | M170: 140.65 | N170: 134.4 | O170: 39165000 | P170: -0.01%
A171: 161 | B171: Power | C171: RECLTD | D171: 2023-03-29 | E171: 115.10 | F171: 115.67 | G171: 114.08 | H171: 113.07 | I171: 111.48 | J171: 116.68 | K171: 118.27 | L171: 119.28 | M171: 117.25 | N171: 114.65 | O171: 60792000 | P171: -2.21%
A172: 162 | B172: Oil_Gas | C172: RELIANCE | D172: 2023-03-29 | E172: 2206.10 | F172: 2219.58 | G172: 2187.32 | H172: 2168.53 | I172: 2136.27 | J172: 2238.37 | K172: 2270.63 | L172: 2289.42 | M172: 2251.85 | N172: 2200.8 | O172: 46050000 | P172: 2.89%
A173: 163 | B173: Metals | C173: SAIL | D173: 2023-03-29 | E173: 82.40 | F173: 83.00 | G173: 81.30 | H173: 80.20 | I173: 78.50 | J173: 84.10 | K173: 85.80 | L173: 86.90 | M173: 84.7 | N173: 81.9 | O173: 114856000 | P173: 2.36%
A174: 164 | B174: Banking | C174: SBICARD | D174: 2023-03-29 | E174: 718.45 | F174: 716.57 | G174: 708.68 | H174: 698.92 | I174: 691.03 | J174: 726.33 | K174: 734.22 | L174: 743.98 | M174: 724.45 | N174: 706.8 | O174: 9968800 | P174: -1.55%
A175: 165 | B175: Finance | C175: SBILIFE | D175: 2023-03-29 | E175: 1112.45 | F175: 1108.47 | G175: 1093.08 | H175: 1073.72 | I175: 1058.33 | J175: 1127.83 | K175: 1143.22 | L175: 1162.58 | M175: 1123.85 | N175: 1089.1 | O175: 6032250 | P175: -5.63%
A176: 166 | B176: Banking | C176: SBIN | D176: 2023-03-29 | E176: 506.05 | F176: 508.62 | G176: 501.38 | H176: 496.72 | I176: 489.48 | J176: 513.28 | K176: 520.52 | L176: 525.18 | M176: 515.85 | N176: 503.95 | O176: 93775500 | P176: 3.12%
A177: 167 | B177: Cement | C177: SHREECEM | D177: 2023-03-29 | E177: 25558.80 | F177: 25440.15 | G177: 25250.50 | H177: 24942.20 | I177: 24752.55 | J177: 25748.45 | K177: 25938.10 | L177: 26246.40 | M177: 25629.8 | N177: 25131.85 | O177: 356875 | P177: 0.72%
A178: 168 | B178: Capital_Goods | C178: SIEMENS | D178: 2023-03-29 | E178: 3329.85 | F178: 3327.35 | G178: 3310.50 | H178: 3291.15 | I178: 3274.30 | J178: 3346.70 | K178: 3363.55 | L178: 3382.90 | M178: 3344.2 | N178: 3308 | O178: 1883200 | P178: 4.31%
A179: 169 | B179: Textile | C179: SRF | D179: 2023-03-29 | E179: 2379.95 | F179: 2384.07 | G179: 2369.13 | H179: 2358.32 | I179: 2343.38 | J179: 2394.88 | K179: 2409.82 | L179: 2420.63 | M179: 2399 | N179: 2373.25 | O179: 3479250 | P179: -0.88%
A180: 170 | B180: Finance | C180: SHRIRAMFIN | D180: 2023-03-29 | E180: 1229.80 | F180: 1237.37 | G180: 1216.03 | H180: 1202.27 | I180: 1180.93 | J180: 1251.13 | K180: 1272.47 | L180: 1286.23 | M180: 1258.7 | N180: 1223.6 | O180: 4056600 | P180: 3.82%
A181: 171 | B181: Pharma | C181: SUNPHARMA | D181: 2023-03-29 | E181: 973.75 | F181: 974.25 | G181: 968.95 | H181: 964.15 | I181: 958.85 | J181: 979.05 | K181: 984.35 | L181: 989.15 | M181: 979.55 | N181: 969.45 | O181: 18762100 | P181: -1.07%
A182: 172 | B182: Media | C182: SUNTV | D182: 2023-03-29 | E182: 419.05 | F182: 421.67 | G182: 414.23 | H182: 409.42 | I182: 401.98 | J182: 426.48 | K182: 433.92 | L182: 438.73 | M182: 429.1 | N182: 416.85 | O182: 8761500 | P182: -1.57%
A183: 173 | B183: Pharma | C183: SYNGENE | D183: 2023-03-29 | E183: 575.25 | F183: 576.62 | G183: 572.03 | H183: 568.82 | I183: 564.23 | J183: 579.83 | K183: 584.42 | L183: 587.63 | M183: 581.2 | N183: 573.4 | O183: 2371000 | P183: -1.00%
A184: 174 | B184: Chemical | C184: TATACHEM | D184: 2023-03-29 | E184: 952.75 | F184: 957.90 | G184: 944.10 | H184: 935.45 | I184: 921.65 | J184: 966.55 | K184: 980.35 | L184: 989.00 | M184: 971.7 | N184: 949.25 | O184: 5430500 | P184: -3.34%
A185: 175 | B185: Telecom | C185: TATACOMM | D185: 2023-03-29 | E185: 1222.15 | F185: 1222.52 | G185: 1212.53 | H185: 1202.92 | I185: 1192.93 | J185: 1232.13 | K185: 1242.12 | L185: 1251.73 | M185: 1232.5 | N185: 1212.9 | O185: 2278500 | P185: 0.04%
A186: 176 | B186: FMCG | C186: TATACONSUM | D186: 2023-03-29 | E186: 702.30 | F186: 703.67 | G186: 698.98 | H186: 695.67 | I186: 690.98 | J186: 706.98 | K186: 711.67 | L186: 714.98 | M186: 708.35 | N186: 700.35 | O186: 10582200 | P186: -2.36%
A187: 177 | B187: Automobile | C187: TATAMOTORS | D187: 2023-03-29 | E187: 416.85 | F187: 417.75 | G187: 414.10 | H187: 411.35 | I187: 407.70 | J187: 420.50 | K187: 424.15 | L187: 426.90 | M187: 421.4 | N187: 415 | O187: 59589225 | P187: 3.38%
A188: 178 | B188: Power | C188: TATAPOWER | D188: 2023-03-29 | E188: 192.55 | F188: 195.22 | G188: 189.18 | H188: 185.82 | I188: 179.78 | J188: 198.58 | K188: 204.62 | L188: 207.98 | M188: 201.25 | N188: 191.85 | O188: 101516625 | P188: 0.04%
A189: 179 | B189: Metals | C189: TATASTEEL | D189: 2023-03-29 | E189: 102.10 | F189: 102.85 | G189: 100.95 | H189: 99.80 | I189: 97.90 | J189: 104.00 | K189: 105.90 | L189: 107.05 | M189: 104.75 | N189: 101.7 | O189: 218960500 | P189: 3.95%
A190: 180 | B190: Technology | C190: TCS | D190: 2023-03-29 | E190: 3121.25 | F190: 3137.47 | G190: 3094.98 | H190: 3068.72 | I190: 3026.23 | J190: 3163.73 | K190: 3206.22 | L190: 3232.48 | M190: 3179.95 | N190: 3111.2 | O190: 11800600 | P190: -2.51%
A191: 181 | B191: Technology | C191: TECHM | D191: 2023-03-29 | E191: 1104.10 | F191: 1107.43 | G191: 1095.47 | H191: 1086.83 | I191: 1074.87 | J191: 1116.07 | K191: 1128.03 | L191: 1136.67 | M191: 1119.4 | N191: 1098.8 | O191: 11436000 | P191: -1.24%
A192: 182 | B192: FMCG | C192: TITAN | D192: 2023-03-29 | E192: 2493.45 | F192: 2498.32 | G192: 2475.23 | H192: 2457.02 | I192: 2433.93 | J192: 2516.53 | K192: 2539.62 | L192: 2557.83 | M192: 2521.4 | N192: 2480.1 | O192: 6068625 | P192: -0.43%
A193: 183 | B193: Pharma | C193: TORNTPHARM | D193: 2023-03-29 | E193: 1518.80 | F193: 1523.47 | G193: 1508.33 | H193: 1497.87 | I193: 1482.73 | J193: 1533.93 | K193: 1549.07 | L193: 1559.53 | M193: 1538.6 | N193: 1513 | O193: 1706500 | P193: -0.15%
A194: 184 | B194: Power | C194: TORNTPOWER | D194: 2023-03-29 | E194: 504.95 | F194: 508.77 | G194: 499.03 | H194: 493.12 | I194: 483.38 | J194: 514.68 | K194: 524.42 | L194: 530.33 | M194: 518.5 | N194: 502.85 | O194: 2743500 | P194: -4.94%
A195: 185 | B195: Others | C195: TRENT | D195: 2023-03-29 | E195: 1310.65 | F195: 1318.18 | G195: 1298.17 | H195: 1285.68 | I195: 1265.67 | J195: 1330.67 | K195: 1350.68 | L195: 1363.17 | M195: 1338.2 | N195: 1305.7 | O195: 3454800 | P195: -1.82%
A196: 186 | B196: Automobile | C196: TVSMOTOR | D196: 2023-03-29 | E196: 1044.10 | F196: 1049.80 | G196: 1035.90 | H196: 1027.70 | I196: 1013.80 | J196: 1058.00 | K196: 1071.90 | L196: 1080.10 | M196: 1063.7 | N196: 1041.6 | O196: 6263600 | P196: -1.52%
A197: 187 | B197: FMCG | C197: UBL | D197: 2023-03-29 | E197: 1437.90 | F197: 1439.80 | G197: 1431.10 | H197: 1424.30 | I197: 1415.60 | J197: 1446.60 | K197: 1455.30 | L197: 1462.10 | M197: 1448.5 | N197: 1433 | O197: 1235200 | P197: 2.15%
A198: 188 | B198: Cement | C198: ULTRACEMCO | D198: 2023-03-29 | E198: 7407.45 | F198: 7392.92 | G198: 7349.88 | H198: 7292.32 | I198: 7249.28 | J198: 7450.48 | K198: 7493.52 | L198: 7551.08 | M198: 7435.95 | N198: 7335.35 | O198: 1850000 | P198: 3.42%
A199: 189 | B199: Chemical | C199: UPL | D199: 2023-03-29 | E199: 697.10 | F199: 700.83 | G199: 690.77 | H199: 684.43 | I199: 674.37 | J199: 707.17 | K199: 717.23 | L199: 723.57 | M199: 710.9 | N199: 694.5 | O199: 15713100 | P199: -1.43%
A200: 190 | B200: Metals | C200: VEDL | D200: 2023-03-29 | E200: 268.55 | F200: 271.83 | G200: 264.37 | H200: 260.18 | I200: 252.72 | J200: 276.02 | K200: 283.48 | L200: 287.67 | M200: 279.3 | N200: 267.65 | O200: 48992000 | P200: 8.49%
A201: 191 | B201: Capital_Goods | C201: VOLTAS | D201: 2023-03-29 | E201: 821.45 | F201: 825.80 | G201: 814.60 | H201: 807.75 | I201: 796.55 | J201: 832.65 | K201: 843.85 | L201: 850.70 | M201: 837 | N201: 818.95 | O201: 6510000 | P201: 1.17%
A202: 192 | B202: Capital_Goods | C202: WHIRLPOOL | D202: 2023-03-29 | E202: 1330.85 | F202: 1331.02 | G202: 1321.78 | H202: 1312.72 | I202: 1303.48 | J202: 1340.08 | K202: 1349.32 | L202: 1358.38 | M202: 1340.25 | N202: 1321.95 | O202: 1049650 | P202: -2.25%
A203: 193 | B203: Technology | C203: WIPRO | D203: 2023-03-29 | E203: 361.65 | F203: 363.13 | G203: 359.52 | H203: 357.38 | I203: 353.77 | J203: 365.27 | K203: 368.88 | L203: 371.02 | M203: 366.75 | N203: 361 | O203: 40468500 | P203: -0.92%
A204: 194 | B204: Media | C204: ZEEL | D204: 2023-03-29 | E204: 211.85 | F204: 213.52 | G204: 208.88 | H204: 205.92 | I204: 201.28 | J204: 216.48 | K204: 221.12 | L204: 224.08 | M204: 218.15 | N204: 210.55 | O204: 74829000 | P204: -1.92%
A205: 195 | B205: Pharma | C205: ZYDUSLIFE | D205: 2023-03-29 | E205: 480.90 | F205: 482.28 | G205: 477.62 | H205: 474.33 | I205: 469.67 | J205: 485.57 | K205: 490.23 | L205: 493.52 | M205: 486.95 | N205: 479 | O205: 6609600 | P205: 0.82%
A222: Pivot Point: This is trigger point for intra day buy/sell based on the price range of the previous day
... 14 more rows

Sheet Cash Intra
M5: Back to Main Page
A6: FOR INTRA DAY TRADING | K6: =Main!B10 -> 2023-03-27
A8: Sr.no | C8: CLOSE RATE | D8: Pivot Point | E8: Supports | H8: Resistances
E9: S1 | F9: S2 | G9: S3 | H9: R1 | I9: R2 | J9: R3 | K9: HIGH | L9: LOW | M9: Total Trade Quanity in Lakhs
A10: 1 | B10: Nifty 50 | C10: 16945.05 | D10: 16990.62 | E10: 16871.78 | F10: 16798.52 | G10: 16679.68 | H10: 17063.88 | I10: 17182.72 | J10: 17255.98 | K10: 17109.45 | L10: 16917.35
A11: 2 | B11: Nifty Bank | C11: 39395.35 | D11: 39486.05 | E11: 39204.20 | F11: 39013.05 | G11: 38731.20 | H11: 39677.20 | I11: 39959.05 | J11: 40150.20 | K11: 39767.90 | L11: 39294.90
A12: 3 | B12: Nifty CPSE | C12: 2851.50 | D12: 2865.87 | E12: 2830.83 | F12: 2810.17 | G12: 2775.13 | H12: 2886.53 | I12: 2921.57 | J12: 2942.23 | K12: 2900.90 | L12: 2845.20
A13: 4 | B13: Nifty Infra | C13: 5024.35 | D13: 5043.35 | E13: 4994.80 | F13: 4965.25 | G13: 4916.70 | H13: 5072.90 | I13: 5121.45 | J13: 5151.00 | K13: 5091.90 | L13: 5013.80
A14: 5 | B14: Nifty IT | C14: 27935.65 | D14: 28086.33 | E14: 27718.82 | F14: 27501.98 | G14: 27134.47 | H14: 28303.17 | I14: 28670.68 | J14: 28887.52 | K14: 28453.85 | L14: 27869.50
A15: 6 | B15: Nifty PSE | C15: 4421.15 | D15: 4438.17 | E15: 4394.83 | F15: 4368.52 | G15: 4325.18 | H15: 4464.48 | I15: 4507.82 | J15: 4534.13 | K15: 4481.50 | L15: 4411.85
A16: 7 | B16: Nifty Midcap 50 | C16: 8283.75 | D16: 8317.67 | E16: 8232.38 | F16: 8181.02 | G16: 8095.73 | H16: 8369.03 | I16: 8454.32 | J16: 8505.68 | K16: 8402.95 | L16: 8266.30
A17: 8 | B17: ABB | C17: 3346.7 | D17: 3356.23 | E17: 3320.47 | F17: 3294.23 | G17: 3258.47 | H17: 3382.47 | I17: 3418.23 | J17: 3444.47 | K17: 3392 | L17: 3330 | M17: 1.80779
A18: 9 | B18: ACC | C18: 1700.85 | D18: 1713.78 | E18: 1681.62 | F18: 1662.38 | G18: 1630.22 | H18: 1733.02 | I18: 1765.18 | J18: 1784.42 | K18: 1745.95 | L18: 1694.55 | M18: 5.30916
A19: 10 | B19: AUBANK | C19: 559.9 | D19: 559.37 | E19: 548.53 | F19: 537.17 | G19: 526.33 | H19: 570.73 | I19: 581.57 | J19: 592.93 | K19: 570.2 | L19: 548 | M19: 21.78563
A20: 11 | B20: ABBOTINDIA | C20: 21128.9 | D20: 21287.75 | E20: 20897.50 | F20: 20666.10 | G20: 20275.85 | H20: 21519.15 | I20: 21909.40 | J20: 22140.80 | K20: 21678 | L20: 21056.35 | M20: 0.05596
A21: 12 | B21: ADANIENT | C21: 1740.65 | D21: 1752.97 | E21: 1682.93 | F21: 1625.22 | G21: 1555.18 | H21: 1810.68 | I21: 1880.72 | J21: 1938.43 | K21: 1823 | L21: 1695.25 | M21: 61.87968
A22: 13 | B22: ADANIGREEN | C22: 1029.35 | D22: 1001.15 | E22: 970.85 | F22: 912.35 | G22: 882.05 | H22: 1059.65 | I22: 1089.95 | J22: 1148.45 | K22: 1031.45 | L22: 942.65 | M22: 129.23291
A23: 14 | B23: ADANIPORTS | C23: 638 | D23: 644.20 | E23: 627.75 | F23: 617.50 | G23: 601.05 | H23: 654.45 | I23: 670.90 | J23: 681.15 | K23: 660.65 | L23: 633.95 | M23: 60.72701
A24: 15 | B24: ATGL | C24: 1007.45 | D24: 994.20 | E24: 957.25 | F24: 907.05 | G24: 870.10 | H24: 1044.40 | I24: 1081.35 | J24: 1131.55 | K24: 1031.15 | L24: 944 | M24: 50.23306
A25: 16 | B25: ADANITRANS | C25: 1124.55 | D25: 1101.82 | E25: 1065.03 | F25: 1005.52 | G25: 968.73 | H25: 1161.33 | I25: 1198.12 | J25: 1257.63 | K25: 1138.6 | L25: 1042.3 | M25: 38.75691
A26: 17 | B26: AWL | C26: 407.7 | D26: 414.25 | E26: 399.95 | F26: 392.20 | G26: 377.90 | H26: 422.00 | I26: 436.30 | J26: 444.05 | K26: 428.55 | L26: 406.5 | M26: 29.4288
A27: 18 | B27: ABCAPITAL | C27: 144.05 | D27: 146.52 | E27: 140.23 | F27: 136.42 | G27: 130.13 | H27: 150.33 | I27: 156.62 | J27: 160.43 | K27: 152.8 | L27: 142.7 | M27: 72.96594
A28: 19 | B28: ABFRL | C28: 211.9 | D28: 211.58 | E28: 209.42 | F28: 206.93 | G28: 204.77 | H28: 214.07 | I28: 216.23 | J28: 218.72 | K28: 213.75 | L28: 209.1 | M28: 26.39184
A29: 20 | B29: ALKEM | C29: 3153.75 | D29: 3166.92 | E29: 3131.83 | F29: 3109.92 | G29: 3074.83 | H29: 3188.83 | I29: 3223.92 | J29: 3245.83 | K29: 3202 | L29: 3145 | M29: 0.63939
A30: 21 | B30: AMBUJACEM | C30: 371.8 | D30: 372.12 | E30: 367.73 | F30: 363.67 | G30: 359.28 | H30: 376.18 | I30: 380.57 | J30: 384.63 | K30: 376.5 | L30: 368.05 | M30: 95.12792
A31: 22 | B31: APOLLOHOSP | C31: 4283.35 | D31: 4299.67 | E31: 4244.68 | F31: 4206.02 | G31: 4151.03 | H31: 4338.33 | I31: 4393.32 | J31: 4431.98 | K31: 4354.65 | L31: 4261 | M31: 3.54933
A32: 23 | B32: ASHOKLEY | C32: 137.65 | D32: 137.87 | E32: 136.48 | F32: 135.32 | G32: 133.93 | H32: 139.03 | I32: 140.42 | J32: 141.58 | K32: 139.25 | L32: 136.7 | M32: 102.15449
A33: 24 | B33: ASIANPAINT | C33: 2798.5 | D33: 2795.67 | E33: 2775.68 | F33: 2752.87 | G33: 2732.88 | H33: 2818.48 | I33: 2838.47 | J33: 2861.28 | K33: 2815.65 | L33: 2772.85 | M33: 7.84111
A34: 25 | B34: ASTRAL | C34: 1333.55 | D34: 1337.53 | E34: 1321.12 | F34: 1308.68 | G34: 1292.27 | H34: 1349.97 | I34: 1366.38 | J34: 1378.82 | K34: 1353.95 | L34: 1325.1 | M34: 4.69411
A35: 26 | B35: AUROPHARMA | C35: 500.45 | D35: 496.15 | E35: 489.30 | F35: 478.15 | G35: 471.30 | H35: 507.30 | I35: 514.15 | J35: 525.30 | K35: 503 | L35: 485 | M35: 41.23319
A36: 27 | B36: DMART | C36: 3358.4 | D36: 3364.83 | E36: 3343.62 | F36: 3328.83 | G36: 3307.62 | H36: 3379.62 | I36: 3400.83 | J36: 3415.62 | K36: 3386.05 | L36: 3350.05 | M36: 1.78783
A37: 28 | B37: AXISBANK | C37: 839.9 | D37: 843.22 | E37: 833.93 | F37: 827.97 | G37: 818.68 | H37: 849.18 | I37: 858.47 | J37: 864.43 | K37: 852.5 | L37: 837.25 | M37: 80.78718
A38: 29 | B38: BAJAJ-AUTO | C38: 3827.9 | D38: 3840.93 | E38: 3798.97 | F38: 3770.03 | G38: 3728.07 | H38: 3869.87 | I38: 3911.83 | J38: 3940.77 | K38: 3882.9 | L38: 3812 | M38: 2.81359
A39: 30 | B39: BAJFINANCE | C39: 5649.25 | D39: 5702.07 | E39: 5574.38 | F39: 5499.52 | G39: 5371.83 | H39: 5776.93 | I39: 5904.62 | J39: 5979.48 | K39: 5829.75 | L39: 5627.2 | M39: 12.78042
A40: 31 | B40: BAJAJFINSV | C40: 1240.65 | D40: 1255.62 | E40: 1221.23 | F40: 1201.82 | G40: 1167.43 | H40: 1275.03 | I40: 1309.42 | J40: 1328.83 | K40: 1290 | L40: 1236.2 | M40: 26.76573
A41: 32 | B41: BAJAJHLDNG | C41: 6034.25 | D41: 6023.78 | E41: 5988.37 | F41: 5942.48 | G41: 5907.07 | H41: 6069.67 | I41: 6105.08 | J41: 6150.97 | K41: 6059.2 | L41: 5977.9 | M41: 0.13838
A42: 33 | B42: BALKRISIND | C42: 1967.65 | D42: 1970.70 | E42: 1952.95 | F42: 1938.25 | G42: 1920.50 | H42: 1985.40 | I42: 2003.15 | J42: 2017.85 | K42: 1988.45 | L42: 1956 | M42: 1.68922
A43: 34 | B43: BANDHANBNK | C43: 203.1 | D43: 206.03 | E43: 199.07 | F43: 195.03 | G43: 188.07 | H43: 210.07 | I43: 217.03 | J43: 221.07 | K43: 213 | L43: 202 | M43: 79.57836
A44: 35 | B44: BANKBARODA | C44: 159.8 | D44: 160.97 | E44: 157.98 | F44: 156.17 | G44: 153.18 | H44: 162.78 | I44: 165.77 | J44: 167.58 | K44: 163.95 | L44: 159.15 | M44: 186.10261
A45: 36 | B45: BANKINDIA | C45: 70.35 | D45: 71.30 | E45: 68.65 | F45: 66.95 | G45: 64.30 | H45: 73.00 | I45: 75.65 | J45: 77.35 | K45: 73.95 | L45: 69.6 | M45: 93.32025
A46: 37 | B46: BATAINDIA | C46: 1416.4 | D46: 1412.05 | E46: 1404.95 | F46: 1393.50 | G46: 1386.40 | H46: 1423.50 | I46: 1430.60 | J46: 1442.05 | K46: 1419.15 | L46: 1400.6 | M46: 8.43508
A47: 38 | B47: BERGEPAINT | C47: 573.7 | D47: 573.22 | E47: 568.58 | F47: 563.47 | G47: 558.83 | H47: 578.33 | I47: 582.97 | J47: 588.08 | K47: 577.85 | L47: 568.1 | M47: 5.07905
A48: 39 | B48: BEL | C48: 91.55 | D48: 92.42 | E48: 90.33 | F48: 89.12 | G48: 87.03 | H48: 93.63 | I48: 95.72 | J48: 96.93 | K48: 94.5 | L48: 91.2 | M48: 166.50432
A49: 40 | B49: BHARATFORG | C49: 764.8 | D49: 766.48 | E49: 759.32 | F49: 753.83 | G49: 746.67 | H49: 771.97 | I49: 779.13 | J49: 784.62 | K49: 773.65 | L49: 761 | M49: 4.90579
A50: 41 | B50: BHEL | C50: 71.8 | D50: 72.57 | E50: 70.63 | F50: 69.47 | G50: 67.53 | H50: 73.73 | I50: 75.67 | J50: 76.83 | K50: 74.5 | L50: 71.4 | M50: 88.53059
A51: 42 | B51: BPCL | C51: 345.4 | D51: 346.38 | E51: 343.02 | F51: 340.63 | G51: 337.27 | H51: 348.77 | I51: 352.13 | J51: 354.52 | K51: 349.75 | L51: 344 | M51: 29.37744
A52: 43 | B52: BHARTIARTL | C52: 762.45 | D52: 762.77 | E52: 758.53 | F52: 754.62 | G52: 750.38 | H52: 766.68 | I52: 770.92 | J52: 774.83 | K52: 767 | L52: 758.85 | M52: 23.36818
A53: 44 | B53: BIOCON | C53: 198.7 | D53: 200.78 | E53: 194.57 | F53: 190.43 | G53: 184.22 | H53: 204.92 | I53: 211.13 | J53: 215.27 | K53: 207 | L53: 196.65 | M53: 69.0726
A54: 45 | B54: BOSCHLTD | C54: 18452.65 | D54: 18437.18 | E54: 18324.37 | F54: 18196.08 | G54: 18083.27 | H54: 18565.47 | I54: 18678.28 | J54: 18806.57 | K54: 18550 | L54: 18308.9 | M54: 0.21757
A55: 46 | B55: BRITANNIA | C55: 4199.95 | D55: 4210.60 | E55: 4179.20 | F55: 4158.45 | G55: 4127.05 | H55: 4231.35 | I55: 4262.75 | J55: 4283.50 | K55: 4242 | L55: 4189.85 | M55: 1.98393
A56: 47 | B56: CANBK | C56: 273.8 | D56: 275.87 | E56: 270.28 | F56: 266.77 | G56: 261.18 | H56: 279.38 | I56: 284.97 | J56: 288.48 | K56: 281.45 | L56: 272.35 | M56: 64.42538
A57: 48 | B57: CHOLAFIN | C57: 727.65 | D57: 731.68 | E57: 718.72 | F57: 709.78 | G57: 696.82 | H57: 740.62 | I57: 753.58 | J57: 762.52 | K57: 744.65 | L57: 722.75 | M57: 12.18088
A58: 49 | B58: CIPLA | C58: 877.25 | D58: 874.13 | E58: 869.27 | F58: 861.28 | G58: 856.42 | H58: 882.12 | I58: 886.98 | J58: 894.97 | K58: 879 | L58: 866.15 | M58: 31.66046
A59: 50 | B59: CLEAN | C59: 1315.25 | D59: 1327.12 | E59: 1293.13 | F59: 1271.02 | G59: 1237.03 | H59: 1349.23 | I59: 1383.22 | J59: 1405.33 | K59: 1361.1 | L59: 1305 | M59: 0.56791
A60: 51 | B60: COALINDIA | C60: 208.45 | D60: 210.12 | E60: 206.33 | F60: 204.22 | G60: 200.43 | H60: 212.23 | I60: 216.02 | J60: 218.13 | K60: 213.9 | L60: 208 | M60: 66.11089
A61: 52 | B61: COFORGE | C61: 3700.5 | D61: 3732.70 | E61: 3637.80 | F61: 3575.10 | G61: 3480.20 | H61: 3795.40 | I61: 3890.30 | J61: 3953.00 | K61: 3827.6 | L61: 3670 | M61: 2.70367
A62: 53 | B62: COLPAL | C62: 1500.95 | D62: 1508.80 | E62: 1488.70 | F62: 1476.45 | G62: 1456.35 | H62: 1521.05 | I62: 1541.15 | J62: 1553.40 | K62: 1528.9 | L62: 1496.55 | M62: 2.34341
A63: 54 | B63: CONCOR | C63: 583.25 | D63: 584.65 | E63: 578.85 | F63: 574.45 | G63: 568.65 | H63: 589.05 | I63: 594.85 | J63: 599.25 | K63: 590.45 | L63: 580.25 | M63: 8.35509
A64: 55 | B64: COROMANDEL | C64: 881.25 | D64: 885.03 | E64: 874.47 | F64: 867.68 | G64: 857.12 | H64: 891.82 | I64: 902.38 | J64: 909.17 | K64: 895.6 | L64: 878.25 | M64: 2.72703
A65: 56 | B65: CROMPTON | C65: 293.75 | D65: 293.72 | E65: 290.13 | F65: 286.52 | G65: 282.93 | H65: 297.33 | I65: 300.92 | J65: 304.53 | K65: 297.3 | L65: 290.1 | M65: 48.53208
A66: 57 | B66: CUMMINSIND | C66: 1622.15 | D66: 1625.93 | E66: 1610.92 | F66: 1599.68 | G66: 1584.67 | H66: 1637.17 | I66: 1652.18 | J66: 1663.42 | K66: 1640.95 | L66: 1614.7 | M66: 3.71397
A67: 58 | B67: DLF | C67: 354.25 | D67: 358.43 | E67: 348.87 | F67: 343.48 | G67: 333.92 | H67: 363.82 | I67: 373.38 | J67: 378.77 | K67: 368 | L67: 353.05 | M67: 31.34205
A68: 59 | B68: DABUR | C68: 536.4 | D68: 537.13 | E68: 534.27 | F68: 532.13 | G68: 529.27 | H68: 539.27 | I68: 542.13 | J68: 544.27 | K68: 540 | L68: 535 | M68: 6.39799
A69: 60 | B69: DALBHARAT | C69: 1831.1 | D69: 1822.85 | E69: 1810.25 | F69: 1789.40 | G69: 1776.80 | H69: 1843.70 | I69: 1856.30 | J69: 1877.15 | K69: 1835.45 | L69: 1802 | M69: 1.66271
A70: 61 | B70: DEEPAKNTR | C70: 1780.05 | D70: 1793.83 | E70: 1763.22 | F70: 1746.38 | G70: 1715.77 | H70: 1810.67 | I70: 1841.28 | J70: 1858.12 | K70: 1824.45 | L70: 1777 | M70: 3.68678
A71: 62 | B71: DELHIVERY | C71: 323.65 | D71: 324.22 | E71: 320.03 | F71: 316.42 | G71: 312.23 | H71: 327.83 | I71: 332.02 | J71: 335.63 | K71: 328.4 | L71: 320.6 | M71: 10.09908
A72: 63 | B72: DIVISLAB | C72: 2807 | D72: 2810.05 | E72: 2791.95 | F72: 2776.90 | G72: 2758.80 | H72: 2825.10 | I72: 2843.20 | J72: 2858.25 | K72: 2828.15 | L72: 2795 | M72: 2.91918
A73: 64 | B73: DIXON | C73: 2881.4 | D73: 2878.07 | E73: 2847.33 | F73: 2813.27 | G73: 2782.53 | H73: 2912.13 | I73: 2942.87 | J73: 2976.93 | K73: 2908.8 | L73: 2844 | M73: 1.88655
A74: 65 | B74: LALPATHLAB | C74: 1817.1 | D74: 1818.78 | E74: 1802.57 | F74: 1788.03 | G74: 1771.82 | H74: 1833.32 | I74: 1849.53 | J74: 1864.07 | K74: 1835 | L74: 1804.25 | M74: 1.12401
A75: 66 | B75: DRREDDY | C75: 4464.15 | D75: 4470.70 | E75: 4443.40 | F75: 4422.65 | G75: 4395.35 | H75: 4491.45 | I75: 4518.75 | J75: 4539.50 | K75: 4498 | L75: 4449.95 | M75: 2.25394
A76: 67 | B76: EICHERMOT | C76: 2909.6 | D76: 2909.08 | E76: 2887.17 | F76: 2864.73 | G76: 2842.82 | H76: 2931.52 | I76: 2953.43 | J76: 2975.87 | K76: 2931 | L76: 2886.65 | M76: 5.42971
A77: 68 | B77: EMAMILTD | C77: 362.55 | D77: 363.22 | E77: 354.43 | F77: 346.32 | G77: 337.53 | H77: 371.33 | I77: 380.12 | J77: 388.23 | K77: 372 | L77: 355.1 | M77: 7.16188
A78: 69 | B78: ESCORTS | C78: 1831.85 | D78: 1839.68 | E78: 1812.27 | F78: 1792.68 | G78: 1765.27 | H78: 1859.27 | I78: 1886.68 | J78: 1906.27 | K78: 1867.1 | L78: 1820.1 | M78: 2.12849
A79: 70 | B79: NYKAA | C79: 137.65 | D79: 137.53 | E79: 134.72 | F79: 131.78 | G79: 128.97 | H79: 140.47 | I79: 143.28 | J79: 146.22 | K79: 140.35 | L79: 134.6 | M79: 59.66778
A80: 71 | B80: FEDERALBNK | C80: 126.85 | D80: 126.97 | E80: 125.73 | F80: 124.62 | G80: 123.38 | H80: 128.08 | I80: 129.32 | J80: 130.43 | K80: 128.2 | L80: 125.85 | M80: 78.44882
A81: 72 | B81: FORTIS | C81: 254.85 | D81: 253.12 | E81: 247.23 | F81: 239.62 | G81: 233.73 | H81: 260.73 | I81: 266.62 | J81: 274.23 | K81: 259 | L81: 245.5 | M81: 11.40398
A82: 73 | B82: GAIL | C82: 103.5 | D82: 104.02 | E82: 102.43 | F82: 101.37 | G82: 99.78 | H82: 105.08 | I82: 106.67 | J82: 107.73 | K82: 105.6 | L82: 102.95 | M82: 109.24642
A83: 74 | B83: GLAND | C83: 1282.2 | D83: 1277.17 | E83: 1231.03 | F83: 1179.87 | G83: 1133.73 | H83: 1328.33 | I83: 1374.47 | J83: 1425.63 | K83: 1323.3 | L83: 1226 | M83: 12.29621
A84: 75 | B84: GODREJCP | C84: 951.2 | D84: 950.15 | E84: 944.35 | F84: 937.50 | G84: 931.70 | H84: 957.00 | I84: 962.80 | J84: 969.65 | K84: 955.95 | L84: 943.3 | M84: 9.52163
A85: 76 | B85: GODREJPROP | C85: 1044.85 | D85: 1049.75 | E85: 1030.35 | F85: 1015.85 | G85: 996.45 | H85: 1064.25 | I85: 1083.65 | J85: 1098.15 | K85: 1069.15 | L85: 1035.25 | M85: 3.75025
A86: 77 | B86: GRASIM | C86: 1594.3 | D86: 1596.68 | E86: 1584.92 | F86: 1575.53 | G86: 1563.77 | H86: 1606.07 | I86: 1617.83 | J86: 1627.22 | K86: 1608.45 | L86: 1587.3 | M86: 3.73052
A87: 78 | B87: GUJGASLTD | C87: 482.4 | D87: 485.88 | E87: 477.12 | F87: 471.83 | G87: 463.07 | H87: 491.17 | I87: 499.93 | J87: 505.22 | K87: 494.65 | L87: 480.6 | M87: 3.11464
A88: 79 | B88: GSPL | C88: 270.75 | D88: 271.68 | E88: 267.32 | F88: 263.88 | G88: 259.52 | H88: 275.12 | I88: 279.48 | J88: 282.92 | K88: 276.05 | L88: 268.25 | M88: 1.93739
A89: 80 | B89: HCLTECH | C89: 1051.75 | D89: 1062.93 | E89: 1035.87 | F89: 1019.98 | G89: 992.92 | H89: 1078.82 | I89: 1105.88 | J89: 1121.77 | K89: 1090 | L89: 1047.05 | M89: 26.88253
A90: 81 | B90: HDFCAMC | C90: 1672.85 | D90: 1677.98 | E90: 1647.97 | F90: 1623.08 | G90: 1593.07 | H90: 1702.87 | I90: 1732.88 | J90: 1757.77 | K90: 1708 | L90: 1653.1 | M90: 19.67681
A91: 82 | B91: HDFCBANK | C91: 1560.65 | D91: 1563.17 | E91: 1552.43 | F91: 1544.22 | G91: 1533.48 | H91: 1571.38 | I91: 1582.12 | J91: 1590.33 | K91: 1573.9 | L91: 1554.95 | M91: 157.38874
A92: 83 | B92: HDFCLIFE | C92: 492.25 | D92: 491.92 | E92: 481.93 | F92: 471.62 | G92: 461.63 | H92: 502.23 | I92: 512.22 | J92: 522.53 | K92: 501.9 | L92: 481.6 | M92: 64.24544
A93: 84 | B93: HAVELLS | C93: 1181.45 | D93: 1184.37 | E93: 1171.08 | F93: 1160.72 | G93: 1147.43 | H93: 1194.73 | I93: 1208.02 | J93: 1218.38 | K93: 1197.65 | L93: 1174 | M93: 2.53493
A94: 85 | B94: HEROMOTOCO | C94: 2313.35 | D94: 2332.05 | E94: 2285.40 | F94: 2257.45 | G94: 2210.80 | H94: 2360.00 | I94: 2406.65 | J94: 2434.60 | K94: 2378.7 | L94: 2304.1 | M94: 2.7204
A95: 86 | B95: HINDALCO | C95: 388.4 | D95: 391.85 | E95: 382.70 | F95: 377.00 | G95: 367.85 | H95: 397.55 | I95: 406.70 | J95: 412.40 | K95: 401 | L95: 386.15 | M95: 88.33099
A96: 87 | B96: HAL | C96: 2567.5 | D96: 2567.43 | E96: 2520.07 | F96: 2472.63 | G96: 2425.27 | H96: 2614.87 | I96: 2662.23 | J96: 2709.67 | K96: 2614.8 | L96: 2520 | M96: 47.71223
A97: 88 | B97: HINDPETRO | C97: 238.85 | D97: 240.02 | E97: 237.33 | F97: 235.82 | G97: 233.13 | H97: 241.53 | I97: 244.22 | J97: 245.73 | K97: 242.7 | L97: 238.5 | M97: 9.88849
A98: 89 | B98: HINDUNILVR | C98: 2480.8 | D98: 2482.90 | E98: 2467.90 | F98: 2455.00 | G98: 2440.00 | H98: 2495.80 | I98: 2510.80 | J98: 2523.70 | K98: 2497.9 | L98: 2470 | M98: 14.49326
A99: 90 | B99: HINDZINC | C99: 323.1 | D99: 322.47 | E99: 320.93 | F99: 318.77 | G99: 317.23 | H99: 324.63 | I99: 326.17 | J99: 328.33 | K99: 324 | L99: 320.3 | M99: 27.26902
A100: 91 | B100: HONAUT | C100: 35775.65 | D100: 35598.45 | E100: 35323.20 | F100: 34870.75 | G100: 34595.50 | H100: 36050.90 | I100: 36326.15 | J100: 36778.60 | K100: 35873.7 | L100: 35146 | M100: 0.04221
A101: 92 | B101: HDFC | C101: 2559.9 | D101: 2563.87 | E101: 2541.13 | F101: 2522.37 | G101: 2499.63 | H101: 2582.63 | I101: 2605.37 | J101: 2624.13 | K101: 2586.6 | L101: 2545.1 | M101: 21.1445
A102: 93 | B102: ICICIBANK | C102: 852.4 | D102: 853.85 | E102: 847.70 | F102: 843.00 | G102: 836.85 | H102: 858.55 | I102: 864.70 | J102: 869.40 | K102: 860 | L102: 849.15 | M102: 172.95696
A103: 94 | B103: ICICIGI | C103: 1076.4 | D103: 1076.95 | E103: 1069.00 | F103: 1061.60 | G103: 1053.65 | H103: 1084.35 | I103: 1092.30 | J103: 1099.70 | K103: 1084.9 | L103: 1069.55 | M103: 3.46534
A104: 95 | B104: ICICIPRULI | C104: 420.25 | D104: 411.73 | E104: 399.52 | F104: 378.78 | G104: 366.57 | H104: 432.47 | I104: 444.68 | J104: 465.42 | K104: 423.95 | L104: 391 | M104: 34.55815
A105: 96 | B105: ISEC | C105: 433.7 | D105: 433.13 | E105: 426.57 | F105: 419.43 | G105: 412.87 | H105: 440.27 | I105: 446.83 | J105: 453.97 | K105: 439.7 | L105: 426 | M105: 5.54104
A106: 97 | B106: IDFCFIRSTB | C106: 54.1 | D106: 54.68 | E106: 53.32 | F106: 52.53 | G106: 51.17 | H106: 55.47 | I106: 56.83 | J106: 57.62 | K106: 56.05 | L106: 53.9 | M106: 243.52812
A107: 98 | B107: ITC | C107: 378.7 | D107: 379.90 | E107: 376.80 | F107: 374.90 | G107: 371.80 | H107: 381.80 | I107: 384.90 | J107: 386.80 | K107: 383 | L107: 378 | M107: 99.34501
A108: 99 | B108: INDIAMART | C108: 4976.85 | D108: 4991.77 | E108: 4906.08 | F108: 4835.32 | G108: 4749.63 | H108: 5062.53 | I108: 5148.22 | J108: 5218.98 | K108: 5077.45 | L108: 4921 | M108: 1.0986
A109: 100 | B109: INDIANB | C109: 269.95 | D109: 271.88 | E109: 266.07 | F109: 262.18 | G109: 256.37 | H109: 275.77 | I109: 281.58 | J109: 285.47 | K109: 277.7 | L109: 268 | M109: 7.12951
A110: 101 | B110: IEX | C110: 142.95 | D110: 144.35 | E110: 140.80 | F110: 138.65 | G110: 135.10 | H110: 146.50 | I110: 150.05 | J110: 152.20 | K110: 147.9 | L110: 142.2 | M110: 36.71465
A111: 102 | B111: INDHOTEL | C111: 310.45 | D111: 311.93 | E111: 307.92 | F111: 305.38 | G111: 301.37 | H111: 314.47 | I111: 318.48 | J111: 321.02 | K111: 315.95 | L111: 309.4 | M111: 13.83891
A112: 103 | B112: IOC | C112: 78.4 | D112: 78.53 | E112: 77.87 | F112: 77.33 | G112: 76.67 | H112: 79.07 | I112: 79.73 | J112: 80.27 | K112: 79.2 | L112: 78 | M112: 102.69895
A113: 104 | B113: IRCTC | C113: 600.05 | D113: 602.25 | E113: 595.90 | F113: 591.75 | G113: 585.40 | H113: 606.40 | I113: 612.75 | J113: 616.90 | K113: 608.6 | L113: 598.1 | M113: 8.86735
A114: 105 | B114: IGL | C114: 432.2 | D114: 435.47 | E114: 426.53 | F114: 420.87 | G114: 411.93 | H114: 441.13 | I114: 450.07 | J114: 455.73 | K114: 444.4 | L114: 429.8 | M114: 17.44666
A115: 106 | B115: INDUSTOWER | C115: 148.05 | D115: 149.78 | E115: 145.92 | F115: 143.78 | G115: 139.92 | H115: 151.92 | I115: 155.78 | J115: 157.92 | K115: 153.65 | L115: 147.65 | M115: 21.41268
A116: 107 | B116: INDUSINDBK | C116: 1009.55 | D116: 1013.05 | E116: 1001.15 | F116: 992.75 | G116: 980.85 | H116: 1021.45 | I116: 1033.35 | J116: 1041.75 | K116: 1024.95 | L116: 1004.65 | M116: 27.09449
A117: 108 | B117: NAUKRI | C117: 3475.6 | D117: 3494.97 | E117: 3440.93 | F117: 3406.27 | G117: 3352.23 | H117: 3529.63 | I117: 3583.67 | J117: 3618.33 | K117: 3549 | L117: 3460.3 | M117: 1.5316
A118: 109 | B118: INFY | C118: 1380.65 | D118: 1385.70 | E118: 1372.45 | F118: 1364.25 | G118: 1351.00 | H118: 1393.90 | I118: 1407.15 | J118: 1415.35 | K118: 1398.95 | L118: 1377.5 | M118: 75.59127
A119: 110 | B119: INDIGO | C119: 1865.2 | D119: 1881.40 | E119: 1843.80 | F119: 1822.40 | G119: 1784.80 | H119: 1902.80 | I119: 1940.40 | J119: 1961.80 | K119: 1919 | L119: 1860 | M119: 3.38567
A120: 111 | B120: IPCALAB | C120: 781.45 | D120: 782.88 | E120: 777.27 | F120: 773.08 | G120: 767.47 | H120: 787.07 | I120: 792.68 | J120: 796.87 | K120: 788.5 | L120: 778.7 | M120: 0.63407
A121: 112 | B121: JSWENERGY | C121: 236.7 | D121: 240.23 | E121: 231.02 | F121: 225.33 | G121: 216.12 | H121: 245.92 | I121: 255.13 | J121: 260.82 | K121: 249.45 | L121: 234.55 | M121: 9.38094
A122: 113 | B122: JSWSTEEL | C122: 657.8 | D122: 661.57 | E122: 651.98 | F122: 646.17 | G122: 636.58 | H122: 667.38 | I122: 676.97 | J122: 682.78 | K122: 671.15 | L122: 655.75 | M122: 15.63002
A123: 114 | B123: JINDALSTEL | C123: 534.1 | D123: 541.35 | E123: 524.75 | F123: 515.40 | G123: 498.80 | H123: 550.70 | I123: 567.30 | J123: 576.65 | K123: 557.95 | L123: 532 | M123: 36.43046
A124: 115 | B124: JUBLFOOD | C124: 440.95 | D124: 442.18 | E124: 434.97 | F124: 428.98 | G124: 421.77 | H124: 448.17 | I124: 455.38 | J124: 461.37 | K124: 449.4 | L124: 436.2 | M124: 16.74735
A125: 116 | B125: KOTAKBANK | C125: 1692.15 | D125: 1692.03 | E125: 1675.12 | F125: 1658.08 | G125: 1641.17 | H125: 1709.07 | I125: 1725.98 | J125: 1743.02 | K125: 1708.95 | L125: 1675 | M125: 54.80609
A126: 117 | B126: L&TFH | C126: 82.2 | D126: 82.87 | E126: 80.88 | F126: 79.57 | G126: 77.58 | H126: 84.18 | I126: 86.17 | J126: 87.48 | K126: 84.85 | L126: 81.55 | M126: 42.84125
A127: 118 | B127: LTTS | C127: 3385.5 | D127: 3375.00 | E127: 3347.10 | F127: 3308.70 | G127: 3280.80 | H127: 3413.40 | I127: 3441.30 | J127: 3479.70 | K127: 3402.9 | L127: 3336.6 | M127: 2.44816
A128: 119 | B128: LICHSGFIN | C128: 320.65 | D128: 325.22 | E128: 315.43 | F128: 310.22 | G128: 300.43 | H128: 330.43 | I128: 340.22 | J128: 345.43 | K128: 335 | L128: 320 | M128: 22.98219
A129: 120 | B129: LTIM | C129: 4601.45 | D129: 4634.45 | E129: 4555.90 | F129: 4510.35 | G129: 4431.80 | H129: 4680.00 | I129: 4758.55 | J129: 4804.10 | K129: 4713 | L129: 4588.9 | M129: 4.77503
A130: 121 | B130: LT | C130: 2166.15 | D130: 2179.52 | E130: 2139.68 | F130: 2113.22 | G130: 2073.38 | H130: 2205.98 | I130: 2245.82 | J130: 2272.28 | K130: 2219.35 | L130: 2153.05 | M130: 14.49544
A131: 122 | B131: LAURUSLABS | C131: 299.35 | D131: 300.70 | E131: 296.65 | F131: 293.95 | G131: 289.90 | H131: 303.40 | I131: 307.45 | J131: 310.15 | K131: 304.75 | L131: 298 | M131: 10.94973
A132: 123 | B132: LICI | C132: 560 | D132: 564.00 | E132: 555.00 | F132: 550.00 | G132: 541.00 | H132: 569.00 | I132: 578.00 | J132: 583.00 | K132: 573 | L132: 559 | M132: 13.05399
A133: 124 | B133: LINDEINDIA | C133: 3969.85 | D133: 3959.62 | E133: 3910.23 | F133: 3850.62 | G133: 3801.23 | H133: 4019.23 | I133: 4068.62 | J133: 4128.23 | K133: 4009 | L133: 3900 | M133: 0.48452
A134: 125 | B134: LUPIN | C134: 640 | D134: 644.40 | E134: 633.95 | F134: 627.90 | G134: 617.45 | H134: 650.45 | I134: 660.90 | J134: 666.95 | K134: 654.85 | L134: 638.35 | M134: 7.21966
A135: 126 | B135: MRF | C135: 83878.5 | D135: 84119.15 | E135: 83459.35 | F135: 83040.20 | G135: 82380.40 | H135: 84538.30 | I135: 85198.10 | J135: 85617.25 | K135: 84778.95 | L135: 83700 | M135: 0.03982
A136: 127 | B136: M&MFIN | C136: 220.5 | D136: 222.22 | E136: 217.78 | F136: 215.07 | G136: 210.63 | H136: 224.93 | I136: 229.37 | J136: 232.08 | K136: 226.65 | L136: 219.5 | M136: 56.43816
A137: 128 | B137: M&M | C137: 1150.8 | D137: 1156.15 | E137: 1141.75 | F137: 1132.70 | G137: 1118.30 | H137: 1165.20 | I137: 1179.60 | J137: 1188.65 | K137: 1170.55 | L137: 1147.1 | M137: 18.39876
A138: 129 | B138: MARICO | C138: 477.2 | D138: 477.87 | E138: 474.93 | F138: 472.67 | G138: 469.73 | H138: 480.13 | I138: 483.07 | J138: 485.33 | K138: 480.8 | L138: 475.6 | M138: 10.31979
A139: 130 | B139: MARUTI | C139: 8242.9 | D139: 8280.13 | E139: 8173.77 | F139: 8104.63 | G139: 7998.27 | H139: 8349.27 | I139: 8455.63 | J139: 8524.77 | K139: 8386.5 | L139: 8211 | M139: 3.9184
A140: 131 | B140: MFSL | C140: 619.65 | D140: 623.38 | E140: 611.57 | F140: 603.48 | G140: 591.67 | H140: 631.47 | I140: 643.28 | J140: 651.37 | K140: 635.2 | L140: 615.3 | M140: 14.08058
A141: 132 | B141: MAXHEALTH | C141: 460.7 | D141: 462.08 | E141: 456.62 | F141: 452.53 | G141: 447.07 | H141: 466.17 | I141: 471.63 | J141: 475.72 | K141: 467.55 | L141: 458 | M141: 21.88315
A142: 133 | B142: MSUMI | C142: 47.65 | D142: 47.63 | E142: 47.12 | F142: 46.58 | G142: 46.07 | H142: 48.17 | I142: 48.68 | J142: 49.22 | K142: 48.15 | L142: 47.1 | M142: 15.76494
A143: 134 | B143: MPHASIS | C143: 1737.4 | D143: 1758.85 | E143: 1705.70 | F143: 1674.00 | G143: 1620.85 | H143: 1790.55 | I143: 1843.70 | J143: 1875.40 | K143: 1812 | L143: 1727.15 | M143: 4.50064
A144: 135 | B144: MUTHOOTFIN | C144: 962.35 | D144: 968.35 | E144: 954.00 | F144: 945.65 | G144: 931.30 | H144: 976.70 | I144: 991.05 | J144: 999.40 | K144: 982.7 | L144: 960 | M144: 5.17086
A145: 136 | B145: NTPC | C145: 172.7 | D145: 173.42 | E145: 171.63 | F145: 170.57 | G145: 168.78 | H145: 174.48 | I145: 176.27 | J145: 177.33 | K145: 175.2 | L145: 172.35 | M145: 49.77283
A146: 137 | B146: NATIONALUM | C146: 77.15 | D146: 77.35 | E146: 76.15 | F146: 75.15 | G146: 73.95 | H146: 78.35 | I146: 79.55 | J146: 80.55 | K146: 78.55 | L146: 76.35 | M146: 116.44077
A147: 138 | B147: NAVINFLUOR | C147: 4241.85 | D147: 4252.90 | E147: 4206.85 | F147: 4171.85 | G147: 4125.80 | H147: 4287.90 | I147: 4333.95 | J147: 4368.95 | K147: 4298.95 | L147: 4217.9 | M147: 1.07127
A148: 139 | B148: NESTLEIND | C148: 18953.1 | D148: 18980.37 | E148: 18860.73 | F148: 18768.37 | G148: 18648.73 | H148: 19072.73 | I148: 19192.37 | J148: 19284.73 | K148: 19100 | L148: 18888 | M148: 0.26299
A149: 140 | B149: NAM-INDIA | C149: 206.1 | D149: 206.73 | E149: 203.42 | F149: 200.73 | G149: 197.42 | H149: 209.42 | I149: 212.73 | J149: 215.42 | K149: 210.05 | L149: 204.05 | M149: 7.08274
A150: 141 | B150: OBEROIRLTY | C150: 844.1 | D150: 846.90 | E150: 833.35 | F150: 822.60 | G150: 809.05 | H150: 857.65 | I150: 871.20 | J150: 881.95 | K150: 860.45 | L150: 836.15 | M150: 3.76893
A151: 142 | B151: ONGC | C151: 149.4 | D151: 150.47 | E151: 147.73 | F151: 146.07 | G151: 143.33 | H151: 152.13 | I151: 154.87 | J151: 156.53 | K151: 153.2 | L151: 148.8 | M151: 83.01726
A152: 143 | B152: OIL | C152: 250.8 | D152: 251.92 | E152: 246.23 | F152: 241.67 | G152: 235.98 | H152: 256.48 | I152: 262.17 | J152: 266.73 | K152: 257.6 | L152: 247.35 | M152: 12.04094
A153: 144 | B153: PAYTM | C153: 619.45 | D153: 621.33 | E153: 614.17 | F153: 608.88 | G153: 601.72 | H153: 626.62 | I153: 633.78 | J153: 639.07 | K153: 628.5 | L153: 616.05 | M153: 42.34985
A154: 145 | B154: OFSS | C154: 3201.15 | D154: 3202.60 | E154: 3183.40 | F154: 3165.65 | G154: 3146.45 | H154: 3220.35 | I154: 3239.55 | J154: 3257.30 | K154: 3221.8 | L154: 3184.85 | M154: 0.84758
A155: 146 | B155: POLICYBZR | C155: 578.7 | D155: 581.42 | E155: 572.28 | F155: 565.87 | G155: 556.73 | H155: 587.83 | I155: 596.97 | J155: 603.38 | K155: 590.55 | L155: 575 | M155: 10.23188
A156: 147 | B156: PIIND | C156: 2934.1 | D156: 2941.42 | E156: 2907.48 | F156: 2880.87 | G156: 2846.93 | H156: 2968.03 | I156: 3001.97 | J156: 3028.58 | K156: 2975.35 | L156: 2914.8 | M156: 1.48338
A157: 148 | B157: PAGEIND | C157: 37115.25 | D157: 37291.75 | E157: 36833.50 | F157: 36551.75 | G157: 36093.50 | H157: 37573.50 | I157: 38031.75 | J157: 38313.50 | K157: 37750 | L157: 37010 | M157: 0.1207
A158: 149 | B158: PATANJALI | C158: 904.65 | D158: 897.05 | E158: 882.10 | F158: 859.55 | G158: 844.60 | H158: 919.60 | I158: 934.55 | J158: 957.10 | K158: 912 | L158: 874.5 | M158: 3.21192
A159: 150 | B159: PERSISTENT | C159: 4324.8 | D159: 4396.93 | E159: 4243.87 | F159: 4162.93 | G159: 4009.87 | H159: 4477.87 | I159: 4630.93 | J159: 4711.87 | K159: 4550 | L159: 4316 | M159: 4.59946
A160: 151 | B160: PETRONET | C160: 223.9 | D160: 225.52 | E160: 220.88 | F160: 217.87 | G160: 213.23 | H160: 228.53 | I160: 233.17 | J160: 236.18 | K160: 230.15 | L160: 222.5 | M160: 17.36636
A161: 152 | B161: PIDILITIND | C161: 2364.55 | D161: 2365.07 | E161: 2351.13 | F161: 2337.72 | G161: 2323.78 | H161: 2378.48 | I161: 2392.42 | J161: 2405.83 | K161: 2379 | L161: 2351.65 | M161: 2.70195
A162: 153 | B162: POLYCAB | C162: 2818.6 | D162: 2831.55 | E162: 2792.05 | F162: 2765.50 | G162: 2726.00 | H162: 2858.10 | I162: 2897.60 | J162: 2924.15 | K162: 2871.05 | L162: 2805 | M162: 1.9327
A163: 154 | B163: POONAWALLA | C163: 279.1 | D163: 281.33 | E163: 274.77 | F163: 270.43 | G163: 263.87 | H163: 285.67 | I163: 292.23 | J163: 296.57 | K163: 287.9 | L163: 277 | M163: 14.35645
A164: 155 | B164: PFC | C164: 148.15 | D164: 149.18 | E164: 146.27 | F164: 144.38 | G164: 141.47 | H164: 151.07 | I164: 153.98 | J164: 155.87 | K164: 152.1 | L164: 147.3 | M164: 46.56997
A165: 156 | B165: POWERGRID | C165: 222.4 | D165: 222.48 | E165: 220.72 | F165: 219.03 | G165: 217.27 | H165: 224.17 | I165: 225.93 | J165: 227.62 | K165: 224.25 | L165: 220.8 | M165: 77.7875
A166: 157 | B166: PRESTIGE | C166: 413.65 | D166: 415.70 | E166: 409.55 | F166: 405.45 | G166: 399.30 | H166: 419.80 | I166: 425.95 | J166: 430.05 | K166: 421.85 | L166: 411.6 | M166: 0.74382
A167: 158 | B167: PGHH | C167: 13742.9 | D167: 13746.97 | E167: 13595.93 | F167: 13448.97 | G167: 13297.93 | H167: 13893.93 | I167: 14044.97 | J167: 14191.93 | K167: 13898 | L167: 13600 | M167: 0.02227
A168: 159 | B168: PNB | C168: 45.5 | D168: 45.92 | E168: 44.68 | F168: 43.87 | G168: 42.63 | H168: 46.73 | I168: 47.97 | J168: 48.78 | K168: 47.15 | L168: 45.1 | M168: 414.76341
A169: 160 | B169: RECLTD | C169: 115.15 | D169: 115.82 | E169: 114.13 | F169: 113.12 | G169: 111.43 | H169: 116.83 | I169: 118.52 | J169: 119.53 | K169: 117.5 | L169: 114.8 | M169: 40.63763
A170: 161 | B170: RELIANCE | C170: 2203.3 | D170: 2217.10 | E170: 2184.20 | F170: 2165.10 | G170: 2132.20 | H170: 2236.20 | I170: 2269.10 | J170: 2288.20 | K170: 2250 | L170: 2198 | M170: 57.11497
A171: 162 | B171: SBICARD | C171: 723.55 | D171: 720.87 | E171: 714.38 | F171: 705.22 | G171: 698.73 | H171: 730.03 | I171: 736.52 | J171: 745.68 | K171: 727.35 | L171: 711.7 | M171: 7.15091
A172: 163 | B172: SBILIFE | C172: 1112.2 | D172: 1107.52 | E172: 1093.18 | F172: 1074.17 | G172: 1059.83 | H172: 1126.53 | I172: 1140.87 | J172: 1159.88 | K172: 1121.85 | L172: 1088.5 | M172: 10.19781
A173: 164 | B173: SRF | C173: 2381.45 | D173: 2383.40 | E173: 2369.20 | F173: 2356.95 | G173: 2342.75 | H173: 2395.65 | I173: 2409.85 | J173: 2422.10 | K173: 2397.6 | L173: 2371.15 | M173: 3.00095
A174: 165 | B174: MOTHERSON | C174: 64.75 | D174: 65.07 | E174: 63.88 | F174: 63.02 | G174: 61.83 | H174: 65.93 | I174: 67.12 | J174: 67.98 | K174: 66.25 | L174: 64.2 | M174: 136.29859
A175: 166 | B175: SHREECEM | C175: 25511.65 | D175: 25404.08 | E175: 25218.17 | F175: 24924.68 | G175: 24738.77 | H175: 25697.57 | I175: 25883.48 | J175: 26176.97 | K175: 25590 | L175: 25110.6 | M175: 0.35202
A176: 167 | B176: SHRIRAMFIN | C176: 1233.2 | D176: 1239.17 | E176: 1219.03 | F176: 1204.87 | G176: 1184.73 | H176: 1253.33 | I176: 1273.47 | J176: 1287.63 | K176: 1259.3 | L176: 1225 | M176: 8.58054
A177: 168 | B177: SIEMENS | C177: 3333.45 | D177: 3329.77 | E177: 3309.53 | F177: 3285.62 | G177: 3265.38 | H177: 3353.68 | I177: 3373.92 | J177: 3397.83 | K177: 3350 | L177: 3305.85 | M177: 3.32004
A178: 169 | B178: SONACOMS | C178: 410.75 | D178: 412.10 | E178: 405.40 | F178: 400.05 | G178: 393.35 | H178: 417.45 | I178: 424.15 | J178: 429.50 | K178: 418.8 | L178: 406.75 | M178: 11.76131
A179: 170 | B179: SBIN | C179: 505.35 | D179: 507.92 | E179: 500.88 | F179: 496.42 | G179: 489.38 | H179: 512.38 | I179: 519.42 | J179: 523.88 | K179: 514.95 | L179: 503.45 | M179: 144.16984
A180: 171 | B180: SAIL | C180: 82.35 | D180: 83.13 | E180: 81.22 | F180: 80.08 | G180: 78.17 | H180: 84.27 | I180: 86.18 | J180: 87.32 | K180: 85.05 | L180: 82 | M180: 205.99895
A181: 172 | B181: SUNPHARMA | C181: 972.85 | D181: 973.28 | E181: 967.57 | F181: 962.28 | G181: 956.57 | H181: 978.57 | I181: 984.28 | J181: 989.57 | K181: 979 | L181: 968 | M181: 15.34322
A182: 173 | B182: SUNTV | C182: 418.65 | D182: 421.28 | E182: 413.87 | F182: 409.08 | G182: 401.67 | H182: 426.07 | I182: 433.48 | J182: 438.27 | K182: 428.7 | L182: 416.5 | M182: 2.79874
A183: 174 | B183: SYNGENE | C183: 575.2 | D183: 576.68 | E183: 571.57 | F183: 567.93 | G183: 562.82 | H183: 580.32 | I183: 585.43 | J183: 589.07 | K183: 581.8 | L183: 573.05 | M183: 2.34182
A184: 175 | B184: TVSMOTOR | C184: 1042 | D184: 1048.73 | E184: 1033.62 | F184: 1025.23 | G184: 1010.12 | H184: 1057.12 | I184: 1072.23 | J184: 1080.62 | K184: 1063.85 | L184: 1040.35 | M184: 7.53161
A185: 176 | B185: TATACHEM | C185: 953.95 | D185: 957.98 | E185: 945.97 | F185: 937.98 | G185: 925.97 | H185: 965.97 | I185: 977.98 | J185: 985.97 | K185: 970 | L185: 950 | M185: 5.72686
A186: 177 | B186: TATACOMM | C186: 1223.2 | D186: 1222.08 | E186: 1211.22 | F186: 1199.23 | G186: 1188.37 | H186: 1234.07 | I186: 1244.93 | J186: 1256.92 | K186: 1232.95 | L186: 1210.1 | M186: 4.23363
A187: 178 | B187: TCS | C187: 3120.5 | D187: 3132.17 | E187: 3094.33 | F187: 3068.17 | G187: 3030.33 | H187: 3158.33 | I187: 3196.17 | J187: 3222.33 | K187: 3170 | L187: 3106 | M187: 13.29577
A188: 179 | B188: TATACONSUM | C188: 702.35 | D188: 703.63 | E188: 697.57 | F188: 692.78 | G188: 686.72 | H188: 708.42 | I188: 714.48 | J188: 719.27 | K188: 709.7 | L188: 698.85 | M188: 9.6047
A189: 180 | B189: TATAELXSI | C189: 6000.7 | D189: 6018.73 | E189: 5952.47 | F189: 5904.23 | G189: 5837.97 | H189: 6066.97 | I189: 6133.23 | J189: 6181.47 | K189: 6085 | L189: 5970.5 | M189: 1.04926
A190: 181 | B190: TATAMOTORS | C190: 416.5 | D190: 417.28 | E190: 414.02 | F190: 411.53 | G190: 408.27 | H190: 419.77 | I190: 423.03 | J190: 425.52 | K190: 420.55 | L190: 414.8 | M190: 68.7796
A191: 182 | B191: TATAPOWER | C191: 192.75 | D191: 195.37 | E191: 189.48 | F191: 186.22 | G191: 180.33 | H191: 198.63 | I191: 204.52 | J191: 207.78 | K191: 201.25 | L191: 192.1 | M191: 160.10459
A192: 183 | B192: TATASTEEL | C192: 102.1 | D192: 102.90 | E192: 100.75 | F192: 99.40 | G192: 97.25 | H192: 104.25 | I192: 106.40 | J192: 107.75 | K192: 105.05 | L192: 101.55 | M192: 390.14278
A193: 184 | B193: TTML | C193: 55.25 | D193: 56.12 | E193: 54.18 | F193: 53.12 | G193: 51.18 | H193: 57.18 | I193: 59.12 | J193: 60.18 | K193: 58.05 | L193: 55.05 | M193: 17.26534
A194: 185 | B194: TECHM | C194: 1101.95 | D194: 1105.53 | E194: 1093.07 | F194: 1084.18 | G194: 1071.72 | H194: 1114.42 | I194: 1126.88 | J194: 1135.77 | K194: 1118 | L194: 1096.65 | M194: 19.4346
A195: 186 | B195: RAMCOCEM | C195: 744.5 | D195: 739.77 | E195: 732.73 | F195: 720.97 | G195: 713.93 | H195: 751.53 | I195: 758.57 | J195: 770.33 | K195: 746.8 | L195: 728 | M195: 6.50793
A196: 187 | B196: TITAN | C196: 2493.35 | D196: 2496.00 | E196: 2472.30 | F196: 2451.25 | G196: 2427.55 | H196: 2517.05 | I196: 2540.75 | J196: 2561.80 | K196: 2519.7 | L196: 2474.95 | M196: 8.38919
A197: 188 | B197: TORNTPHARM | C197: 1517.9 | D197: 1521.37 | E197: 1505.38 | F197: 1492.87 | G197: 1476.88 | H197: 1533.88 | I197: 1549.87 | J197: 1562.38 | K197: 1537.35 | L197: 1508.85 | M197: 1.10379
A198: 189 | B198: TORNTPOWER | C198: 502.9 | D198: 506.88 | E198: 496.52 | F198: 490.13 | G198: 479.77 | H198: 513.27 | I198: 523.63 | J198: 530.02 | K198: 517.25 | L198: 500.5 | M198: 4.10113
A199: 190 | B199: TRENT | C199: 1310.05 | D199: 1320.02 | E199: 1295.03 | F199: 1280.02 | G199: 1255.03 | H199: 1335.03 | I199: 1360.02 | J199: 1375.03 | K199: 1345 | L199: 1305 | M199: 3.1637
A200: 191 | B200: TRIDENT | C200: 27.1 | D200: 27.35 | E200: 26.75 | F200: 26.40 | G200: 25.80 | H200: 27.70 | I200: 28.30 | J200: 28.65 | K200: 27.95 | L200: 27 | M200: 54.94765
A201: 192 | B201: TIINDIA | C201: 2551.4 | D201: 2533.82 | E201: 2496.73 | F201: 2442.07 | G201: 2404.98 | H201: 2588.48 | I201: 2625.57 | J201: 2680.23 | K201: 2570.9 | L201: 2479.15 | M201: 1.52502
A202: 193 | B202: UPL | C202: 696.9 | D202: 701.63 | E202: 689.47 | F202: 682.03 | G202: 669.87 | H202: 709.07 | I202: 721.23 | J202: 728.67 | K202: 713.8 | L202: 694.2 | M202: 9.82591
A203: 194 | B203: ULTRACEMCO | C203: 7405.65 | D203: 7388.13 | E203: 7345.07 | F203: 7284.48 | G203: 7241.42 | H203: 7448.72 | I203: 7491.78 | J203: 7552.37 | K203: 7431.2 | L203: 7327.55 | M203: 2.28994
A204: 195 | B204: UNIONBANK | C204: 63.4 | D204: 63.92 | E204: 62.03 | F204: 60.67 | G204: 58.78 | H204: 65.28 | I204: 67.17 | J204: 68.53 | K204: 65.8 | L204: 62.55 | M204: 91.2325
A205: 196 | B205: UBL | C205: 1436.75 | D205: 1436.32 | E205: 1429.13 | F205: 1421.52 | G205: 1414.33 | H205: 1443.93 | I205: 1451.12 | J205: 1458.73 | K205: 1443.5 | L205: 1428.7 | M205: 0.72986
... 29 more rows

Sheet MidCap Intra
L5: Back To Main Page
A6: FOR INTRA DAY TRADING | K6: =Main!B10 -> 2023-03-27
A9: Sr.no | B9: Scrip | C9: CLOSE RATE | D9: Pivot Point | E9: Supports | H9: Resistances
E10: S1 | F10: S2 | G10: S3 | H10: R1 | I10: R2 | J10: R3 | K10: HIGH | L10: LOW | M10: Total Trade Quanity in Lakhs
A11: 1 | B11: 360ONE | C11: 429.1 | D11: 427.97 | E11: 421.08 | F11: 413.07 | G11: 406.18 | H11: 435.98 | I11: 442.87 | J11: 450.88 | K11: 434.85 | L11: 419.95 | M11: 1.38825
A12: 2 | B12: 3MINDIA | C12: 22323.05 | D12: 22193.67 | E12: 21859.38 | F12: 21395.72 | G12: 21061.43 | H12: 22657.33 | I12: 22991.62 | J12: 23455.28 | K12: 22527.95 | L12: 21730 | M12: 0.02615
A13: 3 | B13: ABB | C13: 3346.7 | D13: 3356.23 | E13: 3320.47 | F13: 3294.23 | G13: 3258.47 | H13: 3382.47 | I13: 3418.23 | J13: 3444.47 | K13: 3392 | L13: 3330 | M13: 1.80779
A14: 4 | B14: ACC | C14: 1700.85 | D14: 1713.78 | E14: 1681.62 | F14: 1662.38 | G14: 1630.22 | H14: 1733.02 | I14: 1765.18 | J14: 1784.42 | K14: 1745.95 | L14: 1694.55 | M14: 5.30916
A15: 5 | B15: AIAENG | C15: 2843.05 | D15: 2846.98 | E15: 2799.97 | F15: 2756.88 | G15: 2709.87 | H15: 2890.07 | I15: 2937.08 | J15: 2980.17 | K15: 2894 | L15: 2803.9 | M15: 0.62368
A16: 6 | B16: APLAPOLLO | C16: 1208.95 | D16: 1222.48 | E16: 1191.97 | F16: 1174.98 | G16: 1144.47 | H16: 1239.47 | I16: 1269.98 | J16: 1286.97 | K16: 1253 | L16: 1205.5 | M16: 2.76927
A17: 7 | B17: AUBANK | C17: 559.9 | D17: 559.37 | E17: 548.53 | F17: 537.17 | G17: 526.33 | H17: 570.73 | I17: 581.57 | J17: 592.93 | K17: 570.2 | L17: 548 | M17: 21.78563
A18: 8 | B18: AARTIDRUGS | C18: 386.6 | D18: 388.53 | E18: 372.37 | F18: 358.13 | G18: 341.97 | H18: 402.77 | I18: 418.93 | J18: 433.17 | K18: 404.7 | L18: 374.3 | M18: 76.37327
A19: 9 | B19: AAVAS | C19: 1682.9 | D19: 1684.68 | E19: 1660.37 | F19: 1637.83 | G19: 1613.52 | H19: 1707.22 | I19: 1731.53 | J19: 1754.07 | K19: 1709 | L19: 1662.15 | M19: 0.85231
A20: 10 | B20: ABBOTINDIA | C20: 21128.9 | D20: 21287.75 | E20: 20897.50 | F20: 20666.10 | G20: 20275.85 | H20: 21519.15 | I20: 21909.40 | J20: 22140.80 | K20: 21678 | L20: 21056.35 | M20: 0.05596
A21: 11 | B21: ADANIENT | C21: 1740.65 | D21: 1752.97 | E21: 1682.93 | F21: 1625.22 | G21: 1555.18 | H21: 1810.68 | I21: 1880.72 | J21: 1938.43 | K21: 1823 | L21: 1695.25 | M21: 61.87968
A22: 12 | B22: ADANIGREEN | C22: 1029.35 | D22: 1001.15 | E22: 970.85 | F22: 912.35 | G22: 882.05 | H22: 1059.65 | I22: 1089.95 | J22: 1148.45 | K22: 1031.45 | L22: 942.65 | M22: 129.23291
A23: 13 | B23: ADANIPORTS | C23: 638 | D23: 644.20 | E23: 627.75 | F23: 617.50 | G23: 601.05 | H23: 654.45 | I23: 670.90 | J23: 681.15 | K23: 660.65 | L23: 633.95 | M23: 60.72701
A24: 14 | B24: ATGL | C24: 1007.45 | D24: 994.20 | E24: 957.25 | F24: 907.05 | G24: 870.10 | H24: 1044.40 | I24: 1081.35 | J24: 1131.55 | K24: 1031.15 | L24: 944 | M24: 50.23306
A25: 15 | B25: ADANITRANS | C25: 1124.55 | D25: 1101.82 | E25: 1065.03 | F25: 1005.52 | G25: 968.73 | H25: 1161.33 | I25: 1198.12 | J25: 1257.63 | K25: 1138.6 | L25: 1042.3 | M25: 38.75691
A26: 16 | B26: AWL | C26: 407.7 | D26: 414.25 | E26: 399.95 | F26: 392.20 | G26: 377.90 | H26: 422.00 | I26: 436.30 | J26: 444.05 | K26: 428.55 | L26: 406.5 | M26: 29.4288
A27: 17 | B27: ABCAPITAL | C27: 144.05 | D27: 146.52 | E27: 140.23 | F27: 136.42 | G27: 130.13 | H27: 150.33 | I27: 156.62 | J27: 160.43 | K27: 152.8 | L27: 142.7 | M27: 72.96594
A28: 18 | B28: ABFRL | C28: 211.9 | D28: 211.58 | E28: 209.42 | F28: 206.93 | G28: 204.77 | H28: 214.07 | I28: 216.23 | J28: 218.72 | K28: 213.75 | L28: 209.1 | M28: 26.39184
A29: 19 | B29: ABSLAMC | C29: 339.75 | D29: 344.30 | E29: 334.45 | F29: 329.15 | G29: 319.30 | H29: 349.60 | I29: 359.45 | J29: 364.75 | K29: 354.15 | L29: 339 | M29: 2.49577
A30: 20 | B30: AEGISCHEM | C30: 397.65 | D30: 392.80 | E30: 386.10 | F30: 374.55 | G30: 367.85 | H30: 404.35 | I30: 411.05 | J30: 422.60 | K30: 399.5 | L30: 381.25 | M30: 13.10553
A31: 21 | B31: AETHER | C31: 885.75 | D31: 888.27 | E31: 877.53 | F31: 869.32 | G31: 858.58 | H31: 896.48 | I31: 907.22 | J31: 915.43 | K31: 899 | L31: 880.05 | M31: 0.30434
A32: 22 | B32: AFFLE | C32: 950.1 | D32: 958.32 | E32: 938.43 | F32: 926.77 | G32: 906.88 | H32: 969.98 | I32: 989.87 | J32: 1001.53 | K32: 978.2 | L32: 946.65 | M32: 0.77901
A33: 23 | B33: AJANTPHARM | C33: 1184.3 | D33: 1176.13 | E33: 1139.87 | F33: 1095.43 | G33: 1059.17 | H33: 1220.57 | I33: 1256.83 | J33: 1301.27 | K33: 1212.4 | L33: 1131.7 | M33: 2.6817
A34: 24 | B34: APLLTD | C34: 484.75 | D34: 486.82 | E34: 480.93 | F34: 477.12 | G34: 471.23 | H34: 490.63 | I34: 496.52 | J34: 500.33 | K34: 492.7 | L34: 483 | M34: 0.48915
A35: 25 | B35: ALKEM | C35: 3153.75 | D35: 3166.92 | E35: 3131.83 | F35: 3109.92 | G35: 3074.83 | H35: 3188.83 | I35: 3223.92 | J35: 3245.83 | K35: 3202 | L35: 3145 | M35: 0.63939
A36: 26 | B36: ALKYLAMINE | C36: 2295.3 | D36: 2305.27 | E36: 2280.03 | F36: 2264.77 | G36: 2239.53 | H36: 2320.53 | I36: 2345.77 | J36: 2361.03 | K36: 2330.5 | L36: 2290 | M36: 0.17863
A37: 27 | B37: ALOKINDS | C37: 12.3 | D37: 12.45 | E37: 12.15 | F37: 12.00 | G37: 11.70 | H37: 12.60 | I37: 12.90 | J37: 13.05 | K37: 12.75 | L37: 12.3 | M37: 28.87531
A38: 28 | B38: AMARAJABAT | C38: 563 | D38: 566.73 | E38: 558.37 | F38: 553.73 | G38: 545.37 | H38: 571.37 | I38: 579.73 | J38: 584.37 | K38: 575.1 | L38: 562.1 | M38: 1.9135
A39: 29 | B39: AMBER | C39: 1812.1 | D39: 1832.03 | E39: 1780.07 | F39: 1748.03 | G39: 1696.07 | H39: 1864.07 | I39: 1916.03 | J39: 1948.07 | K39: 1884 | L39: 1800 | M39: 0.52101
A40: 30 | B40: AMBUJACEM | C40: 371.8 | D40: 372.12 | E40: 367.73 | F40: 363.67 | G40: 359.28 | H40: 376.18 | I40: 380.57 | J40: 384.63 | K40: 376.5 | L40: 368.05 | M40: 95.12792
A41: 31 | B41: ANGELONE | C41: 1131.95 | D41: 1150.68 | E41: 1096.37 | F41: 1060.78 | G41: 1006.47 | H41: 1186.27 | I41: 1240.58 | J41: 1276.17 | K41: 1205 | L41: 1115.1 | M41: 14.4585
A42: 32 | B42: ANURAS | C42: 855 | D42: 850.33 | E42: 841.67 | F42: 828.33 | G42: 819.67 | H42: 863.67 | I42: 872.33 | J42: 885.67 | K42: 859 | L42: 837 | M42: 5.43553
A43: 33 | B43: APOLLOHOSP | C43: 4283.35 | D43: 4299.67 | E43: 4244.68 | F43: 4206.02 | G43: 4151.03 | H43: 4338.33 | I43: 4393.32 | J43: 4431.98 | K43: 4354.65 | L43: 4261 | M43: 3.54933
A44: 34 | B44: APOLLOTYRE | C44: 306.05 | D44: 308.23 | E44: 303.02 | F44: 299.98 | G44: 294.77 | H44: 311.27 | I44: 316.48 | J44: 319.52 | K44: 313.45 | L44: 305.2 | M44: 27.21241
A45: 35 | B45: APTUS | C45: 244.7 | D45: 245.17 | E45: 242.53 | F45: 240.37 | G45: 237.73 | H45: 247.33 | I45: 249.97 | J45: 252.13 | K45: 247.8 | L45: 243 | M45: 1.70533
A46: 36 | B46: ASAHIINDIA | C46: 454.3 | D46: 457.65 | E46: 447.30 | F46: 440.30 | G46: 429.95 | H46: 464.65 | I46: 475.00 | J46: 482.00 | K46: 468 | L46: 450.65 | M46: 0.47853
A47: 37 | B47: ASHOKLEY | C47: 137.65 | D47: 137.87 | E47: 136.48 | F47: 135.32 | G47: 133.93 | H47: 139.03 | I47: 140.42 | J47: 141.58 | K47: 139.25 | L47: 136.7 | M47: 102.15449
A48: 38 | B48: ASIANPAINT | C48: 2798.5 | D48: 2795.67 | E48: 2775.68 | F48: 2752.87 | G48: 2732.88 | H48: 2818.48 | I48: 2838.47 | J48: 2861.28 | K48: 2815.65 | L48: 2772.85 | M48: 7.84111
A49: 39 | B49: ASTERDM | C49: 238.05 | D49: 238.22 | E49: 235.33 | F49: 232.62 | G49: 229.73 | H49: 240.93 | I49: 243.82 | J49: 246.53 | K49: 241.1 | L49: 235.5 | M49: 1.54681
A50: 40 | B50: ASTRAZEN | C50: 3358.55 | D50: 3350.18 | E50: 3325.37 | F50: 3292.18 | G50: 3267.37 | H50: 3383.37 | I50: 3408.18 | J50: 3441.37 | K50: 3375 | L50: 3317 | M50: 0.04489
A51: 41 | B51: ASTRAL | C51: 1333.55 | D51: 1337.53 | E51: 1321.12 | F51: 1308.68 | G51: 1292.27 | H51: 1349.97 | I51: 1366.38 | J51: 1378.82 | K51: 1353.95 | L51: 1325.1 | M51: 4.69411
A52: 42 | B52: ATUL | C52: 6921.55 | D52: 6904.52 | E52: 6857.03 | F52: 6792.52 | G52: 6745.03 | H52: 6969.03 | I52: 7016.52 | J52: 7081.03 | K52: 6952 | L52: 6840 | M52: 0.24482
A53: 43 | B53: AUROPHARMA | C53: 500.45 | D53: 496.15 | E53: 489.30 | F53: 478.15 | G53: 471.30 | H53: 507.30 | I53: 514.15 | J53: 525.30 | K53: 503 | L53: 485 | M53: 41.23319
A54: 44 | B54: AVANTIFEED | C54: 335.35 | D54: 334.42 | E54: 331.83 | F54: 328.32 | G54: 325.73 | H54: 337.93 | I54: 340.52 | J54: 344.03 | K54: 337 | L54: 330.9 | M54: 1.87622
A55: 45 | B55: DMART | C55: 3358.4 | D55: 3364.83 | E55: 3343.62 | F55: 3328.83 | G55: 3307.62 | H55: 3379.62 | I55: 3400.83 | J55: 3415.62 | K55: 3386.05 | L55: 3350.05 | M55: 1.78783
A56: 46 | B56: AXISBANK | C56: 839.9 | D56: 843.22 | E56: 833.93 | F56: 827.97 | G56: 818.68 | H56: 849.18 | I56: 858.47 | J56: 864.43 | K56: 852.5 | L56: 837.25 | M56: 80.78718
A57: 47 | B57: BASF | C57: 2283.9 | D57: 2294.98 | E57: 2264.02 | F57: 2244.13 | G57: 2213.17 | H57: 2314.87 | I57: 2345.83 | J57: 2365.72 | K57: 2325.95 | L57: 2275.1 | M57: 0.0546
A58: 48 | B58: BEML | C58: 1274.45 | D58: 1261.25 | E58: 1243.50 | F58: 1212.55 | G58: 1194.80 | H58: 1292.20 | I58: 1309.95 | J58: 1340.90 | K58: 1279 | L58: 1230.3 | M58: 3.94244
A59: 49 | B59: BSE | C59: 425.45 | D59: 430.32 | E59: 417.33 | F59: 409.22 | G59: 396.23 | H59: 438.43 | I59: 451.42 | J59: 459.53 | K59: 443.3 | L59: 422.2 | M59: 6.34896
A60: 50 | B60: BAJAJ-AUTO | C60: 3827.9 | D60: 3840.93 | E60: 3798.97 | F60: 3770.03 | G60: 3728.07 | H60: 3869.87 | I60: 3911.83 | J60: 3940.77 | K60: 3882.9 | L60: 3812 | M60: 2.81359
A61: 51 | B61: BAJAJELEC | C61: 1105.35 | D61: 1097.58 | E61: 1085.82 | F61: 1066.28 | G61: 1054.52 | H61: 1117.12 | I61: 1128.88 | J61: 1148.42 | K61: 1109.35 | L61: 1078.05 | M61: 0.42061
A62: 52 | B62: BAJFINANCE | C62: 5649.25 | D62: 5702.07 | E62: 5574.38 | F62: 5499.52 | G62: 5371.83 | H62: 5776.93 | I62: 5904.62 | J62: 5979.48 | K62: 5829.75 | L62: 5627.2 | M62: 12.78042
A63: 53 | B63: BAJAJFINSV | C63: 1240.65 | D63: 1255.62 | E63: 1221.23 | F63: 1201.82 | G63: 1167.43 | H63: 1275.03 | I63: 1309.42 | J63: 1328.83 | K63: 1290 | L63: 1236.2 | M63: 26.76573
A64: 54 | B64: BAJAJHLDNG | C64: 6034.25 | D64: 6023.78 | E64: 5988.37 | F64: 5942.48 | G64: 5907.07 | H64: 6069.67 | I64: 6105.08 | J64: 6150.97 | K64: 6059.2 | L64: 5977.9 | M64: 0.13838
A65: 55 | B65: BALAMINES | C65: 2022.15 | D65: 2042.58 | E65: 1996.42 | F65: 1970.68 | G65: 1924.52 | H65: 2068.32 | I65: 2114.48 | J65: 2140.22 | K65: 2088.75 | L65: 2016.85 | M65: 0.38388
A66: 56 | B66: BALKRISIND | C66: 1967.65 | D66: 1970.70 | E66: 1952.95 | F66: 1938.25 | G66: 1920.50 | H66: 1985.40 | I66: 2003.15 | J66: 2017.85 | K66: 1988.45 | L66: 1956 | M66: 1.68922
A67: 57 | B67: BALRAMCHIN | C67: 368.6 | D67: 370.35 | E67: 364.65 | F67: 360.70 | G67: 355.00 | H67: 374.30 | I67: 380.00 | J67: 383.95 | K67: 376.05 | L67: 366.4 | M67: 11.858
A68: 58 | B68: BANDHANBNK | C68: 203.1 | D68: 206.03 | E68: 199.07 | F68: 195.03 | G68: 188.07 | H68: 210.07 | I68: 217.03 | J68: 221.07 | K68: 213 | L68: 202 | M68: 79.57836
A69: 59 | B69: BANKBARODA | C69: 159.8 | D69: 160.97 | E69: 157.98 | F69: 156.17 | G69: 153.18 | H69: 162.78 | I69: 165.77 | J69: 167.58 | K69: 163.95 | L69: 159.15 | M69: 186.10261
A70: 60 | B70: BANKINDIA | C70: 70.35 | D70: 71.30 | E70: 68.65 | F70: 66.95 | G70: 64.30 | H70: 73.00 | I70: 75.65 | J70: 77.35 | K70: 73.95 | L70: 69.6 | M70: 93.32025
A71: 61 | B71: MAHABANK | C71: 24.2 | D71: 24.45 | E71: 23.70 | F71: 23.20 | G71: 22.45 | H71: 24.95 | I71: 25.70 | J71: 26.20 | K71: 25.2 | L71: 23.95 | M71: 82.31322
A72: 62 | B72: BATAINDIA | C72: 1416.4 | D72: 1412.05 | E72: 1404.95 | F72: 1393.50 | G72: 1386.40 | H72: 1423.50 | I72: 1430.60 | J72: 1442.05 | K72: 1419.15 | L72: 1400.6 | M72: 8.43508
A73: 63 | B73: BAYERCROP | C73: 4000.55 | D73: 3993.52 | E73: 3977.03 | F73: 3953.52 | G73: 3937.03 | H73: 4017.03 | I73: 4033.52 | J73: 4057.03 | K73: 4010 | L73: 3970 | M73: 0.05761
A74: 64 | B74: BERGEPAINT | C74: 573.7 | D74: 573.22 | E74: 568.58 | F74: 563.47 | G74: 558.83 | H74: 578.33 | I74: 582.97 | J74: 588.08 | K74: 577.85 | L74: 568.1 | M74: 5.07905
A75: 65 | B75: BDL | C75: 895.15 | D75: 897.27 | E75: 881.53 | F75: 867.92 | G75: 852.18 | H75: 910.88 | I75: 926.62 | J75: 940.23 | K75: 913 | L75: 883.65 | M75: 3.58819
A76: 66 | B76: BEL | C76: 91.55 | D76: 92.42 | E76: 90.33 | F76: 89.12 | G76: 87.03 | H76: 93.63 | I76: 95.72 | J76: 96.93 | K76: 94.5 | L76: 91.2 | M76: 166.50432
A77: 67 | B77: BHARATFORG | C77: 764.8 | D77: 766.48 | E77: 759.32 | F77: 753.83 | G77: 746.67 | H77: 771.97 | I77: 779.13 | J77: 784.62 | K77: 773.65 | L77: 761 | M77: 4.90579
A78: 68 | B78: BHEL | C78: 71.8 | D78: 72.57 | E78: 70.63 | F78: 69.47 | G78: 67.53 | H78: 73.73 | I78: 75.67 | J78: 76.83 | K78: 74.5 | L78: 71.4 | M78: 88.53059
A79: 69 | B79: BPCL | C79: 345.4 | D79: 346.38 | E79: 343.02 | F79: 340.63 | G79: 337.27 | H79: 348.77 | I79: 352.13 | J79: 354.52 | K79: 349.75 | L79: 344 | M79: 29.37744
A80: 70 | B80: BHARATRAS | C80: 9521.7 | D80: 9507.57 | E80: 9450.13 | F80: 9378.57 | G80: 9321.13 | H80: 9579.13 | I80: 9636.57 | J80: 9708.13 | K80: 9565 | L80: 9436 | M80: 0.01718
A81: 71 | B81: BHARTIARTL | C81: 762.45 | D81: 762.77 | E81: 758.53 | F81: 754.62 | G81: 750.38 | H81: 766.68 | I81: 770.92 | J81: 774.83 | K81: 767 | L81: 758.85 | M81: 23.36818
A82: 72 | B82: BIOCON | C82: 198.7 | D82: 200.78 | E82: 194.57 | F82: 190.43 | G82: 184.22 | H82: 204.92 | I82: 211.13 | J82: 215.27 | K82: 207 | L82: 196.65 | M82: 69.0726
A83: 73 | B83: BIRLACORPN | C83: 934.9 | D83: 933.83 | E83: 923.77 | F83: 912.63 | G83: 902.57 | H83: 944.97 | I83: 955.03 | J83: 966.17 | K83: 943.9 | L83: 922.7 | M83: 0.90046
A84: 74 | B84: BSOFT | C84: 264.7 | D84: 267.40 | E84: 260.35 | F84: 256.00 | G84: 248.95 | H84: 271.75 | I84: 278.80 | J84: 283.15 | K84: 274.45 | L84: 263.05 | M84: 24.53889
A85: 75 | B85: BLUEDART | C85: 6090.1 | D85: 6105.80 | E85: 6051.60 | F85: 6013.10 | G85: 5958.90 | H85: 6144.30 | I85: 6198.50 | J85: 6237.00 | K85: 6160 | L85: 6067.3 | M85: 0.08868
A86: 76 | B86: BLUESTARCO | C86: 1428.7 | D86: 1443.25 | E86: 1407.50 | F86: 1386.30 | G86: 1350.55 | H86: 1464.45 | I86: 1500.20 | J86: 1521.40 | K86: 1479 | L86: 1422.05 | M86: 1.08895
A87: 77 | B87: BBTC | C87: 831 | D87: 834.35 | E87: 824.75 | F87: 818.50 | G87: 808.90 | H87: 840.60 | I87: 850.20 | J87: 856.45 | K87: 843.95 | L87: 828.1 | M87: 0.2836
A88: 78 | B88: BORORENEW | C88: 428.6 | D88: 432.03 | E88: 422.57 | F88: 416.53 | G88: 407.07 | H88: 438.07 | I88: 447.53 | J88: 453.57 | K88: 441.5 | L88: 426 | M88: 1.44971
A89: 79 | B89: BOSCHLTD | C89: 18452.65 | D89: 18437.18 | E89: 18324.37 | F89: 18196.08 | G89: 18083.27 | H89: 18565.47 | I89: 18678.28 | J89: 18806.57 | K89: 18550 | L89: 18308.9 | M89: 0.21757
A90: 80 | B90: BRIGADE | C90: 455.15 | D90: 458.18 | E90: 451.92 | F90: 448.68 | G90: 442.42 | H90: 461.42 | I90: 467.68 | J90: 470.92 | K90: 464.45 | L90: 454.95 | M90: 0.41449
A91: 81 | B91: BCG | C91: 18.85 | D91: 19.17 | E91: 18.28 | F91: 17.72 | G91: 16.83 | H91: 19.73 | I91: 20.62 | J91: 21.18 | K91: 20.05 | L91: 18.6 | M91: 473.14644
A92: 82 | B92: BRITANNIA | C92: 4199.95 | D92: 4210.60 | E92: 4179.20 | F92: 4158.45 | G92: 4127.05 | H92: 4231.35 | I92: 4262.75 | J92: 4283.50 | K92: 4242 | L92: 4189.85 | M92: 1.98393
A93: 83 | B93: MAPMYINDIA | C93: 1057.1 | D93: 1060.37 | E93: 1040.73 | F93: 1024.37 | G93: 1004.73 | H93: 1076.73 | I93: 1096.37 | J93: 1112.73 | K93: 1080 | L93: 1044 | M93: 0.29063
A94: 84 | B94: CCL | C94: 558.2 | D94: 559.25 | E94: 553.95 | F94: 549.70 | G94: 544.40 | H94: 563.50 | I94: 568.80 | J94: 573.05 | K94: 564.55 | L94: 555 | M94: 0.52367
A95: 85 | B95: CESC | C95: 66.8 | D95: 67.25 | E95: 66.25 | F95: 65.70 | G95: 64.70 | H95: 67.80 | I95: 68.80 | J95: 69.35 | K95: 68.25 | L95: 66.7 | M95: 12.27745
A96: 86 | B96: CGPOWER | C96: 288.75 | D96: 290.57 | E96: 284.28 | F96: 279.82 | G96: 273.53 | H96: 295.03 | I96: 301.32 | J96: 305.78 | K96: 296.85 | L96: 286.1 | M96: 10.60023
A97: 87 | B97: CRISIL | C97: 3048.75 | D97: 3067.82 | E97: 3006.63 | F97: 2964.52 | G97: 2903.33 | H97: 3109.93 | I97: 3171.12 | J97: 3213.23 | K97: 3129 | L97: 3025.7 | M97: 0.16727
A98: 88 | B98: CSBBANK | C98: 238.05 | D98: 241.70 | E98: 232.70 | F98: 227.35 | G98: 218.35 | H98: 247.05 | I98: 256.05 | J98: 261.40 | K98: 250.7 | L98: 236.35 | M98: 3.29461
A99: 89 | B99: CAMPUS | C99: 338.55 | D99: 342.88 | E99: 330.77 | F99: 322.98 | G99: 310.87 | H99: 350.67 | I99: 362.78 | J99: 370.57 | K99: 355 | L99: 335.1 | M99: 354.87175
A100: 90 | B100: CANFINHOME | C100: 524.9 | D100: 529.22 | E100: 516.68 | F100: 508.47 | G100: 495.93 | H100: 537.43 | I100: 549.97 | J100: 558.18 | K100: 541.75 | L100: 521 | M100: 3.86989
A101: 91 | B101: CANBK | C101: 273.8 | D101: 275.87 | E101: 270.28 | F101: 266.77 | G101: 261.18 | H101: 279.38 | I101: 284.97 | J101: 288.48 | K101: 281.45 | L101: 272.35 | M101: 64.42538
A102: 92 | B102: CAPLIPOINT | C102: 597.6 | D102: 598.47 | E102: 590.23 | F102: 582.87 | G102: 574.63 | H102: 605.83 | I102: 614.07 | J102: 621.43 | K102: 606.7 | L102: 591.1 | M102: 1.29626
A103: 93 | B103: CGCL | C103: 571.3 | D103: 572.13 | E103: 570.17 | F103: 569.03 | G103: 567.07 | H103: 573.27 | I103: 575.23 | J103: 576.37 | K103: 574.1 | L103: 571 | M103: 0.44642
A104: 94 | B104: CARBORUNIV | C104: 935.85 | D104: 939.45 | E104: 921.95 | F104: 908.05 | G104: 890.55 | H104: 953.35 | I104: 970.85 | J104: 984.75 | K104: 956.95 | L104: 925.55 | M104: 0.8494
A105: 95 | B105: CASTROLIND | C105: 108.6 | D105: 109.30 | E105: 107.60 | F105: 106.60 | G105: 104.90 | H105: 110.30 | I105: 112.00 | J105: 113.00 | K105: 111 | L105: 108.3 | M105: 5.98264
A106: 96 | B106: CEATLTD | C106: 1385.4 | D106: 1389.93 | E106: 1367.52 | F106: 1349.63 | G106: 1327.22 | H106: 1407.82 | I106: 1430.23 | J106: 1448.12 | K106: 1412.35 | L106: 1372.05 | M106: 0.33994
A107: 97 | B107: CENTRALBK | C107: 23.4 | D107: 23.58 | E107: 23.07 | F107: 22.73 | G107: 22.22 | H107: 23.92 | I107: 24.43 | J107: 24.77 | K107: 24.1 | L107: 23.25 | M107: 39.56573
A108: 98 | B108: CDSL | C108: 940.25 | D108: 944.92 | E108: 933.33 | F108: 926.42 | G108: 914.83 | H108: 951.83 | I108: 963.42 | J108: 970.33 | K108: 956.5 | L108: 938 | M108: 2.13653
A109: 99 | B109: CENTURYPLY | C109: 455.45 | D109: 461.60 | E109: 445.40 | F109: 435.35 | G109: 419.15 | H109: 471.65 | I109: 487.85 | J109: 497.90 | K109: 477.8 | L109: 451.55 | M109: 1.74767
A110: 100 | B110: CENTURYTEX | C110: 622.5 | D110: 625.32 | E110: 615.63 | F110: 608.77 | G110: 599.08 | H110: 632.18 | I110: 641.87 | J110: 648.73 | K110: 635 | L110: 618.45 | M110: 0.82549
A111: 101 | B111: CERA | C111: 6243 | D111: 6262.27 | E111: 6197.83 | F111: 6152.67 | G111: 6088.23 | H111: 6307.43 | I111: 6371.87 | J111: 6417.03 | K111: 6326.7 | L111: 6217.1 | M111: 0.07575
A112: 102 | B112: CHALET | C112: 361.15 | D112: 364.82 | E112: 354.63 | F112: 348.12 | G112: 337.93 | H112: 371.33 | I112: 381.52 | J112: 388.03 | K112: 375 | L112: 358.3 | M112: 0.69133
A113: 103 | B113: CHAMBLFERT | C113: 261.8 | D113: 264.23 | E113: 258.57 | F113: 255.33 | G113: 249.67 | H113: 267.47 | I113: 273.13 | J113: 276.37 | K113: 269.9 | L113: 261 | M113: 8.50726
A114: 104 | B114: CHEMPLASTS | C114: 366.1 | D114: 369.52 | E114: 360.03 | F114: 353.97 | G114: 344.48 | H114: 375.58 | I114: 385.07 | J114: 391.13 | K114: 379 | L114: 363.45 | M114: 0.82735
A115: 105 | B115: CHOLAHLDNG | C115: 529.25 | D115: 535.65 | E115: 518.70 | F115: 508.15 | G115: 491.20 | H115: 546.20 | I115: 563.15 | J115: 573.70 | K115: 552.6 | L115: 525.1 | M115: 0.40149
A116: 106 | B116: CHOLAFIN | C116: 727.65 | D116: 731.68 | E116: 718.72 | F116: 709.78 | G116: 696.82 | H116: 740.62 | I116: 753.58 | J116: 762.52 | K116: 744.65 | L116: 722.75 | M116: 12.18088
A117: 107 | B117: CIPLA | C117: 877.25 | D117: 874.13 | E117: 869.27 | F117: 861.28 | G117: 856.42 | H117: 882.12 | I117: 886.98 | J117: 894.97 | K117: 879 | L117: 866.15 | M117: 31.66046
A118: 108 | B118: CUB | C118: 124.9 | D118: 125.87 | E118: 123.38 | F118: 121.87 | G118: 119.38 | H118: 127.38 | I118: 129.87 | J118: 131.38 | K118: 128.35 | L118: 124.35 | M118: 28.79478
A119: 109 | B119: CLEAN | C119: 1315.25 | D119: 1327.12 | E119: 1293.13 | F119: 1271.02 | G119: 1237.03 | H119: 1349.23 | I119: 1383.22 | J119: 1405.33 | K119: 1361.1 | L119: 1305 | M119: 0.56791
A120: 110 | B120: COALINDIA | C120: 208.45 | D120: 210.12 | E120: 206.33 | F120: 204.22 | G120: 200.43 | H120: 212.23 | I120: 216.02 | J120: 218.13 | K120: 213.9 | L120: 208 | M120: 66.11089
A121: 111 | B121: COCHINSHIP | C121: 432.7 | D121: 437.92 | E121: 424.78 | F121: 416.87 | G121: 403.73 | H121: 445.83 | I121: 458.97 | J121: 466.88 | K121: 451.05 | L121: 430 | M121: 2.53916
A122: 112 | B122: COFORGE | C122: 3700.5 | D122: 3732.70 | E122: 3637.80 | F122: 3575.10 | G122: 3480.20 | H122: 3795.40 | I122: 3890.30 | J122: 3953.00 | K122: 3827.6 | L122: 3670 | M122: 2.70367
A123: 113 | B123: COLPAL | C123: 1500.95 | D123: 1508.80 | E123: 1488.70 | F123: 1476.45 | G123: 1456.35 | H123: 1521.05 | I123: 1541.15 | J123: 1553.40 | K123: 1528.9 | L123: 1496.55 | M123: 2.34341
A124: 114 | B124: CAMS | C124: 2132.8 | D124: 2142.57 | E124: 2116.08 | F124: 2099.37 | G124: 2072.88 | H124: 2159.28 | I124: 2185.77 | J124: 2202.48 | K124: 2169.05 | L124: 2125.85 | M124: 0.51143
A125: 115 | B125: CONCOR | C125: 583.25 | D125: 584.65 | E125: 578.85 | F125: 574.45 | G125: 568.65 | H125: 589.05 | I125: 594.85 | J125: 599.25 | K125: 590.45 | L125: 580.25 | M125: 8.35509
A126: 116 | B126: COROMANDEL | C126: 881.25 | D126: 885.03 | E126: 874.47 | F126: 867.68 | G126: 857.12 | H126: 891.82 | I126: 902.38 | J126: 909.17 | K126: 895.6 | L126: 878.25 | M126: 2.72703
A127: 117 | B127: CREDITACC | C127: 914.75 | D127: 922.50 | E127: 900.35 | F127: 885.95 | G127: 863.80 | H127: 936.90 | I127: 959.05 | J127: 973.45 | K127: 944.65 | L127: 908.1 | M127: 0.51824
A128: 118 | B128: CROMPTON | C128: 293.75 | D128: 293.72 | E128: 290.13 | F128: 286.52 | G128: 282.93 | H128: 297.33 | I128: 300.92 | J128: 304.53 | K128: 297.3 | L128: 290.1 | M128: 48.53208
A129: 119 | B129: CUMMINSIND | C129: 1622.15 | D129: 1625.93 | E129: 1610.92 | F129: 1599.68 | G129: 1584.67 | H129: 1637.17 | I129: 1652.18 | J129: 1663.42 | K129: 1640.95 | L129: 1614.7 | M129: 3.71397
A130: 120 | B130: CYIENT | C130: 1001.2 | D130: 984.37 | E130: 958.83 | F130: 916.47 | G130: 890.93 | H130: 1026.73 | I130: 1052.27 | J130: 1094.63 | K130: 1009.9 | L130: 942 | M130: 19.35257
A131: 121 | B131: DCMSHRIRAM | C131: 789 | D131: 794.30 | E131: 778.80 | F131: 768.60 | G131: 753.10 | H131: 804.50 | I131: 820.00 | J131: 830.20 | K131: 809.8 | L131: 784.1 | M131: 0.23881
A132: 122 | B132: DLF | C132: 354.25 | D132: 358.43 | E132: 348.87 | F132: 343.48 | G132: 333.92 | H132: 363.82 | I132: 373.38 | J132: 378.77 | K132: 368 | L132: 353.05 | M132: 31.34205
A133: 123 | B133: DABUR | C133: 536.4 | D133: 537.13 | E133: 534.27 | F133: 532.13 | G133: 529.27 | H133: 539.27 | I133: 542.13 | J133: 544.27 | K133: 540 | L133: 535 | M133: 6.39799
A134: 124 | B134: DALBHARAT | C134: 1831.1 | D134: 1822.85 | E134: 1810.25 | F134: 1789.40 | G134: 1776.80 | H134: 1843.70 | I134: 1856.30 | J134: 1877.15 | K134: 1835.45 | L134: 1802 | M134: 1.66271
A135: 125 | B135: DEEPAKFERT | C135: 535.9 | D135: 544.08 | E135: 525.52 | F135: 515.13 | G135: 496.57 | H135: 554.47 | I135: 573.03 | J135: 583.42 | K135: 562.65 | L135: 533.7 | M135: 4.27935
A136: 126 | B136: DEEPAKNTR | C136: 1780.05 | D136: 1793.83 | E136: 1763.22 | F136: 1746.38 | G136: 1715.77 | H136: 1810.67 | I136: 1841.28 | J136: 1858.12 | K136: 1824.45 | L136: 1777 | M136: 3.68678
A137: 127 | B137: DELHIVERY | C137: 323.65 | D137: 324.22 | E137: 320.03 | F137: 316.42 | G137: 312.23 | H137: 327.83 | I137: 332.02 | J137: 335.63 | K137: 328.4 | L137: 320.6 | M137: 10.09908
A138: 128 | B138: DELTACORP | C138: 185.35 | D138: 186.77 | E138: 182.58 | F138: 179.82 | G138: 175.63 | H138: 189.53 | I138: 193.72 | J138: 196.48 | K138: 190.95 | L138: 184 | M138: 19.73776
A139: 129 | B139: DEVYANI | C139: 138.05 | D139: 138.93 | E139: 135.32 | F139: 132.58 | G139: 128.97 | H139: 141.67 | I139: 145.28 | J139: 148.02 | K139: 142.55 | L139: 136.2 | M139: 27.85713
A140: 130 | B140: DHANI | C140: 26.95 | D140: 27.50 | E140: 26.25 | F140: 25.55 | G140: 24.30 | H140: 28.20 | I140: 29.45 | J140: 30.15 | K140: 28.75 | L140: 26.8 | M140: 18.30243
A141: 131 | B141: DBL | C141: 183.25 | D141: 182.42 | E141: 177.93 | F141: 172.62 | G141: 168.13 | H141: 187.73 | I141: 192.22 | J141: 197.53 | K141: 186.9 | L141: 177.1 | M141: 6.2886
A142: 132 | B142: DIVISLAB | C142: 2807 | D142: 2810.05 | E142: 2791.95 | F142: 2776.90 | G142: 2758.80 | H142: 2825.10 | I142: 2843.20 | J142: 2858.25 | K142: 2828.15 | L142: 2795 | M142: 2.91918
A143: 133 | B143: DIXON | C143: 2881.4 | D143: 2878.07 | E143: 2847.33 | F143: 2813.27 | G143: 2782.53 | H143: 2912.13 | I143: 2942.87 | J143: 2976.93 | K143: 2908.8 | L143: 2844 | M143: 1.88655
A144: 134 | B144: LALPATHLAB | C144: 1817.1 | D144: 1818.78 | E144: 1802.57 | F144: 1788.03 | G144: 1771.82 | H144: 1833.32 | I144: 1849.53 | J144: 1864.07 | K144: 1835 | L144: 1804.25 | M144: 1.12401
A145: 135 | B145: DRREDDY | C145: 4464.15 | D145: 4470.70 | E145: 4443.40 | F145: 4422.65 | G145: 4395.35 | H145: 4491.45 | I145: 4518.75 | J145: 4539.50 | K145: 4498 | L145: 4449.95 | M145: 2.25394
A146: 136 | B146: EIDPARRY | C146: 469.75 | D146: 472.75 | E146: 461.05 | F146: 452.35 | G146: 440.65 | H146: 481.45 | I146: 493.15 | J146: 501.85 | K146: 484.45 | L146: 464.05 | M146: 1.45668
A147: 137 | B147: EIHOTEL | C147: 155.85 | D147: 156.93 | E147: 154.42 | F147: 152.98 | G147: 150.47 | H147: 158.37 | I147: 160.88 | J147: 162.32 | K147: 159.45 | L147: 155.5 | M147: 1.2472
A148: 138 | B148: EPL | C148: 156.3 | D148: 156.07 | E148: 154.53 | F148: 152.77 | G148: 151.23 | H148: 157.83 | I148: 159.37 | J148: 161.13 | K148: 157.6 | L148: 154.3 | M148: 0.95938
A149: 139 | B149: EASEMYTRIP | C149: 40.5 | D149: 41.13 | E149: 39.47 | F149: 38.43 | G149: 36.77 | H149: 42.17 | I149: 43.83 | J149: 44.87 | K149: 42.8 | L149: 40.1 | M149: 133.95091
A150: 140 | B150: EDELWEISS | C150: 52.65 | D150: 53.17 | E150: 51.88 | F150: 51.12 | G150: 49.83 | H150: 53.93 | I150: 55.22 | J150: 55.98 | K150: 54.45 | L150: 52.4 | M150: 10.0181
A151: 141 | B151: EICHERMOT | C151: 2909.6 | D151: 2909.08 | E151: 2887.17 | F151: 2864.73 | G151: 2842.82 | H151: 2931.52 | I151: 2953.43 | J151: 2975.87 | K151: 2931 | L151: 2886.65 | M151: 5.42971
A152: 142 | B152: ELGIEQUIP | C152: 467.5 | D152: 471.52 | E152: 461.43 | F152: 455.37 | G152: 445.28 | H152: 477.58 | I152: 487.67 | J152: 493.73 | K152: 481.6 | L152: 465.45 | M152: 1.11763
A153: 143 | B153: EMAMILTD | C153: 362.55 | D153: 363.22 | E153: 354.43 | F153: 346.32 | G153: 337.53 | H153: 371.33 | I153: 380.12 | J153: 388.23 | K153: 372 | L153: 355.1 | M153: 7.16188
A154: 144 | B154: ENDURANCE | C154: 1209.2 | D154: 1219.35 | E154: 1196.85 | F154: 1184.50 | G154: 1162.00 | H154: 1231.70 | I154: 1254.20 | J154: 1266.55 | K154: 1241.85 | L154: 1207 | M154: 1.11946
A155: 145 | B155: ENGINERSIN | C155: 74.2 | D155: 74.60 | E155: 73.60 | F155: 73.00 | G155: 72.00 | H155: 75.20 | I155: 76.20 | J155: 76.80 | K155: 75.6 | L155: 74 | M155: 7.63564
A156: 146 | B156: EQUITASBNK | C156: 63.8 | D156: 63.90 | E156: 62.30 | F156: 60.80 | G156: 59.20 | H156: 65.40 | I156: 67.00 | J156: 68.50 | K156: 65.5 | L156: 62.4 | M156: 46.37406
A157: 147 | B157: ESCORTS | C157: 1831.85 | D157: 1839.68 | E157: 1812.27 | F157: 1792.68 | G157: 1765.27 | H157: 1859.27 | I157: 1886.68 | J157: 1906.27 | K157: 1867.1 | L157: 1820.1 | M157: 2.12849
A158: 148 | B158: EXIDEIND | C158: 175.45 | D158: 175.92 | E158: 173.83 | F158: 172.22 | G158: 170.13 | H158: 177.53 | I158: 179.62 | J158: 181.23 | K158: 178 | L158: 174.3 | M158: 11.38658
A159: 149 | B159: FDC | C159: 254.8 | D159: 255.58 | E159: 251.72 | F159: 248.63 | G159: 244.77 | H159: 258.67 | I159: 262.53 | J159: 265.62 | K159: 259.45 | L159: 252.5 | M159: 0.61312
A160: 150 | B160: NYKAA | C160: 137.65 | D160: 137.53 | E160: 134.72 | F160: 131.78 | G160: 128.97 | H160: 140.47 | I160: 143.28 | J160: 146.22 | K160: 140.35 | L160: 134.6 | M160: 59.66778
A161: 151 | B161: FEDERALBNK | C161: 126.85 | D161: 126.97 | E161: 125.73 | F161: 124.62 | G161: 123.38 | H161: 128.08 | I161: 129.32 | J161: 130.43 | K161: 128.2 | L161: 125.85 | M161: 78.44882
A162: 152 | B162: FACT | C162: 210.1 | D162: 214.40 | E162: 205.80 | F162: 201.50 | G162: 192.90 | H162: 218.70 | I162: 227.30 | J162: 231.60 | K162: 223 | L162: 210.1 | M162: 2.22083
A163: 153 | B163: FINEORG | C163: 4278.3 | D163: 4342.77 | E163: 4185.53 | F163: 4092.77 | G163: 3935.53 | H163: 4435.53 | I163: 4592.77 | J163: 4685.53 | K163: 4500 | L163: 4250 | M163: 0.60499
A164: 154 | B164: FINCABLES | C164: 788 | D164: 795.62 | E164: 771.23 | F164: 754.47 | G164: 730.08 | H164: 812.38 | I164: 836.77 | J164: 853.53 | K164: 820 | L164: 778.85 | M164: 3.75924
A165: 155 | B165: FINPIPE | C165: 163.45 | D165: 164.47 | E165: 159.63 | F165: 155.82 | G165: 150.98 | H165: 168.28 | I165: 173.12 | J165: 176.93 | K165: 169.3 | L165: 160.65 | M165: 2.36543
A166: 156 | B166: FSL | C166: 110.05 | D166: 110.42 | E166: 108.83 | F166: 107.62 | G166: 106.03 | H166: 111.63 | I166: 113.22 | J166: 114.43 | K166: 112 | L166: 109.2 | M166: 23.14272
A167: 157 | B167: FORTIS | C167: 254.85 | D167: 253.12 | E167: 247.23 | F167: 239.62 | G167: 233.73 | H167: 260.73 | I167: 266.62 | J167: 274.23 | K167: 259 | L167: 245.5 | M167: 11.40398
A168: 158 | B168: GRINFRA | C168: 999.3 | D168: 1012.25 | E168: 972.05 | F168: 944.80 | G168: 904.60 | H168: 1039.50 | I168: 1079.70 | J168: 1106.95 | K168: 1052.45 | L168: 985 | M168: 0.92071
A169: 159 | B169: GAIL | C169: 103.5 | D169: 104.02 | E169: 102.43 | F169: 101.37 | G169: 99.78 | H169: 105.08 | I169: 106.67 | J169: 107.73 | K169: 105.6 | L169: 102.95 | M169: 109.24642
A170: 160 | B170: GMMPFAUDLR | C170: 1516.3 | D170: 1518.43 | E170: 1492.87 | F170: 1469.43 | G170: 1443.87 | H170: 1541.87 | I170: 1567.43 | J170: 1590.87 | K170: 1544 | L170: 1495 | M170: 0.48212
A171: 161 | B171: GMRINFRA | C171: 38.75 | D171: 39.00 | E171: 38.35 | F171: 37.95 | G171: 37.30 | H171: 39.40 | I171: 40.05 | J171: 40.45 | K171: 39.65 | L171: 38.6 | M171: 48.41603
A172: 162 | B172: GALAXYSURF | C172: 2349.05 | D172: 2366.50 | E172: 2321.55 | F172: 2294.05 | G172: 2249.10 | H172: 2394.00 | I172: 2438.95 | J172: 2466.45 | K172: 2411.45 | L172: 2339 | M172: 0.08182
A173: 163 | B173: GARFIBRES | C173: 2742.75 | D173: 2761.55 | E173: 2706.20 | F173: 2669.65 | G173: 2614.30 | H173: 2798.10 | I173: 2853.45 | J173: 2890.00 | K173: 2816.9 | L173: 2725 | M173: 0.07814
A174: 164 | B174: GICRE | C174: 134.2 | D174: 135.05 | E174: 132.15 | F174: 130.10 | G174: 127.20 | H174: 137.10 | I174: 140.00 | J174: 142.05 | K174: 137.95 | L174: 133 | M174: 4.45704
A175: 165 | B175: GLAND | C175: 1282.2 | D175: 1277.17 | E175: 1231.03 | F175: 1179.87 | G175: 1133.73 | H175: 1328.33 | I175: 1374.47 | J175: 1425.63 | K175: 1323.3 | L175: 1226 | M175: 12.29621
A176: 166 | B176: GLAXO | C176: 1288.45 | D176: 1288.72 | E176: 1270.83 | F176: 1253.22 | G176: 1235.33 | H176: 1306.33 | I176: 1324.22 | J176: 1341.83 | K176: 1306.6 | L176: 1271.1 | M176: 0.37487
A177: 167 | B177: GLENMARK | C177: 425.7 | D177: 431.53 | E177: 418.12 | F177: 410.53 | G177: 397.12 | H177: 439.12 | I177: 452.53 | J177: 460.12 | K177: 444.95 | L177: 423.95 | M177: 10.94792
A178: 168 | B178: GOCOLORS | C178: 951.05 | D178: 948.68 | E178: 932.37 | F178: 913.68 | G178: 897.37 | H178: 967.37 | I178: 983.68 | J178: 1002.37 | K178: 965 | L178: 930 | M178: 0.28816
A179: 169 | B179: GODFRYPHLP | C179: 1814.25 | D179: 1824.38 | E179: 1798.22 | F179: 1782.18 | G179: 1756.02 | H179: 1840.42 | I179: 1866.58 | J179: 1882.62 | K179: 1850.55 | L179: 1808.35 | M179: 0.25058
A180: 170 | B180: GODREJAGRO | C180: 405.85 | D180: 407.68 | E180: 403.17 | F180: 400.48 | G180: 395.97 | H180: 410.37 | I180: 414.88 | J180: 417.57 | K180: 412.2 | L180: 405 | M180: 1.04392
A181: 171 | B181: GODREJCP | C181: 951.2 | D181: 950.15 | E181: 944.35 | F181: 937.50 | G181: 931.70 | H181: 957.00 | I181: 962.80 | J181: 969.65 | K181: 955.95 | L181: 943.3 | M181: 9.52163
A182: 172 | B182: GODREJIND | C182: 408.75 | D182: 408.53 | E182: 406.07 | F182: 403.38 | G182: 400.92 | H182: 411.22 | I182: 413.68 | J182: 416.37 | K182: 411 | L182: 405.85 | M182: 0.94617
A183: 173 | B183: GODREJPROP | C183: 1044.85 | D183: 1049.75 | E183: 1030.35 | F183: 1015.85 | G183: 996.45 | H183: 1064.25 | I183: 1083.65 | J183: 1098.15 | K183: 1069.15 | L183: 1035.25 | M183: 3.75025
A184: 174 | B184: GRANULES | C184: 282.35 | D184: 281.45 | E184: 279.50 | F184: 276.65 | G184: 274.70 | H184: 284.30 | I184: 286.25 | J184: 289.10 | K184: 283.4 | L184: 278.6 | M184: 7.02832
A185: 175 | B185: GRAPHITE | C185: 270.15 | D185: 272.22 | E185: 266.93 | F185: 263.72 | G185: 258.43 | H185: 275.43 | I185: 280.72 | J185: 283.93 | K185: 277.5 | L185: 269 | M185: 2.87414
A186: 176 | B186: GRASIM | C186: 1594.3 | D186: 1596.68 | E186: 1584.92 | F186: 1575.53 | G186: 1563.77 | H186: 1606.07 | I186: 1617.83 | J186: 1627.22 | K186: 1608.45 | L186: 1587.3 | M186: 3.73052
A187: 177 | B187: GESHIP | C187: 624.45 | D187: 618.90 | E187: 606.80 | F187: 589.15 | G187: 577.05 | H187: 636.55 | I187: 648.65 | J187: 666.30 | K187: 631 | L187: 601.25 | M187: 8.51282
A188: 178 | B188: GREENPANEL | C188: 268.85 | D188: 269.77 | E188: 262.08 | F188: 255.32 | G188: 247.63 | H188: 276.53 | I188: 284.22 | J188: 290.98 | K188: 277.45 | L188: 263 | M188: 1.33944
A189: 179 | B189: GRINDWELL | C189: 1756.4 | D189: 1764.07 | E189: 1742.38 | F189: 1728.37 | G189: 1706.68 | H189: 1778.08 | I189: 1799.77 | J189: 1813.78 | K189: 1785.75 | L189: 1750.05 | M189: 0.29802
A190: 180 | B190: GUJALKALI | C190: 584.85 | D190: 587.97 | E190: 577.88 | F190: 570.92 | G190: 560.83 | H190: 594.93 | I190: 605.02 | J190: 611.98 | K190: 598.05 | L190: 581 | M190: 0.57492
A191: 181 | B191: GAEL | C191: 238.3 | D191: 240.67 | E191: 233.73 | F191: 229.17 | G191: 222.23 | H191: 245.23 | I191: 252.17 | J191: 256.73 | K191: 247.6 | L191: 236.1 | M191: 2.4732
A192: 182 | B192: FLUOROCHEM | C192: 3050.35 | D192: 3066.73 | E192: 3023.62 | F192: 2996.88 | G192: 2953.77 | H192: 3093.47 | I192: 3136.58 | J192: 3163.32 | K192: 3109.85 | L192: 3040 | M192: 0.58749
A193: 183 | B193: GUJGASLTD | C193: 482.4 | D193: 485.88 | E193: 477.12 | F193: 471.83 | G193: 463.07 | H193: 491.17 | I193: 499.93 | J193: 505.22 | K193: 494.65 | L193: 480.6 | M193: 3.11464
A194: 184 | B194: GNFC | C194: 514.7 | D194: 519.72 | E194: 507.93 | F194: 501.17 | G194: 489.38 | H194: 526.48 | I194: 538.27 | J194: 545.03 | K194: 531.5 | L194: 512.95 | M194: 5.88269
A195: 185 | B195: GPPL | C195: 107.3 | D195: 108.47 | E195: 105.73 | F195: 104.17 | G195: 101.43 | H195: 110.03 | I195: 112.77 | J195: 114.33 | K195: 111.2 | L195: 106.9 | M195: 7.3285
A196: 186 | B196: GSFC | C196: 122.45 | D196: 122.98 | E196: 121.52 | F196: 120.58 | G196: 119.12 | H196: 123.92 | I196: 125.38 | J196: 126.32 | K196: 124.45 | L196: 122.05 | M196: 5.59776
A197: 187 | B197: GSPL | C197: 270.75 | D197: 271.68 | E197: 267.32 | F197: 263.88 | G197: 259.52 | H197: 275.12 | I197: 279.48 | J197: 282.92 | K197: 276.05 | L197: 268.25 | M197: 1.93739
A198: 188 | B198: HEG | C198: 944.2 | D198: 947.52 | E198: 935.18 | F198: 926.17 | G198: 913.83 | H198: 956.53 | I198: 968.87 | J198: 977.88 | K198: 959.85 | L198: 938.5 | M198: 0.68613
A199: 189 | B199: HCLTECH | C199: 1051.75 | D199: 1062.93 | E199: 1035.87 | F199: 1019.98 | G199: 992.92 | H199: 1078.82 | I199: 1105.88 | J199: 1121.77 | K199: 1090 | L199: 1047.05 | M199: 26.88253
A200: 190 | B200: HDFCAMC | C200: 1672.85 | D200: 1677.98 | E200: 1647.97 | F200: 1623.08 | G200: 1593.07 | H200: 1702.87 | I200: 1732.88 | J200: 1757.77 | K200: 1708 | L200: 1653.1 | M200: 19.67681
A201: 191 | B201: HDFCBANK | C201: 1560.65 | D201: 1563.17 | E201: 1552.43 | F201: 1544.22 | G201: 1533.48 | H201: 1571.38 | I201: 1582.12 | J201: 1590.33 | K201: 1573.9 | L201: 1554.95 | M201: 157.38874
A202: 192 | B202: HDFCLIFE | C202: 492.25 | D202: 491.92 | E202: 481.93 | F202: 471.62 | G202: 461.63 | H202: 502.23 | I202: 512.22 | J202: 522.53 | K202: 501.9 | L202: 481.6 | M202: 64.24544
A203: 193 | B203: HFCL | C203: 60.8 | D203: 61.15 | E203: 59.75 | F203: 58.70 | G203: 57.30 | H203: 62.20 | I203: 63.60 | J203: 64.65 | K203: 62.55 | L203: 60.1 | M203: 45.26553
A204: 194 | B204: HLEGLAS | C204: 503.35 | D204: 506.80 | E204: 496.75 | F204: 490.15 | G204: 480.10 | H204: 513.40 | I204: 523.45 | J204: 530.05 | K204: 516.85 | L204: 500.2 | M204: 0.18576
A205: 195 | B205: HAPPSTMNDS | C205: 796.85 | D205: 803.32 | E205: 788.53 | F205: 780.22 | G205: 765.43 | H205: 811.63 | I205: 826.42 | J205: 834.73 | K205: 818.1 | L205: 795 | M205: 2.60226
A206: 196 | B206: HATSUN | C206: 839.45 | D206: 835.18 | E206: 825.52 | F206: 811.58 | G206: 801.92 | H206: 849.12 | I206: 858.78 | J206: 872.72 | K206: 844.85 | L206: 821.25 | M206: 0.14643
... 320 more rows

Sheet Bulk Deals
E6: Back To Main Page
A7: Subject : | B7: BULK DEAL | D7: =Main!B10 -> 2023-03-27
A9: Date | B9: Scrip code | C9: Scrip Name | D9: Client Name | E9: Buy / Sell | F9: Quantity Traded | G9: Trade Price / Wt.Avg.trade price | H9: Exchange
A10: 2023-03-24 | B10: 542377 | C10: AARSHYAM | D10: KRORES CARDS PRIVATE LIMITED | E10: BUY | F10: 231,000 | G10: 5.41 | H10: BSE
A11: 2023-03-24 | B11: 542377 | C11: AARSHYAM | D11: NNM SECURITIES PVT LTD | E11: SELL | F11: 231,000 | G11: 5.41 | H11: BSE
A12: 2023-03-24 | B12: 539773 | C12: ADVIKCA | D12: BHAVYA DHIMAN | E12: BUY | F12: 1,379,381 | G12: 3.77 | H12: BSE
A13: 2023-03-24 | B13: 539773 | C13: ADVIKCA | D13: BHAVYA DHIMAN | E13: SELL | F13: 1,379,381 | G13: 3.83 | H13: BSE
A14: 2023-03-24 | B14: 537069 | C14: ARNOLD | D14: INT INFRASTRUCTURE PRIVATE LIMITED | E14: SELL | F14: 399,925 | G14: 24 | H14: BSE
A15: 2023-03-24 | B15: 537069 | C15: ARNOLD | D15: HARIVARDHAN STEEL & ALLOYS PRIVATE LIMTED | E15: BUY | F15: 400,000 | G15: 24 | H15: BSE
A16: 2023-03-24 | B16: 542285 | C16: AXITA | D16: WONDERLAND SUPPLIERS PRIVATE LIMITED | E16: BUY | F16: 1,995,756 | G16: 51.1 | H16: BSE
A17: 2023-03-24 | B17: 543831 | C17: BRIGHT | D17: KUBER EQUITY SERVICES LLP | E17: BUY | F17: 95,000 | G17: 150 | H17: BSE
A18: 2023-03-24 | B18: 543831 | C18: BRIGHT | D18: KESAR TRACOM INDIA LLP | E18: BUY | F18: 128,000 | G18: 150 | H18: BSE
A19: 2023-03-24 | B19: 543831 | C19: BRIGHT | D19: RISHABH RAMESHCHANDRA JAIN | E19: SELL | F19: 81,000 | G19: 150 | H19: BSE
A20: 2023-03-24 | B20: 543831 | C20: BRIGHT | D20: SUNRISE GILTS AND SECURITIES PVT LTD | E20: BUY | F20: 335,000 | G20: 150 | H20: BSE
A21: 2023-03-24 | B21: 543831 | C21: BRIGHT | D21: SHRENI SHARES PRIVATE LIMITED | E21: SELL | F21: 28,000 | G21: 157.5 | H21: BSE
A22: 2023-03-24 | B22: 543831 | C22: BRIGHT | D22: SHRENI SHARES PRIVATE LIMITED | E22: BUY | F22: 127,000 | G22: 150.35 | H22: BSE
A23: 2023-03-24 | B23: 532386 | C23: CALSOFT | D23: SANJAY AGRAWAL | E23: BUY | F23: 104,650 | G23: 13 | H23: BSE
A24: 2023-03-24 | B24: 532386 | C24: CALSOFT | D24: MANISH AGRAWAL | E24: SELL | F24: 131,900 | G24: 12.97 | H24: BSE
A25: 2023-03-24 | B25: 540811 | C25: DML | D25: PANKAJ BABULAL VORA | E25: BUY | F25: 90,000 | G25: 23.9 | H25: BSE
A26: 2023-03-24 | B26: 540811 | C26: DML | D26: TEAM INDIA MANAGERS LTD | E26: SELL | F26: 90,000 | G26: 23.9 | H26: BSE
A27: 2023-03-24 | B27: 532767 | C27: GAYAPROJ | D27: SYNERGY MONEYCONTROL PRIVATE LIMITED | E27: SELL | F27: 1,500,000 | G27: 5.92 | H27: BSE
A28: 2023-03-24 | B28: 532767 | C28: GAYAPROJ | D28: INVENTURE SEJAL REALTORS PRIVATE LIMITED | E28: BUY | F28: 1,500,000 | G28: 5.92 | H28: BSE
A29: 2023-03-24 | B29: 540936 | C29: GGL | D29: YACOOBALI AIYUB MOHAMMED | E29: SELL | F29: 191,669 | G29: 15.14 | H29: BSE
A30: 2023-03-24 | B30: 540936 | C30: GGL | D30: YACOOBALI AIYUB MOHAMMED | E30: BUY | F30: 148,628 | G30: 15.07 | H30: BSE
A31: 2023-03-24 | B31: 540266 | C31: GLCL | D31: YASH SUNILKUMAR PATEL | E31: SELL | F31: 43,590 | G31: 47.72 | H31: BSE
A32: 2023-03-24 | B32: 540266 | C32: GLCL | D32: NOOPUR BHAGWANDAS KANSARA | E32: SELL | F32: 18,445 | G32: 47.72 | H32: BSE
A33: 2023-03-24 | B33: 540266 | C33: GLCL | D33: NOOPUR BHAGWANDAS KANSARA | E33: BUY | F33: 31,379 | G33: 47.56 | H33: BSE
A34: 2023-03-24 | B34: 543239 | C34: GMPL | D34: MADHGHNE ADVISORY PRIVATE LIMITED | E34: SELL | F34: 140,000 | G34: 122.48 | H34: BSE
A35: 2023-03-24 | B35: 543239 | C35: GMPL | D35: SHERWOOD SECURITIES PVT LTD | E35: BUY | F35: 140,000 | G35: 122.48 | H35: BSE
A36: 2023-03-24 | B36: 543239 | C36: GMPL | D36: SHERWOOD SECURITIES PVT LTD | E36: SELL | F36: 5,600 | G36: 121.74 | H36: BSE
A37: 2023-03-24 | B37: 513309 | C37: GOLKONDA | D37: VIJAY KUMAR GUPTA | E37: SELL | F37: 51,000 | G37: 19.97 | H37: BSE
A38: 2023-03-24 | B38: 530663 | C38: GOYALASS | D38: NEEHAR SHAIK | E38: BUY | F38: 313,625 | G38: 2.37 | H38: BSE
A39: 2023-03-24 | B39: 530663 | C39: GOYALASS | D39: MISTERKAPOORKESHRI | E39: SELL | F39: 276,408 | G39: 2.35 | H39: BSE
A40: 2023-03-24 | B40: 530663 | C40: GOYALASS | D40: MISTERKAPOORKESHRI | E40: BUY | F40: 247,606 | G40: 2.34 | H40: BSE
A41: 2023-03-24 | B41: 538979 | C41: GRNLAMIND | D41: HYDRA TRADING PRIVATE LIMITED | E41: BUY | F41: 2,968,680 | G41: 313 | H41: BSE
A42: 2023-03-24 | B42: 538979 | C42: GRNLAMIND | D42: SMITI HOLDING AND TRADING COMPANY PRIVATE LIMITED | E42: SELL | F42: 2,968,680 | G42: 313 | H42: BSE
A43: 2023-03-24 | B43: 531129 | C43: INANI | D43: ANKUR NYATI | E43: BUY | F43: 95,000 | G43: 20.9 | H43: BSE
A44: 2023-03-24 | B44: 531129 | C44: INANI | D44: MAHESH KUMAR INANI | E44: SELL | F44: 94,611 | G44: 20.9 | H44: BSE
A45: 2023-03-24 | B45: 536709 | C45: INDRENEW | D45: HARINDER SINGH | E45: BUY | F45: 47,400 | G45: 13.47 | H45: BSE
A46: 2023-03-24 | B46: 536709 | C46: INDRENEW | D46: BHAGWANCHAND SUMERMAL JAIN | E46: SELL | F46: 27,500 | G46: 13.47 | H46: BSE
A47: 2023-03-24 | B47: 536709 | C47: INDRENEW | D47: MAMTA BHERUMAL JAIN | E47: SELL | F47: 27,000 | G47: 13.47 | H47: BSE
A48: 2023-03-24 | B48: 536709 | C48: INDRENEW | D48: MIHIR D VASHI (HUF) | E48: BUY | F48: 24,000 | G48: 13.47 | H48: BSE
A49: 2023-03-24 | B49: 543806 | C49: ITCONS | D49: AMAN DEEP | E49: BUY | F49: 32,000 | G49: 38.68 | H49: BSE
A50: 2023-03-24 | B50: 531784 | C50: KCLINFRA | D50: BHAVIN Y MEHTA | E50: BUY | F50: 600,000 | G50: 1.71 | H50: BSE
A51: 2023-03-24 | B51: 531784 | C51: KCLINFRA | D51: ALPHA LEON ENTERPRISES LLP | E51: SELL | F51: 790,000 | G51: 1.71 | H51: BSE
A52: 2023-03-24 | B52: 543542 | C52: KESAR | D52: AG DYNAMIC FUNDS LIMITED | E52: BUY | F52: 48,800 | G52: 121.52 | H52: BSE
A53: 2023-03-24 | B53: 543830 | C53: LABELKRAFT | D53: RAJENDRAKUMAR | E53: BUY | F53: 20,000 | G53: 55.59 | H53: BSE
A54: 2023-03-24 | B54: 543830 | C54: LABELKRAFT | D54: MADIKERI SUBHASH BALAJI | E54: BUY | F54: 32,000 | G54: 58.02 | H54: BSE
A55: 2023-03-24 | B55: 543830 | C55: LABELKRAFT | D55: KAMALDEVI | E55: BUY | F55: 24,000 | G55: 56.25 | H55: BSE
A56: 2023-03-24 | B56: 543830 | C56: LABELKRAFT | D56: ASHOK BOTHRA | E56: BUY | F56: 22,000 | G56: 57 | H56: BSE
A57: 2023-03-24 | B57: 543624 | C57: MAAGHADV | D57: CREATEROI FINANCIAL CONSULTANCY PRIVATE LIMITED. | E57: BUY | F57: 20,000 | G57: 18.04 | H57: BSE
A58: 2023-03-24 | B58: 543624 | C58: MAAGHADV | D58: MULTIPLIER SHARE & STOCK ADVISORS PRIVATE LIMITED | E58: SELL | F58: 20,000 | G58: 18.04 | H58: BSE
A59: 2023-03-24 | B59: 531456 | C59: MINAXI | D59: RAMESHCHEPURI | E59: SELL | F59: 680,000 | G59: 1.67 | H59: BSE
A60: 2023-03-24 | B60: 531456 | C60: MINAXI | D60: RAMESHCHEPURI | E60: BUY | F60: 1 | G60: 1.72 | H60: BSE
A61: 2023-03-24 | B61: 531456 | C61: MINAXI | D61: SUMANCHEPURI | E61: BUY | F61: 683,626 | G61: 1.67 | H61: BSE
A62: 2023-03-24 | B62: 539767 | C62: MNIL | D62: SEEMA | E62: SELL | F62: 33,745 | G62: 19.1 | H62: BSE
A63: 2023-03-24 | B63: 539767 | C63: MNIL | D63: SHALU KATARIA | E63: BUY | F63: 31,000 | G63: 19.1 | H63: BSE
A64: 2023-03-24 | B64: 540198 | C64: OSIAJEE | D64: ALOK RANJAN | E64: SELL | F64: 29,048 | G64: 64.02 | H64: BSE
A65: 2023-03-24 | B65: 543814 | C65: PCL | D65: VICKY RAJESH JHAVERI | E65: SELL | F65: 40,000 | G65: 61 | H65: BSE
A66: 2023-03-24 | B66: 543814 | C66: PCL | D66: RAJESH NANUBHAI JHAVERI HUF | E66: SELL | F66: 22,000 | G66: 61 | H66: BSE
A67: 2023-03-24 | B67: 543814 | C67: PCL | D67: KETAN HASMUKHLAL DOSHI | E67: BUY | F67: 50,000 | G67: 61 | H67: BSE
A68: 2023-03-24 | B68: 538452 | C68: QUASAR | D68: DOLF LEASING LIMITED | E68: SELL | F68: 75,000 | G68: 13.37 | H68: BSE
A69: 2023-03-24 | B69: 535719 | C69: QUEST | D69: PARUL VIPUL PARMAR | E69: BUY | F69: 70,000 | G69: 65.2 | H69: BSE
A70: 2023-03-24 | B70: 535719 | C70: QUEST | D70: AV AC DC RENEW PRIVATE LIMITED | E70: SELL | F70: 153,099 | G70: 65.43 | H70: BSE
A71: 2023-03-24 | B71: 543256 | C71: RFLL | D71: VINUBHAI NANJIBHAI VEKARIA | E71: SELL | F71: 75,200 | G71: 28.52 | H71: BSE
A72: 2023-03-24 | B72: 531569 | C72: SANJIVIN | D72: WOODSTOCK SECURITIES PRIV ATE LTD | E72: SELL | F72: 79,292 | G72: 25.94 | H72: BSE
A73: 2023-03-24 | B73: 543366 | C73: SBLI | D73: DHANVARSHA ADVISORY SERVICES PRIVATE LIMITED | E73: SELL | F73: 7,200 | G73: 79.8 | H73: BSE
A74: 2023-03-24 | B74: 534708 | C74: SHANTIGURU | D74: SHRIPAL SANGHVI | E74: BUY | F74: 66,000 | G74: 7.41 | H74: BSE
A75: 2023-03-24 | B75: 539026 | C75: SSPNFIN | D75: DIVINE COMEX ENTERPRISES PRIVETE LIMITED | E75: BUY | F75: 40,000 | G75: 7.6 | H75: BSE
A76: 2023-03-24 | B76: 539026 | C76: SSPNFIN | D76: CHANDA SONI | E76: SELL | F76: 28,000 | G76: 7.6 | H76: BSE
A77: 2023-03-24 | B77: 543828 | C77: SUDARSHAN | D77: ANANDPODDAR . | E77: BUY | F77: 160,000 | G77: 62.6 | H77: BSE
A78: 2023-03-24 | B78: 543799 | C78: SVJ | D78: INDUS WORLD TRADE LIMITED | E78: BUY | F78: 33,000 | G78: 23.78 | H78: BSE
A79: 2023-03-24 | B79: 543799 | C79: SVJ | D79: 7SEA CAPITAL LIMITED | E79: BUY | F79: 33,000 | G79: 23.11 | H79: BSE
A80: 2023-03-24 | B80: 543799 | C80: SVJ | D80: SUMEET SINGHVI | E80: SELL | F80: 36,000 | G80: 24.25 | H80: BSE
A81: 2023-03-24 | B81: 543799 | C81: SVJ | D81: JIMMY RAJDEO SAH | E81: SELL | F81: 36,000 | G81: 24.25 | H81: BSE
A82: 2023-03-24 | B82: 543799 | C82: SVJ | D82: DEEPAK KUMAR JAIN | E82: SELL | F82: 33,000 | G82: 24.18 | H82: BSE
A83: 2023-03-24 | B83: 543799 | C83: SVJ | D83: 7SEA CAPITAL LIMITED | E83: BUY | F83: 48,000 | G83: 24.75 | H83: BSE
A84: 2023-03-24 | B84: 543799 | C84: SVJ | D84: DUES MANAGER PRIVATE LIMITED | E84: BUY | F84: 87,000 | G84: 24.08 | H84: BSE
A85: 2023-03-24 | B85: 543799 | C85: SVJ | D85: DUES MANAGER PRIVATE LIMITED | E85: SELL | F85: 75,000 | G85: 23.9 | H85: BSE
A86: 2023-03-24 | B86: 543799 | C86: SVJ | D86: MULTIPLIER SHARE & STOCK ADVISORS PRIVATE LIMITED | E86: BUY | F86: 51,000 | G86: 23.11 | H86: BSE
A87: 2023-03-24 | B87: 543799 | C87: SVJ | D87: MULTIPLIER SHARE & STOCK ADVISORS PRIVATE LIMITED | E87: SELL | F87: 60,000 | G87: 23.11 | H87: BSE
A88: 2023-03-24 | B88: 543799 | C88: SVJ | D88: ARCHANA CHAWLA | E88: SELL | F88: 42,000 | G88: 23.11 | H88: BSE
A89: 2023-03-24 | B89: 543799 | C89: SVJ | D89: NIKUNJ STOCK BROKERS LIMITED | E89: BUY | F89: 3,000 | G89: 23.11 | H89: BSE
A90: 2023-03-24 | B90: 543799 | C90: SVJ | D90: NIKUNJ STOCK BROKERS LIMITED | E90: SELL | F90: 90,000 | G90: 23.11 | H90: BSE
A91: 2023-03-24 | B91: 543799 | C91: SVJ | D91: DEVANG CHANDRAKANTBHAI SHAH | E91: BUY | F91: 42,000 | G91: 23.11 | H91: BSE
A92: 2023-03-24 | B92: 543799 | C92: SVJ | D92: VIJAY VINODCHANDRA SHAH | E92: BUY | F92: 45,000 | G92: 23.47 | H92: BSE
A93: 2023-03-24 | B93: 543799 | C93: SVJ | D93: BINDIYA VIJAY SHAH | E93: BUY | F93: 45,000 | G93: 23.47 | H93: BSE
A94: 2023-03-24 | B94: 543799 | C94: SVJ | D94: BHARATKUMAR KARSHANBHAI PATEL | E94: BUY | F94: 36,000 | G94: 23.33 | H94: BSE
A95: 2023-03-24 | B95: 532845 | C95: TGBHOTELS | D95: AMIT CAPITAL AND SECURITIES PRIVATE LIMITED | E95: BUY | F95: 184,500 | G95: 8.31 | H95: BSE
A96: 2023-03-24 | B96: 532845 | C96: TGBHOTELS | D96: PATRONUS RESEARCH LLP | E96: SELL | F96: 177,649 | G96: 8.31 | H96: BSE
A97: 2023-03-24 | B97: 532845 | C97: TGBHOTELS | D97: PATRONUS RESEARCH LLP | E97: BUY | F97: 16 | G97: 8.28 | H97: BSE
A98: 2023-03-24 | B98: 538579 | C98: TRIVIKRAMA | D98: VIVEK KUMAR BHAUKA | E98: BUY | F98: 40,000 | G98: 18.67 | H98: BSE
A99: 2023-03-24 | B99: 507747 | C99: TTKHEALTH | D99: MCAP INDIA FUND LIMITED | E99: SELL | F99: 245,873 | G99: 910 | H99: BSE
A100: 2023-03-24 | B100: 507747 | C100: TTKHEALTH | D100: ABAKKUS ASSET MANAGER LLP | E100: BUY | F100: 131,788 | G100: 911.08 | H100: BSE
A101: 2023-03-24 | B101: 507747 | C101: TTKHEALTH | D101: ABAKKUS DIVERSIFIED ALPHA FUND | E101: BUY | F101: 115,385 | G101: 910 | H101: BSE
A102: 2023-03-24 | B102: 540570 | C102: VARIMAN | D102: NIRAJ RAJNIKANT SHAH | E102: SELL | F102: 246,596 | G102: 15.15 | H102: BSE
A103: 2023-03-24 | B103: 540570 | C103: VARIMAN | D103: NIRAJ RAJNIKANT SHAH | E103: BUY | F103: 1,146,194 | G103: 16.96 | H103: BSE
A104: 2023-03-24 | B104: AARTIDRUGS | C104: Aarti Drugs Ltd. | D104: GRAVITON RESEARCH CAPITAL LLP | E104: BUY | F104: 723,086 | G104: 395.14 | H104: NSE
A105: 2023-03-24 | B105: AJOONI | C105: Ajooni Biotech Limited | D105: MONIFEST CAPITAL PRIVATE LIMITED | E105: BUY | F105: 450,000 | G105: 3.85 | H105: NSE
A106: 2023-03-24 | B106: ALLETEC | C106: All E Technologies Ltd | D106: BRILLIANT INVESTMENT CONSULTANTS PRIVATE LIMTED | E106: BUY | F106: 177,600 | G106: 92.25 | H106: NSE
A107: 2023-03-24 | B107: BHARATWIRE | C107: Bharat Wire Ropes Ltd. | D107: GRAVITON RESEARCH CAPITAL LLP | E107: BUY | F107: 332,469 | G107: 131.26 | H107: NSE
A108: 2023-03-24 | B108: BLBLIMITED | C108: BLB Limited | D108: TANO INVESTMENT OPPORTUNITIES FUND | E108: BUY | F108: 2,075,227 | G108: 22 | H108: NSE
A109: 2023-03-24 | B109: BLBLIMITED | C109: BLB Limited | D109: AUS ENTERPRISES | E109: BUY | F109: 360,000 | G109: 23.75 | H109: NSE
A110: 2023-03-24 | B110: CAMPUS | C110: Campus Activewear Limited | D110: INVESTMENT TRUST FIDELITY SERIES EMERGING MARKETS OPPOR FUND | E110: BUY | F110: 3,339,500 | G110: 347 | H110: NSE
A111: 2023-03-24 | B111: CAMPUS | C111: Campus Activewear Limited | D111: SOCIETE GENERALE | E111: BUY | F111: 4,056,419 | G111: 347 | H111: NSE
A112: 2023-03-24 | B112: CAMPUS | C112: Campus Activewear Limited | D112: FIDELITY INVESTMENT TRUST FIDELITY INTERNATIONAL DISCOVERY FUND | E112: BUY | F112: 1,710,700 | G112: 347 | H112: NSE
A113: 2023-03-24 | B113: CYBERMEDIA | C113: Cyber Media (India) Limit | D113: SANJAY DUTT | E113: BUY | F113: 32,470 | G113: 14.99 | H113: NSE
A114: 2023-03-24 | B114: FCONSUMER | C114: Future Consumer Ltd | D114: SAHASTRAA ADVISORS PRIVATE LIMITED | E114: BUY | F114: 5,004,185 | G114: 0.55 | H114: NSE
A115: 2023-03-24 | B115: FCONSUMER | C115: Future Consumer Ltd | D115: MULTIPLIER SHARE & STOCK ADVISORS PRIVATE LIMITED | E115: BUY | F115: 15,000,000 | G115: 0.57 | H115: NSE
A116: 2023-03-24 | B116: GSLSU | C116: Global Surfaces Limited | D116: NIRAJ RAJNIKANT SHAH | E116: BUY | F116: 300,000 | G116: 162.5 | H116: NSE
A117: 2023-03-24 | B117: HARDWYN | C117: Hardwyn India Limited | D117: DREAM ACHIEVER CONSULTANCY SERVICES PRIVATE LIMITED | E117: BUY | F117: 283,500 | G117: 291 | H117: NSE
A118: 2023-03-24 | B118: IZMO | C118: IZMO Limited | D118: RAJBALA DEVI | E118: BUY | F118: 85,291 | G118: 108.54 | H118: NSE
A119: 2023-03-24 | B119: IZMO | C119: IZMO Limited | D119: GRAVITON RESEARCH CAPITAL LLP | E119: BUY | F119: 149,689 | G119: 106.69 | H119: NSE
A120: 2023-03-24 | B120: IZMO | C120: IZMO Limited | D120: MUDUPULAVEMULA SURENDRANADHA REDDY | E120: BUY | F120: 192,553 | G120: 106.36 | H120: NSE
A121: 2023-03-24 | B121: IZMO | C121: IZMO Limited | D121: QE SECURITIES | E121: BUY | F121: 69,894 | G121: 107.05 | H121: NSE
A122: 2023-03-24 | B122: KOHINOOR | C122: Kohinoor Foods Limited | D122: MULTIPLIER SHARE & STOCK ADVISORS PRIVATE LIMITED | E122: BUY | F122: 353,168 | G122: 38.51 | H122: NSE
A123: 2023-03-24 | B123: QFIL | C123: Quality Foils (India) Ltd | D123: MULTIPLIER SHARE & STOCK ADVISORS PRIVATE LIMITED | E123: BUY | F123: 50,000 | G123: 100 | H123: NSE
A124: 2023-03-24 | B124: QFIL | C124: Quality Foils (India) Ltd | D124: SATISH SINGHAL HUF | E124: BUY | F124: 40,000 | G124: 99.19 | H124: NSE
A125: 2023-03-24 | B125: QFIL | C125: Quality Foils (India) Ltd | D125: SATISH SINGHAL | E125: BUY | F125: 20,000 | G125: 100 | H125: NSE
A126: 2023-03-24 | B126: QFIL | C126: Quality Foils (India) Ltd | D126: MEENA SINGHAL | E126: BUY | F126: 20,000 | G126: 100 | H126: NSE
A127: 2023-03-24 | B127: QFIL | C127: Quality Foils (India) Ltd | D127: PARTH INFIN BROKERS PVT LTD | E127: BUY | F127: 20,000 | G127: 100 | H127: NSE
A128: 2023-03-24 | B128: QFIL | C128: Quality Foils (India) Ltd | D128: ELANKUMARANPERIAKARUPPAN | E128: BUY | F128: 20,000 | G128: 95 | H128: NSE
A129: 2023-03-24 | B129: SHANTI | C129: Shanti Overseas (Ind) Ltd | D129: SUMANCHEPURI | E129: BUY | F129: 21 | G129: 14.92 | H129: NSE
A130: 2023-03-24 | B130: SHANTI | C130: Shanti Overseas (Ind) Ltd | D130: RAMESH CHEPURI | E130: BUY | F130: 58,995 | G130: 14.4 | H130: NSE
A131: 2023-03-24 | B131: TGBHOTELS | C131: Bhagwati Banquets And Hot | D131: PATRONUS RESEARCH LLP | E131: BUY | F131: 177,649 | G131: 8.29 | H131: NSE
A132: 2023-03-24 | B132: VELS | C132: Vels Film International L | D132: DREAMON COMMERCIAL PRIVATE LIMITED | E132: BUY | F132: 184,800 | G132: 99.55 | H132: NSE
A133: 2023-03-24 | B133: VELS | C133: Vels Film International L | D133: UDAYA SANKAR UDAYA SANKAR | E133: BUY | F133: 75,600 | G133: 100.46 | H133: NSE
A134: 2023-03-24 | B134: VITAL | C134: Vital Chemtech Limited | D134: SAMBHAVNATH INVESTMENTS AND FINANCES PRIVATE LIMITED | E134: BUY | F134: 154,800 | G134: 81.41 | H134: NSE
A135: 2023-03-24 | B135: ZYDUSWELL | C135: Zydus Wellness Limited | D135: ZYDUS FAMILY TRUST | E135: BUY | F135: 510,272 | G135: 1499.67 | H135: NSE
A136: 2023-03-24 | B136: AARTIDRUGS | C136: Aarti Drugs Ltd. | D136: GRAVITON RESEARCH CAPITAL LLP | E136: SELL | F136: 723,086 | G136: 395.54 | H136: NSE
A137: 2023-03-24 | B137: AJOONI | C137: Ajooni Biotech Limited | D137: JAIN SATISH PARASMAL | E137: SELL | F137: 450,000 | G137: 3.85 | H137: NSE
A138: 2023-03-24 | B138: ALLETEC | C138: All E Technologies Ltd | D138: SILVERTOSS SHOPPERS PRIVATE LIMITED | E138: SELL | F138: 177,600 | G138: 92.25 | H138: NSE
A139: 2023-03-24 | B139: BHARATWIRE | C139: Bharat Wire Ropes Ltd. | D139: GRAVITON RESEARCH CAPITAL LLP | E139: SELL | F139: 332,469 | G139: 131.26 | H139: NSE
A140: 2023-03-24 | B140: BLBLIMITED | C140: BLB Limited | D140: BRIJ RATTAN BAGRI | E140: SELL | F140: 2,500,000 | G140: 22.02 | H140: NSE
A141: 2023-03-24 | B141: CAMPUS | C141: Campus Activewear Limited | D141: TPG GROWTH III SF PTE LIMITED | E141: SELL | F141: 23,207,692 | G141: 347.24 | H141: NSE
A142: 2023-03-24 | B142: CYBERMEDIA | C142: Cyber Media (India) Limit | D142: SANJAY DUTT | E142: SELL | F142: 163,103 | G142: 15.17 | H142: NSE
A143: 2023-03-24 | B143: FCONSUMER | C143: Future Consumer Ltd | D143: SAHASTRAA ADVISORS PRIVATE LIMITED | E143: SELL | F143: 10,244,185 | G143: 0.57 | H143: NSE
A144: 2023-03-24 | B144: FCONSUMER | C144: Future Consumer Ltd | D144: MULTIPLIER SHARE & STOCK ADVISORS PRIVATE LIMITED | E144: SELL | F144: 10,000,000 | G144: 0.55 | H144: NSE
A145: 2023-03-24 | B145: FEL | C145: Future Enterprises Ltd | D145: VISTRA ITCL INDIA LIMITED | E145: SELL | F145: 4,000,000 | G145: 0.56 | H145: NSE
A146: 2023-03-24 | B146: GSLSU | C146: Global Surfaces Limited | D146: NIRAJ RAJNIKANT SHAH | E146: SELL | F146: 7,000 | G146: 165.75 | H146: NSE
A147: 2023-03-24 | B147: HARDWYN | C147: Hardwyn India Limited | D147: SILVERTOSS SHOPPERS PRIVATE LIMITED | E147: SELL | F147: 283,750 | G147: 291 | H147: NSE
A148: 2023-03-24 | B148: IZMO | C148: IZMO Limited | D148: MUDUPULAVEMULA SURENDRANADHA REDDY | E148: SELL | F148: 192,553 | G148: 106.96 | H148: NSE
A149: 2023-03-24 | B149: IZMO | C149: IZMO Limited | D149: RAJBALA DEVI | E149: SELL | F149: 85,291 | G149: 109.78 | H149: NSE
A150: 2023-03-24 | B150: IZMO | C150: IZMO Limited | D150: GRAVITON RESEARCH CAPITAL LLP | E150: SELL | F150: 149,689 | G150: 106.82 | H150: NSE
A151: 2023-03-24 | B151: IZMO | C151: IZMO Limited | D151: QE SECURITIES | E151: SELL | F151: 71,616 | G151: 106.32 | H151: NSE
A152: 2023-03-24 | B152: KOHINOOR | C152: Kohinoor Foods Limited | D152: MULTIPLIER SHARE & STOCK ADVISORS PRIVATE LIMITED | E152: SELL | F152: 298,211 | G152: 40.44 | H152: NSE
A153: 2023-03-24 | B153: LATTEYS | C153: Latteys Industries Ltd | D153: VADODARIA RAJENDRA MAHENDRAKUMAR | E153: SELL | F153: 375,000 | G153: 29.95 | H153: NSE
A154: 2023-03-24 | B154: QFIL | C154: Quality Foils (India) Ltd | D154: KHAMBATTA SECURITIES LTD | E154: SELL | F154: 20,000 | G154: 98.84 | H154: NSE
A155: 2023-03-24 | B155: SHANTI | C155: Shanti Overseas (Ind) Ltd | D155: SUMANCHEPURI | E155: SELL | F155: 60,000 | G155: 14.4 | H155: NSE
A156: 2023-03-24 | B156: TGBHOTELS | C156: Bhagwati Banquets And Hot | D156: AQUA PROOF WALL PLAST PRIVATE LIMITED | E156: SELL | F156: 183,860 | G156: 8.29 | H156: NSE
A157: 2023-03-24 | B157: TGBHOTELS | C157: Bhagwati Banquets And Hot | D157: PATRONUS RESEARCH LLP | E157: SELL | F157: 16 | G157: 8.3 | H157: NSE
A158: 2023-03-24 | B158: VITAL | C158: Vital Chemtech Limited | D158: SUNFLOWER BROKING PRIVATE LIMITED | E158: SELL | F158: 154,800 | G158: 81.41 | H158: NSE

Sheet Call Tracker (Equity & F&O)
M5: Back To Main Page
A6: Retail Research Technical Calls & Fundamental Performance Report for the month of Mar-2023
M7: =Main!B10 -> 2023-03-27
B8: Positional Call
A9: Sr.no | B9: Date | D9: Company | E9: Rec | F9: Rec Price | G9: Stop Loss*** | H9: Call Closed At | I9: Target | J9: Remark | K9: Profit / Loss per Share | L9: All charges | M9: Net Gain / Loss % | N9: Status | O9: Closed Date | P9: Market Closing Price
A10: 1 | B10: 2022-12-01 | D10: TCS | E10: Buy<> | F10: 3380 | G10: 3140 | H10: =(3565+3140)/2 -> 3352.5 | I10: 3800-4000 | J10: Loss of Rs.27.5/- | K10: =H10-F10 -> -27.5 | L10: =(F10*-0.7)/100 -> -23.66 | M10: =(K10+L10)/F10 -> -1.51% | N10: Unsuccessful | O10: 2023-03-20 | R10: H
A11: 2 | B11: 2023-01-10 | D11: BHARTIARTL | E11: Buy | F11: 780-800 | G11: 735 | I11: 870-900 | J11: Open | P11: =VLOOKUP(D11,'MidCap Intra'!B11:C511,2,0) -> 762.45 | R11: H
A12: 3 | B12: 2023-01-24 | D12: KIMS | E12: Buy | F12: 1435 | G12: 1340 | H12: =(1512.5+1324.5)/2 -> 1418.5 | I12: 1580-1650 | J12: Loss of Rs.16.5/- | K12: =H12-F12 -> -16.5 | L12: =(F12*-0.7)/100 -> -10.05 | M12: =(K12+L12)/F12 -> -1.85% | N12: Unsuccessful | O12: 2023-03-22 | R12: N
A13: 4 | B13: 2023-02-01 | D13: AXISBANK | E13: Accu | F13: 825-850 | G13: 790 | I13: 900-950 | J13: Open | P13: =VLOOKUP(D13,'MidCap Intra'!B13:C513,2,0) -> 839.90 | R13: H
A14: 5 | B14: 2023-02-06 | D14: JSWSTEEL | E14: Accu | F14: 695-717.5 | G14: 660 | I14: 770-800 | J14: Open | P14: =VLOOKUP(D14,'MidCap Intra'!B14:C514,2,0) -> 657.80 | R14: H
A15: 6 | B15: 2023-02-16 | D15: PIDILITIND | E15: Accu | F15: 2280 | G15: 2170 | H15: 2395 | I15: 2450-2500 | J15: Profit of Rs.115/- | K15: =H15-F15 -> 115 | L15: =(F15*-0.7)/100 -> -15.96 | M15: =(K15+L15)/F15 -> 4.34% | N15: Successful | O15: 2023-03-22 | R15: H
A16: 7 | B16: 2023-02-20 | D16: SHARDACROP | E16: Accu | F16: 462.5 | G16: 425 | I16: 520-550 | J16: Open | P16: =VLOOKUP(D16,'MidCap Intra'!B16:C516,2,0) -> 459.85 | R16: H
A17: 8 | B17: 2023-02-21 | D17: CANBK | E17: Accu | F17: 284.5 | G17: 268 | H17: 303.5 | I17: 315-335 | J17: Profit of Rs.19/- | K17: =H17-F17 -> 19 | L17: =(F17*-0.7)/100 -> -1.99 | M17: =(K17+L17)/F17 -> 5.98% | N17: Successful | O17: 2023-03-03 | R17: N
A18: 9 | B18: 2023-02-21 | D18: HAPPIESTMNDS | E18: Accu | F18: =(865+899)/2 -> 882 | G18: 830 | H18: 830 | I18: 960-1000 | J18: Loss of Rs.52/- | K18: =H18-F18 -> -52 | L18: =(F18*-0.7)/100 -> -6.17 | M18: =(K18+L18)/F18 -> -6.60% | N18: Unsuccessful | O18: 2023-03-15 | R18: H
A19: 10 | B19: 2023-02-24 | D19: PIIND | E19: Accu | F19: 3110-3010 | G19: 2890 | I19: 3300-3400 | J19: Open | P19: =VLOOKUP(D19,'MidCap Intra'!B19:C519,2,0) -> 2934.10 | R19: H
A20: 11 | B20: 2023-02-27 | D20: SBIN | E20: Accu | F20: 522.5 | G20: 478 | H20: 554 | I20: 570-600 | J20: Profit of Rs.31.50/- | K20: =H20-F20 -> 31.5 | L20: =(F20*-0.7)/100 -> -3.66 | M20: =(K20+L20)/F20 -> 5.33% | N20: Successful | O20: 2023-03-03 | R20: H
A21: 12 | B21: 2023-03-01 | D21: REDINGTON | E21: Accu | F21: 167.25 | G21: 158 | H21: 174 | I21: 180-185 | J21: Part profit of Rs.6.76/- | K21: =H21-F21 -> 6.75 | L21: =(F21*-0.7)/100 -> -1.17 | M21: =(K21+L21)/F21 -> 3.34% | N21: Successful | O21: 2023-03-24 | P21: =VLOOKUP(D21,'MidCap Intra'!B21:C521,2,0) -> 170.85 | R21: H
A22: 13 | B22: 2023-03-14 | D22: SANOFI | E22: Accu | F22: 5625-5725 | G22: 5340 | I22: 6000-6300 | J22: Open | P22: =VLOOKUP(D22,'MidCap Intra'!B22:C522,2,0) -> 5660.40 | R22: H
A23: 14 | B23: 2023-03-14 | D23: COFORGE | E23: Accu | F23: 3810-3905 | G23: 3680 | I23: 4200-4300 | J23: Open | P23: =VLOOKUP(D23,'MidCap Intra'!B23:C523,2,0) -> 3700.50 | R23: H
A24: 15 | B24: 2023-03-16 | D24: CANBK | E24: Accu | F24: 270-280.5 | G24: 255 | I24: 310-320 | J24: Open | P24: =VLOOKUP(D24,'MidCap Intra'!B24:C524,2,0) -> 273.80 | R24: N
A29: CLBS = Closing Basis ***
A30: Dividend adjusted <> | F30: Reinitiated $
A31: Part book {} | D31: s | F31: Revised stoploss #
B33: Momentum Call
A34: Sr.no | B34: Date | D34: Company | E34: Rec | F34: Rec Price | G34: Stop Loss | H34: Call Closed At | I34: Target | J34: Remark | K34: Profit / Loss per Share/Lot | L34: All charges | M34: Net Gain / Loss % | N34: Status | O34: Closed Date
A35: 1 | B35: 2023-02-28 | D35: RELIANCE | E35: Buy | F35: 2357 | G35: 2270 | H35: 2270 | I35: 2450-2500 | J35: Loss of Rs.87/- | K35: =H35-F35 -> -87 | L35: =(F35*-0.7)/100 -> -16.50 | M35: =(K35+L35)/F35 -> -4.39% | N35: Unsuccessful | O35: 2023-03-15 | R35: H
A36: 2 | B36: 2023-03-01 | D36: AMARAJABAT | E36: Buy | F36: 561 | G36: 545 | H36: 576.5 | I36: 585-595 | J36: Profit of Rs.15.5/- | K36: =H36-F36 -> 15.5 | L36: =(F36*-0.7)/100 -> -3.93 | M36: =(K36+L36)/F36 -> 2.06% | N36: Successful | O36: 2023-03-02 | R36: H
A37: 3 | B37: 2023-03-01 | D37: VTL | E37: Buy | F37: 310 | G37: 300 | H37: 318.5 | I37: 325-330 | J37: Profit of Rs.8.5/- | K37: =H37-F37 -> 8.5 | L37: =(F37*-0.7)/100 -> -2.17 | M37: =(K37+L37)/F37 -> 2.04% | N37: Successful | O37: 2023-03-06 | R37: N
A38: 4 | B38: 2023-03-01 | D38: TECHM | E38: Buy | F38: 1110 | G38: 1078 | H38: 1063.5 | I38: 1150-1170 | J38: Loss of Rs.46.5/- | K38: =H38-F38 -> -46.5 | L38: =(F38*-0.7)/100 -> -7.77 | M38: =(K38+L38)/F38 -> -4.89% | N38: Unsuccessful | O38: 2023-03-09 | R38: H
A39: 5 | B39: 2023-03-03 | D39: M&M | E39: Buy | F39: 1266 | G39: 1230 | H39: 1230 | I39: 1320-1350 | J39: Loss of Rs.36/- | K39: =H39-F39 -> -36 | L39: =(F39*-0.7)/100 -> -8.86 | M39: =(K39+L39)/F39 -> -3.54% | N39: Unsuccessful | O39: 2023-03-10 | R39: H
A40: 6 | B40: 2023-03-03 | D40: TATACONSUM | E40: Buy | F40: 710 | G40: 689 | H40: 713 | I40: 740-750 | J40: Open | K40: 3 | R40: H
A41: 7 | B41: 2023-03-06 | D41: STARHEALTH | E41: Buy | F41: 582 | G41: 566 | H41: 560 | I41: 600-615 | J41: Loss of Rs.22/- | K41: =H41-F41 -> -22 | L41: =(F41*-0.7)/100 -> -4.07 | M41: =(K41+L41)/F41 -> -4.48% | N41: Unsuccessful | O41: 2023-03-13 | R41: N
A42: 8 | B42: 2023-03-15 | D42: M&M | E42: Buy | F42: 1160-1170 | G42: 1137 | I42: 1200-1220 | J42: Open | R42: H
A43: 9 | B43: 2023-03-16 | D43: VTL | E43: Buy | F43: 299 | G43: 290 | H43: 290 | I43: 315-320 | J43: Loss of Rs.9/- | K43: =H43-F43 -> -9 | L43: =(F43*-0.7)/100 -> -2.09 | M43: =(K43+L43)/F43 -> -3.71% | N43: Unsuccessful | O43: 2023-03-23 | R43: N
A44: 10 | B44: 2023-03-17 | D44: SBIN | E44: Buy | F44: 523.5 | G44: 509 | H44: 531.5 | I44: 540-550 | J44: Profit of Rs.8/- | K44: =H44-F44 -> 8 | L44: =(F44*-0.07)/100 -> -0.37 | M44: =(K44+L44)/F44 -> 1.46% | N44: Successful | O44: 2023-03-17 | R44: H
A45: 11 | B45: 2023-03-21 | D45: SBIN | E45: Buy | F45: 517-520 | G45: 505 | I45: 540-550 | J45: Open | R45: H
A46: 12 | B46: 2023-03-23 | D46: ZENSARTECH | E46: Buy | F46: 270-272 | G46: 264 | I46: 280-285 | J46: Open
A49: CLBS = Closing Basis *** | H49: *
A50: Dividend adjusted <> | F50: Reinitiated $
F51: Revised stoploss #
A53: Master Trade High Risk
A54: Sr.no | B54: Date | D54: Company | E54: Rec | F54: Rec Price | G54: Stop Loss | H54: Call Closed At | I54: Target | J54: Remark | K54: Profit / Loss per share | L54: All charges | M54: Gain / Loss per Lot | N54: Lot | O54: Status | P54: Closed Date
A55: 1 | B55: 2023-02-21 | D55: IGL MAR FUT | E55: Buy | F55: 442.5 | G55: 432 | H55: 432 | I55: 455-463 | J55: Loss of Rs.10.50/- | K55: =H55-F55 -> -10.5 | L55: 100.00 | M55: =(K55*N55)-100 -> -14275.0 | N55: 1350 | O55: Unsuccessful | P55: 2023-03-03 | R55: N
A56: 2 | B56: 2023-02-22 | D56: BATAINDIA MAR FUT | E56: Buy | F56: 1420-1425 | G56: 1380 | I56: 1470-1480 | J56: Open | R56: H
A57: 3 | B57: 2023-03-01 | D57: LT MAR FUT | E57: Buy | F57: 2130 | G57: 2090 | H57: 2162 | I57: 2170-2200 | J57: Profit of Rs.32/- | K57: =H57-F57 -> 32 | L57: 100.00 | M57: =(K57*N57)-100 -> 9500.0 | N57: 300 | O57: Successful | P57: 2023-03-03 | R57: H
A58: 4 | B58: 2023-03-01 | D58: BHARTIARTL MAR FUT | E58: Buy | F58: 753 | G58: 739 | H58: 762.5 | I58: 770-780 | J58: Profit of Rs.9.50/- | K58: =H58-F58 -> 9.5 | L58: 100.00 | M58: =(K58*N58)-100 -> 8925.0 | N58: 950 | O58: Successful | P58: 2023-03-03 | R58: H
A59: 5 | B59: 2023-03-02 | D59: SIEMENS MAR FUT | E59: Buy | F59: 3202.5 | G59: 3155 | H59: 3155 | I59: 3260-3290 | J59: Loss of Rs.47.5/- | K59: =H59-F59 -> -47.5 | L59: 100.00 | M59: =(K59*N59)-100 -> -13162.5 | N59: 275 | O59: Unsuccessful | P59: 2023-03-02 | R59: N
A60: 6 | B60: 2023-03-10 | D60: RELIANCE MAR FUT | E60: Buy | F60: 2340 | G60: 2290 | H60: 2290 | I60: 2390-2420 | J60: Loss of Rs.50/- | K60: =H60-F60 -> -50 | L60: 100.00 | M60: =(K60*N60)-100 -> -12600.0 | N60: 250 | O60: Unsuccessful | P60: 2023-03-13 | R60: H
A61: 7 | B61: 2023-03-14 | D61: LUPIN MAR FUT | E61: Buy | F61: 659 | G61: 645 | H61: 669.5 | I61: 680-690 | J61: Profit of Rs.10.50/- | K61: 10.5 | L61: 100.00 | M61: 8825.0 | N61: 850 | O61: Successful | P61: 2023-03-16 | R61: N
A62: 8 | B62: 2023-03-14 | D62: NIFTY MAR FUT | E62: Buy | F62: 17150 | G62: 16880 | H62: 16880 | I62: 17400-17500 | J62: Loss of Rs.194/- | K62: =H62-F62 -> -270 | L62: 400.00 | M62: -13600.0 | N62: 50 | O62: Unsuccessful | P62: 2023-03-20 | R62: H
D63: NIFTY 17400 CE 29 MAR | E63: Sell | F63: 105 | H63: 29 | K63: =F63-H63 -> 76 | L63: 100.00 | M63: =76*50 -> 3800.0
A64: 9 | B64: 2023-03-14 | D64: ONGC MAR FUT | E64: Buy | F64: 156 | G64: 152.75 | H64: 152.75 | I64: 160-162 | J64: Loss of Rs.3.25/- | K64: =H64-F64 -> -3.25 | L64: 100.00 | M64: =(K64*N64)-100 -> -12612.5 | N64: 3850 | O64: Unsuccessful | P64: 2023-03-15 | R64: N
A65: 10 | B65: 2023-03-15 | D65: MCDOWELL-N MAR FUT | E65: Buy | F65: 772 | G65: 752 | H65: 786 | I65: 795-805 | J65: Profit of Rs.14/- | K65: 14 | L65: 100.00 | M65: 8650.0 | N65: 625 | O65: Successful | P65: 2023-03-23 | R65: H
A66: 11 | B66: 2023-03-15 | D66: MPHASIS MAR FUT | E66: Buy | F66: 1905 | G66: 1845 | H66: 1845 | I66: 1980-2020 | J66: Loss of Rs.60/- | K66: =H66-F66 -> -60 | L66: 100.00 | M66: =(K66*N66)-100 -> -16600.0 | N66: 275 | O66: Unsuccessful | P66: 2023-03-20 | R66: H
A67: 12 | B67: 2023-03-17 | D67: ICICIBANK MAR FUT | E67: Buy | F67: 832 | G67: 814 | H67: 845 | I67: 850-860 | J67: Profit of Rs.13/- | K67: 13 | L67: 100.00 | M67: 9000.0 | N67: 700 | O67: Successful | P67: 2023-03-21 | R67: H
A68: 13 | B68: 2023-03-20 | D68: LUPIN MAR FUT | E68: Buy | F68: 648 | G68: 633 | H68: 658.5 | I68: 670-680 | J68: Profit of Rs.10.50/- | K68: 10.5 | L68: 100.00 | M68: 8825.0 | N68: 850 | O68: Successful | P68: 2023-03-22 | R68: N
A69: 14 | B69: 2023-03-24 | D69: TATACONSUM APR FUT | E69: Buy | F69: 704-706 | G69: 690 | I69: 725-735 | J69: Open
A70: 15 | B70: 2023-03-24 | D70: LUPIN APR FUT | E70: Buy | F70: 650-651 | G70: 635 | I70: 670-680 | J70: Open
A73: Master Trade Medium Risk
A74: Sr.no | B74: Date | D74: Company | E74: Rec | F74: Rec Price | G74: Stop Loss | H74: Call Closed At | I74: Target | J74: Remark | K74: Profit/ Loss per lot | L74: All charges | M74: Gain / Loss per Lot | N74: Lot | O74: Status | P74: Closed Date
A75: 1 | B75: 2023-02-28 | D75: LT 2160 CE MAR | E75: Buy | F75: 38 | G75: 21 | H75: 45.5 | I75: 60-70 | J75: Profit of Rs.7.5/- | K75: =H75-F75 -> 7.5 | L75: 100.00 | M75: =(K75*N75)-100 -> 2150.0 | N75: 300 | O75: Successful | P75: 2023-03-02 | R75: N
A76: 2 | B76: 2023-02-28 | D76: RELIANCE 2400 CE MAR | E76: Buy | F76: 38-40 | J76: Open | R76: H
D77: RELIANCE 2460 CE MAR | E77: Sell | F77: 19-21
A78: 3 | B78: 2023-02-28 | D78: ACC 1900 CE MAR | E78: Buy | F78: 22 | H78: 28.5 | I78: 50-60 | J78: Profit of Rs.6.5/- | K78: =H78-F78 -> 6.5 | L78: 100.00 | M78: =(K78*N78)-100 -> 1525.0 | N78: 250 | O78: Successful | P78: 2023-03-01 | R78: H
A79: 4 | B79: 2023-03-01 | D79: ACC 1900 CE MAR | E79: Buy | F79: 20.5 | H79: 27.5 | I79: 50-60 | J79: Profit of Rs.7/- | K79: =H79-F79 -> 7 | L79: 100.00 | M79: =(K79*N79)-100 -> 1650.0 | N79: 250 | O79: Successful | P79: 2023-03-02 | R79: H
A80: 5 | B80: 2023-03-01 | D80: NIFTY 17400 CE 2-MAR | E80: Buy | F80: 71 | G80: 40 | H80: 91 | I80: 110-140 | J80: Profit of Rs.20/- | K80: =H80-F80 -> 20 | L80: 100.00 | M80: =(K80*N80)-100 -> 900.0 | N80: 50 | O80: Successful | P80: 2023-03-01 | R80: H
A81: 6 | B81: 2023-03-02 | D81: NIFTY 17400 CE 2-MAR | E81: Buy | F81: 19 | G81: 0 | H81: 0 | I81: 50-60 | J81: Loss of Rs.19/- | K81: =H81-F81 -> -19 | L81: 100.00 | M81: =(K81*N81)-100 -> -1050.0 | N81: 50 | O81: Unsuccessful | P81: 2023-03-02 | R81: N
A82: 7 | B82: 2023-03-02 | D82: BANKNIFTY 40400 CE 2-MAR | E82: Buy | F82: 65 | G82: 0 | H82: 95 | I82: 150-200 | J82: Profit of Rs.30/- | K82: 30 | L82: 100.00 | M82: 650.0 | N82: 25 | O82: Successful | P82: 2023-03-02 | R82: H
A83: 8 | B83: 2023-03-03 | D83: POLYCAB 3200 CE MAR | E83: Sell | F83: 43 | G83: 64 | H83: 27 | I83: 20.0-5 | J83: Profit of Rs.16/- | K83: =F83-H83 -> 16 | L83: 100.00 | M83: 4700.0 | N83: 300 | O83: Successful | P83: 2023-03-10 | R83: H
A84: 9 | B84: 2023-03-06 | D84: NIFTY 18000 CE 29-MAR | E84: Sell | F84: 97.5 | G84: 140 | H84: 67.5 | I84: 40-5 | J84: Profit of Rs.30/- | K84: =F84-H84 -> 30 | L84: 100.00 | M84: =(K84*N84)-100 -> 1400.0 | N84: 50 | O84: Successful | P84: 2023-03-08 | R84: H
A85: 10 | B85: 2023-03-06 | D85: NIFTY 17750 PE 9-MAR | E85: Buy | F85: 57 | G85: 18 | H85: 80 | I85: 100-130 | J85: Profit of Rs.23/- | K85: =H85-F85 -> 23 | L85: 100.00 | M85: =(K85*N85)-100 -> 1050.0 | N85: 50 | O85: Successful | P85: 2023-03-06 | R85: N
A86: 11 | B86: 2023-03-08 | D86: IGL 460 CE MAR | E86: Buy | F86: 10.5 | G86: 7 | H86: 6 | I86: 16-18 | J86: Profit of Rs.4.50/- | K86: =H86-F86 -> -4.5 | L86: 100.00 | M86: =(K86*N86)-100 -> -6287.5 | N86: 1375 | O86: Unsuccessful | P86: 2023-03-10 | R86: H
A87: 12 | B87: 2023-03-08 | D87: BATAINDIA 1420 CE MAR | E87: Buy | F87: 29 | G87: 13 | H87: 37.5 | I87: 45-50 | J87: Profit of Rs.8.5/- | K87: =H87-F87 -> 8.5 | L87: 100.00 | M87: =(K87*N87)-100 -> 2237.5 | N87: 275 | O87: Successful | P87: 2023-03-08 | R87: H
A88: 13 | B88: 2023-03-08 | D88: NIFTY 18000 CE 29-MAR | E88: Sell | F88: 94 | G88: 140 | H88: 73 | I88: 1.00 | J88: Profit of Rs.21/- | K88: =F88-H88 -> 21 | L88: 100.00 | M88: 950.0 | N88: 50 | O88: Successful | P88: 2023-03-09 | R88: H
A89: 14 | B89: 2023-03-09 | D89: BANKNIFTY 41500 CE 9-MAR | E89: Buy | F89: 65 | H89: 125 | I89: 150-200 | J89: Profit of Rs.60/- | K89: =H89-F89 -> 60 | L89: 100.00 | M89: 1400.0 | N89: 25 | O89: Successful | P89: 2023-03-09 | R89: N
A90: 15 | B90: 2023-03-09 | D90: RELIANCE 2380 CE MAR | E90: Buy | F90: 50 | G90: 30 | H90: 30 | I90: 80-90 | J90: Loss of Rs.20/- | K90: -20 | L90: 100.00 | M90: -5100.0 | N90: 250 | O90: Unsuccessful | P90: 2023-03-10 | R90: H
A91: 16 | B91: 2023-03-09 | D91: NIFTY 17650 CE 9-MAR | E91: Buy | F91: 45 | G91: 9 | H91: 67 | I91: 90-110 | J91: Profit of Rs.22/- | K91: =H91-F91 -> 22 | L91: 100.00 | M91: =(K91*N91)-100 -> 1000.0 | N91: 50 | O91: Successful | P91: 2023-03-09 | R91: H
A92: 17 | B92: 2023-03-09 | D92: BATAINDIA 1440 CE MAR | E92: Buy | F92: 27.5 | G92: 13 | H92: 13 | I92: 45-60 | J92: Loss of Rs.14/- | K92: -14.5 | L92: 100.00 | M92: -4087.5 | N92: 275 | O92: Unsuccessful | P92: 2023-03-20 | R92: H
A93: 18 | B93: 2023-03-09 | D93: BANKNIFTY 41400 CE 9-MAR | E93: Buy | F93: 45 | G93: 0 | H93: 0 | I93: 80-100 | J93: Loss of Rs.45/- | K93: =H93-F93 -> -45 | L93: 100.00 | M93: =(K93*N93)-100 -> -1225.0 | N93: 25 | O93: Unsuccessful | P93: 2023-03-09 | R93: N
A94: 19 | B94: 2023-03-10 | D94: NIFTY 17500 CE 16-MAR | E94: Buy | F94: 62.5 | G94: 28 | H94: 64 | I94: 90-110 | J94: Profit of Rs.1.5/- | K94: 1.5 | L94: 100.00 | M94: -25.0 | N94: 50 | O94: Neutral | P94: 2023-03-10 | R94: H
A95: 20 | B95: 2023-03-10 | D95: LT 2160 CE MAR | E95: Buy | F95: 39 | G95: 21 | H95: 48.5 | I95: 60-75 | J95: Profit of Rs.9.5/- | K95: =H95-F95 -> 9.5 | L95: 100.00 | M95: =(K95*N95)-100 -> 2750.0 | N95: 300 | O95: Successful | P95: 2023-03-13 | R95: H
A96: 21 | B96: 2023-03-10 | D96: MARUTI 8600 CE MAR | E96: Buy | F96: 138 | G96: 90 | H96: 163.5 | I96: 180-220 | J96: Profit of Rs.25.5/- | K96: =H96-F96 -> 25.5 | L96: 100.00 | M96: =(K96*N96)-100 -> 2450.0 | N96: 100 | O96: Successful | P96: 2023-03-10 | R96: N
A97: 22 | B97: 2023-03-10 | D97: MARUTI 8600 CE MAR | E97: Buy | F97: 131 | G97: 80 | H97: 154 | I97: 170-200 | J97: Profit of Rs.23/- | K97: =H97-F97 -> 23 | L97: 100.00 | M97: =(K97*N97)-100 -> 2200.0 | N97: 100 | O97: Successful | P97: 2023-03-10 | R97: N
A98: 23 | B98: 2023-03-13 | D98: LALPATHLAB 1800 PE MAR | E98: Buy | F98: 32 | G98: 14 | H98: 52 | I98: 50-65 | J98: Profit of Rs.23/- | K98: =H98-F98 -> 20 | L98: 100.00 | M98: =(K98*N98)-100 -> 4900.0 | N98: 250 | O98: Successful | P98: 2023-03-13 | R98: N
A99: 24 | B99: 2023-03-13 | D99: TECHM 1180 CE 29-MAR | E99: Sell | F99: 16 | G99: 25 | H99: 10 | I99: 1.00 | J99: Profit of Rs.6/- | K99: =F99-H99 -> 6 | L99: 100.00 | M99: 3500.0 | N99: 600 | O99: Successful | P99: 2023-03-13 | R99: H
A100: 25 | B100: 2023-03-13 | D100: LT 2160 CE MAR | E100: Buy | F100: 41 | G100: 23 | H100: 48.5 | I100: 60-75 | J100: Profit of Rs.7.5/- | K100: =H100-F100 -> 7.5 | L100: 100.00 | M100: 2150.0 | N100: 300 | O100: Successful | P100: 2023-03-14 | R100: N
A101: 26 | B101: 2023-03-13 | D101: NIFTY 17500 CE 16-MAR | E101: Buy | F101: 38 | G101: 8 | H101: 9.5 | I101: 80-100 | J101: Loss of Rs.28.5/- | K101: -28.5 | L101: 100.00 | M101: -2950.0 | N101: 100 | O101: Unsuccessful | P101: 2023-03-14 | R101: H
A102: 27 | B102: 2023-03-13 | D102: ULTRACEMCO 7200 CE MAR | E102: Buy | F102: 128 | G102: 90 | H102: 90 | I102: 170-200 | J102: Loss of Rs.38/- | K102: =H102-F102 -> -38 | L102: 100.00 | M102: =(K102*N102)-100 -> -3900.0 | N102: 100 | O102: Unsuccessful | P102: 2023-03-14 | R102: N
A103: 28 | B103: 2023-03-13 | D103: BANKNIFTY 40100 CE 16-MAR | E103: Buy | F103: 250 | G103: 130 | H103: 130 | I103: 400-500 | J103: Loss of Rs.120/- | K103: =H103-F103 -> -120 | L103: 100.00 | M103: =(K103*N103)-100 -> -3100.0 | N103: 25 | O103: Unsuccessful | P103: 2023-03-13 | R103: H
A104: 29 | B104: 2023-03-14 | D104: LT 2160 CE MAR | E104: Buy | F104: 39 | G104: 21 | H104: 49 | I104: 60-75 | J104: Profit of Rs.10/- | K104: 10 | L104: 100.00 | M104: 2900.0 | N104: 300 | O104: Successful | P104: 2023-03-15 | R104: N
A105: 30 | B105: 2023-03-14 | D105: MARUTI 8500 CE MAR | E105: Buy | F105: 145 | G105: 95 | H105: 165 | I105: 200-240 | J105: Profit of Rs.20/- | K105: =H105-F105 -> 20 | L105: 100.00 | M105: =(K105*N105)-100 -> 1900.0 | N105: 100 | O105: Successful | P105: 2023-03-14 | R105: H
A106: 31 | B106: 2023-03-14 | D106: MARUTI 8500 CE MAR | E106: Buy | F106: 145 | G106: 95 | H106: 163 | I106: 200-240 | J106: Profit of Rs.18/- | K106: 18 | L106: 100.00 | M106: 1700.0 | N106: 100 | O106: Successful | P106: 2023-03-14 | R106: H
A107: 32 | B107: 2023-03-14 | D107: BANKNIFTY 39600 CE 16 MAR | E107: Buy | F107: 285 | G107: 150 | H107: 425 | I107: 500.00 | J107: Profit of Rs.140/- | K107: 140 | L107: 100.00 | M107: 3400.0 | N107: 25 | O107: Successful | P107: 2023-03-15 | R107: N
A108: 33 | B108: 2023-03-15 | D108: BANKNIFTY 39500 CE 16 MAR | E108: Buy | F108: 260 | G108: 130 | H108: 315 | I108: 400-500 | J108: Profit of Rs.55/- | K108: =H108-F108 -> 55 | L108: 100.00 | M108: =(K108*N108)-100 -> 1275.0 | N108: 25 | O108: Successful | P108: 2023-03-15 | R108: N
A109: 34 | B109: 2023-03-15 | D109: M&M 1180 CE MAR | E109: Buy | F109: 19.5 | G109: 13 | H109: 23.5 | I109: 30-35 | J109: Profit of Rs.4/- | K109: 4 | L109: 100.00 | M109: 2700.0 | N109: 700 | O109: Successful | P109: 2023-03-15 | R109: H
A110: 35 | B110: 2023-03-15 | D110: BANKNIFTY 39500 CE 16 MAR | E110: Buy | F110: 235 | G110: 120 | H110: 120 | I110: 400-500 | J110: Loss of Rs.115/- | K110: =H110-F110 -> -115 | L110: 100.00 | M110: =(K110*N110)-100 -> -2975.0 | N110: 25 | O110: Unsuccessful | P110: 2023-03-15 | R110: N
A111: 36 | B111: 2023-03-16 | D111: LT 2160 CE MAR | E111: Buy | F111: 30 | G111: 13 | H111: 37.5 | I111: 55-70 | J111: Profit of Rs.7.5/- | K111: =H111-F111 -> 7.5 | L111: 100.00 | M111: 2150.0 | N111: 300 | O111: Successful | P111: 2023-03-16 | R111: N
A112: 37 | B112: 2023-03-16 | D112: NIFTY 16950 CE 16-MAR | E112: Buy | F112: 26 | G112: 0 | H112: 46 | I112: 50-70 | J112: Profit of Rs.20/- | K112: 20 | L112: 100.00 | M112: =(K112*N112)-100 -> 900.0 | N112: 50 | O112: Successful | P112: 2023-03-16 | R112: N
A113: 38 | B113: 2023-03-17 | D113: BANKNIFTY 39500 CE 23-MAR | E113: Buy | F113: 350 | G113: 240 | H113: 240 | I113: 500-600 | J113: Loss of Rs.110/- | K113: =H113-F113 -> -110 | L113: 100.00 | M113: -2850.0 | N113: 25 | O113: Unsuccessful | P113: 2023-03-17 | R113: H
A114: 39 | B114: 2023-03-17 | D114: M&M 1180 CE MAR | E114: Buy | F114: 18 | G114: 12 | H114: 21.5 | I114: 25-30 | J114: Profit of Rs.3.5/- | K114: 3.5 | L114: 100.00 | M114: 2350.0 | N114: 700 | O114: Successful | P114: 2023-03-17 | R114: H
A115: 40 | B115: 2023-03-17 | D115: BHARTIARTL 750 CE MAR | E115: Buy | F115: 8.75 | G115: 3.5 | H115: 11.1 | I115: 15-18 | J115: Profit of Rs.2.35/- | K115: =H115-F115 -> 2.35 | L115: 100.00 | M115: =(K115*N115)-100 -> 2132.5 | N115: 950 | O115: Successful | P115: 2023-03-17 | R115: H
A116: 41 | B116: 2023-03-20 | D116: M&M 1180 CE MAR | E116: Buy | F116: 12.5 | G116: 5 | H116: 16.5 | I116: 20-25 | J116: Profit of Rs.4/- | K116: 4 | L116: 100.00 | M116: 2700.0 | N116: 700 | O116: Successful | P116: 2023-03-21 | R116: H
A117: 42 | B117: 2023-03-20 | D117: MCDOWELL-N 780 CE MAR | E117: Buy | F117: 7.5 | H117: 11 | I117: 15-20 | J117: Profit of Rs.3.5/- | K117: 3.5 | L117: 100.00 | M117: 2087.5 | N117: 625 | O117: Successful | P117: 2023-03-23 | R117: H
A118: 43 | B118: 2023-03-20 | D118: LT 2160 CE MAR | E118: Buy | F118: 35 | G118: 19 | H118: 43 | I118: 50-60 | J118: Profit of Rs.8/- | K118: =H118-F118 -> 8 | L118: 100.00 | M118: =(K118*N118)-100 -> 2300.0 | N118: 300 | O118: Successful | P118: 2023-03-20 | R118: N
A119: 44 | B119: 2023-03-20 | D119: NIFTY 16950 CE 23-MAR | E119: Buy | F119: 87 | G119: 40 | H119: 109 | I119: 140-160 | J119: Profit of Rs.22/- | K119: 22 | L119: 100.00 | M119: 1000.0 | N119: 50 | O119: Successful | P119: 2023-03-20 | R119: H
A120: 45 | B120: 2023-03-21 | D120: MARUTI 8300 CE MAR | E120: Buy | F120: 101 | G120: 55 | H120: 122 | I120: 160-190 | J120: Profit of Rs.21/- | K120: 21 | L120: 100.00 | M120: 2000.0 | N120: 100 | O120: Successful | P120: 2023-03-23 | R120: N
A121: 46 | B121: 2023-03-21 | D121: HINDUNILVR 2500 CE MAR | E121: Buy | F121: 23-25 | G121: 9 | I121: 40-50 | J121: Open | R121: H
A122: 47 | B122: 2023-03-22 | D122: LT 2220 CE MAR | E122: Buy | F122: 26.5 | G122: 10 | H122: 34 | I122: 45-55 | J122: Profit of Rs.7.5/- | K122: =H122-F122 -> 7.5 | L122: 100.00 | M122: =(K122*N122)-100 -> 2150.0 | N122: 300 | O122: Successful | P122: 2023-03-23 | R122: N
A123: 48 | B123: 2023-03-22 | D123: NIFTY 17100 PE 23-MAR | E123: Buy | F123: 52.5 | G123: 10 | H123: 72.5 | I123: 100-140 | J123: Profit of Rs.22/- | K123: =H123-F123 -> 20 | L123: 100.00 | M123: =(K123*N123)-100 -> 900.0 | N123: 50 | O123: Successful | P123: 2023-03-23 | R123: N
A124: 49 | B124: 2023-03-23 | D124: NIFTY 17200 CE 29-MAR | E124: Buy | F124: 77 | G124: 30 | H124: 97 | I124: 120-140 | J124: Profit of Rs.22/- | K124: 20 | L124: 100.00 | M124: 900.0 | N124: 50 | O124: Successful | P124: 2023-03-23
A125: 50 | B125: 2023-03-23 | D125: MCDOWELL-N 780 CE MAR | E125: Buy | F125: 7.0-8.0 | I125: 15-20 | J125: Open
A126: 51 | B126: 2023-03-23 | D126: M&M 1180 CE MAR | E126: Buy | F126: 9.5 | G126: 3 | H126: 3.8 | I126: 18-23 | J126: Loss of Rs.5.7/- | K126: =H126-F126 -> -5.7 | L126: 100.00 | M126: =(K126*N126)-100 -> -4090.0 | N126: 700 | O126: Unsuccessful | P126: 2023-03-24
A127: 52 | B127: 2023-03-23 | D127: LT 2220 CE MAR | E127: Buy | F127: 23 | G127: 6 | H127: 6 | I127: 40-50 | J127: Loss of Rs.17/- | K127: =H127-F127 -> -17 | L127: 100.00 | M127: =(K127*N127)-100 -> -5200.0 | N127: 300 | O127: Unsuccessful | P127: 2023-03-24
A128: 53 | B128: 2023-03-23 | D128: RELIANCE 2260 CE MAR | E128: Buy | F128: 23 | G128: 4 | I128: 50-60 | J128: Open
A129: 54 | B129: 2023-03-23 | D129: NIFTY 17100 CE 23-MAR | E129: Buy | F129: 9 | H129: 0 | I129: 30-40 | J129: Loss of Rs.9/- | K129: =H129-F129 -> -9 | L129: 100.00 | M129: =(K129*N129)-100 -> -550.0 | N129: 50 | O129: Unsuccessful | P129: 2023-03-23
A130: 55 | B130: 2023-03-24 | D130: NIFTY 17100 CE MAR | E130: Buy | F130: 66-70 | G130: 35 | I130: 110-130 | J130: Open
A132: Techno -Funda (positional)
A133: Sr.no | B133: Date | D133: Company | E133: Rec | F133: Rec Price | G133: Stop Loss*** | H133: Call Closed At | I133: Target | J133: Remark | K133: Profit / Loss per Share/Lot | L133: All charges | M133: Net Gain / Loss % | N133: Status | O133: Closed Date | P133: Market Closing Price
A134: 1 | B134: 2022-10-06 | D134: AMBIKCO | E134: Buy | F134: 1420-1620 | G134: 1220 | I134: 2000-2300 | J134: Open | R134: H
A136: CLBS = Closing Basis *** | F136: Reinitiated $
A137: Dividend adjusted <> | F137: Revised stoploss # | H137: .................
B141: Investment Idea
A142: Sr.no | B142: Date | D142: Company | E142: Rec | F142: Rec Price | G142: Point of Review | H142: Close Rate | I142: Target | J142: Remark | K142: Profit / Loss per Share | L142: Gain / Loss % | M142: Status | N142: Closed Date
A143: 1 | B143: 2013-11-01 | D143: L&T Finance Holding | E143: Accu | F143: 82.00 | G143: - | H143: 100 | I143: 100.00 | J143: Target Achieved | K143: =H143-F143 -> 18.00 | L143: =K143/F143 -> 21.95% | M143: Successful | N143: 2016-10-14
A144: 2 | B144: 2014-06-04 | D144: Finolex Inds | E144: Buy | F144: 257.00 | G144: - | H144: 300 | I144: 300.00 | J144: Target Achieved | K144: 43.00 | L144: 16.73% | M144: Successful | N144: 2014-07-02
A145: 3 | B145: 2014-07-08 | D145: JK Cement | E145: Buy | F145: 393.00 | G145: - | H145: 468 | I145: 468.00 | J145: Target Achieved | K145: 75.00 | L145: 19.08% | M145: Successful | N145: 2014-08-12
A146: 4 | B146: 2014-08-06 | D146: Finolex Cables | E146: Buy | F146: 205.00 | G146: - | H146: 275 | I146: 250.00 | J146: Target Achieved | K146: 70.00 | L146: 34.15% | M146: Successful | N146: 2014-11-19
A147: 5 | B147: 2014-09-04 | D147: Exide Inds | E147: Buy | F147: 162.00 | G147: - | H147: 190 | I147: 190.00 | J147: Target Achieved | K147: 28.00 | L147: 17.28% | M147: Successful | N147: 2015-01-02
A148: 6 | B148: 2014-09-04 | D148: Deepak Nitrite | E148: Buy | F148: 75.00 | G148: - | H148: 91.5 | I148: 95-100 | J148: Profit of Rs.16.50/- | K148: 16.50 | L148: 22.00% | M148: Successful | N148: 2014-11-11
A149: 7 | B149: 2014-10-01 | D149: Mercks | E149: Buy | F149: 850.00 | G149: - | H149: 982.5 | I149: 1050.00 | J149: Profit of Rs.132.50/- | K149: 132.50 | L149: 15.59% | M149: Successful | N149: 2015-02-04
A150: 8 | B150: 2014-10-01 | D150: Grindwell Norton | E150: Buy | F150: 475.00 | G150: - | H150: 515 | I150: 600.00 | J150: Profit of Rs.40/- | K150: 40.00 | L150: 8.42% | M150: Successful | N150: 2014-10-27
A151: 9 | B151: 2014-10-01 | D151: Snowman Logistics | E151: Buy | F151: 86.00 | G151: - | H151: 99 | I151: 140.00 | J151: Profit of Rs.13.00/- | K151: 13.00 | L151: 15.12% | M151: Successful | N151: 2014-10-27
A152: 10 | B152: 2014-10-14 | D152: Birla Corp | E152: Buy | F152: 496.60 | G152: - | H152: 621 | I152: 580.00 | J152: Target Achieved | K152: 124.40 | L152: 25.05% | M152: Successful | N152: 2016-08-23
A153: 11 | B153: 2014-10-14 | D153: Ultratech Cem | E153: Buy | F153: 2481.90 | G153: - | H153: 2840 | I153: 2870.00 | J153: Profit of Rs.358.10/- | K153: 358.10 | L153: 14.43% | M153: Successful | N153: 2015-01-13
A154: 12 | B154: 2014-10-16 | D154: Sintex Inds | E154: Buy | F154: 84.50 | G154: - | H154: 93 | I154: 110.00 | J154: Profit of Rs.8.50/- | K154: 8.50 | L154: 10.06% | M154: Successful | N154: 2014-10-27
A155: 13 | B155: 2014-10-16 | D155: HSIL | E155: Buy | F155: 401.00 | G155: - | H155: 428 | I155: 450.00 | J155: Profit of Rs.27.00/- | K155: 27.00 | L155: 6.73% | M155: Successful | N155: 2015-01-16
A156: 14 | B156: 2014-10-16 | D156: Eveready Inds | E156: Buy | F156: 101.00 | G156: - | H156: 112 | I156: 120.00 | J156: Profit of Rs.11.00/- | K156: 11.00 | L156: 10.89% | M156: Successful | N156: 2014-10-27
A157: 15 | B157: 2014-11-11 | D157: Pennar Inds | E157: Buy | F157: 59.00 | G157: - | H157: 76 | I157: 76.00 | J157: Target Achieved | K157: 17.00 | L157: 28.81% | M157: Successful | N157: 2017-10-24
A158: 16 | B158: 2014-11-11 | D158: Snowman Logistics | E158: Buy | F158: 99.00 | G158: - | H158: 120 | I158: 120.00 | J158: Profit of Rs.21/- | K158: 21.00 | L158: 21.21% | M158: Successful | N158: 2014-11-17
A159: 17 | B159: 2014-11-13 | D159: Dharamsi Morarji Chem | E159: Buy | F159: 22.00 | G159: - | H159: 33.55 | I159: 32.00 | J159: Profit of Rs 11.55/- | K159: 11.55 | L159: 52.50% | M159: Successful | N159: 2015-07-03
A160: 18 | B160: 2014-12-03 | D160: Tatachem | E160: Buy | F160: 440.00 | G160: - | H160: 520 | I160: 520.00 | J160: Profit of Rs 80.00/- | K160: 80.00 | L160: 18.18% | M160: Successful | N160: 2015-07-23
A161: 19 | B161: 2014-12-03 | D161: Advanta | E161: Buy | F161: 360.00 | G161: - | H161: 427 | I161: 425.00 | J161: Profit of Rs.67.00/- | K161: 67.00 | L161: 18.61% | M161: Successful | N161: 2015-02-23
A162: 20 | B162: 2015-01-08 | D162: GDL | E162: Buy | F162: 360.00 | G162: - | H162: 455 | I162: 420.00 | J162: Profit of Rs.95.00/- | K162: 95.00 | L162: 26.39% | M162: Successful | N162: 2015-01-20
A163: 21 | B163: 2015-01-08 | D163: NRB Bearing | E163: Buy | F163: 130.00 | H163: 175.5 | I163: 165.00 | J163: Profit of Rs 45.50/- | K163: 45.50 | L163: 35.00% | M163: Successful | N163: 2017-12-19
A164: 22 | B164: 2015-02-05 | D164: GSFC | E164: Accu | F164: 98.00 | H164: 120 | I164: 120.00 | J164: Target Achieved | K164: 22.00 | L164: 22.45% | M164: Successful | N164: 2017-01-18
A165: 23 | B165: 2015-02-05 | D165: Sundrmfast | E165: Accu | F165: 196.00 | H165: 262 | I165: 255.00 | J165: Target Achieved | K165: 66.00 | L165: 33.67% | M165: Successful | N165: 2016-08-17
A166: 24 | B166: 2015-03-04 | D166: GPPL | E166: Accu | F166: 235 | H166: 77.00 | I166: 280-285 | J166: Loss of Rs.158/- | K166: -158.00 | L166: -67.23% | M166: Unsuccessful | N166: 2019-02-26
A167: 25 | B167: 2015-03-04 | D167: ORIENTCEM | E167: Accu | F167: 185.00 | H167: 224 | I167: 220-225 | J167: Target Achieved | K167: 39.00 | L167: 21.08% | M167: Successful | N167: 2016-10-04
A168: 26 | B168: 2015-03-27 | D168: PFS | E168: Accu | F168: 49.5 | H168: 15.85 | I168: 67.00 | J168: Loss of Rs.33.65/- | K168: -33.65 | L168: -68% | M168: Unsuccessful | N168: 2019-06-11
A169: 27 | B169: 2015-03-30 | D169: Walchandnagar Ind Ltd | E169: Accu | F169: 183.50 | H169: 219 | I169: 218.00 | J169: Profit of Rs.35.50/- | K169: 35.50 | L169: 19.35% | M169: Successful | N169: 2015-04-09
A170: 28 | B170: 2015-04-20 | D170: Kalpataru Power Transmission Ltd | E170: Accu | F170: =(227+237)/2 -> 232.00 | H170: 298 | I170: 298.00 | J170: Target Achieved | K170: 66.00 | L170: 28.45% | M170: Successful | N170: 2017-03-29
A171: 29 | B171: 2015-05-04 | D171: Mastek Ltd | E171: Buy | F171: 385.00 | H171: =212.5+331 -> 543.5 | I171: 510.00 | J171: Profit of Rs 158.50/- | K171: 158.50 | L171: 41.17% | M171: Successful | N171: 2015-08-19
A172: 30 | B172: 2015-05-04 | D172: Suprajit Eng | E172: Buy | F172: 115.50 | H172: 146 | I172: 142.00 | J172: Profit of Rs 30.50/- | K172: 30.50 | L172: 26.41% | M172: Successful | N172: 2015-07-17
A173: 31 | B173: 2015-05-27 | D173: TCI | E173: Buy | F173: 237.50 | H173: 279.5 | I173: 278.00 | J173: Target Achieved | K173: 42.00 | L173: 17.68% | M173: Successful | N173: 2015-08-06
A174: 32 | B174: 2015-06-19 | D174: HSIL | E174: Accu | F174: 340.00 | H174: 448 | I174: 448.00 | J174: Target Achieved | K174: 108.00 | L174: 31.76% | M174: Successful | N174: 2017-10-10
A175: 33 | B175: 2015-07-06 | D175: Capital First | E175: Accu | F175: 390.00 | H175: 460 | I175: 460.00 | J175: Target Achieved | K175: 70.00 | L175: 17.95% | M175: Successful | N175: 2016-04-18
A176: 34 | B176: 2015-07-10 | D176: Dolphin OffShore | E176: Accu | F176: 122.5 | H176: 61.00 | I176: 172.00 | J176: Loss of Rs.61.50/- | K176: -61.50 | L176: -50.20% | M176: Unsuccessful | N176: 2018-08-21
A177: 35 | B177: 2015-08-03 | D177: Allcargo logistics | E177: Accu | F177: 297.50 | H177: 350 | I177: 360.00 | J177: Profit of Rs 52.50/- | K177: 52.50 | L177: 17.65% | M177: Successful | N177: 2015-08-16
A178: 36 | B178: 2015-08-03 | D178: Camline Fine | E178: Accu | F178: 115.50 | H178: 149 | I178: 140.00 | J178: Profit of Rs 33.50/- | K178: 33.50 | L178: 29.00% | M178: Successful | N178: 2017-01-05
A179: 37 | B179: 2015-09-04 | D179: TCI | E179: Accu | F179: 226.00 | H179: 292 | I179: 292.00 | J179: Target Achieved | K179: 66.00 | L179: 29.20% | M179: Successful | N179: 2015-10-09
A180: 38 | B180: 2015-09-07 | D180: Kalpataru Power Transmission Ltd | E180: Accu | F180: 232.50 | H180: 312.5 | I180: 310.00 | J180: Target Achieved | K180: 80.00 | L180: 34.41% | M180: Successful | N180: 2017-03-29
A181: 39 | B181: 2015-09-21 | D181: LLOYD ELECTRIC & ENG LTD | E181: Accu | F181: 196.50 | H181: 238 | I181: 238.00 | J181: Target Achieved | K181: 41.50 | L181: 21.12% | M181: Successful | N181: 2015-10-14
A182: 40 | B182: 2015-09-24 | D182: L&T Finance Holding | E182: Accu | F182: 65.00 | H182: 82 | I182: 82.00 | J182: Target Achieved | K182: 17.00 | L182: 26.15% | M182: Successful | N182: 2016-07-27
A183: 41 | B183: 2015-10-14 | D183: KEC International ltd | E183: Accu | F183: 144.00 | H183: 182.5 | I183: 181.00 | J183: Target Achieved | K183: 38.50 | L183: 26.74% | M183: Successful | N183: 2017-03-23
A184: 42 | B184: 2015-10-14 | D184: Gruh Finance | E184: Accu | F184: 264.00 | H184: 311 | I184: 311.00 | J184: Target Achieved | K184: 47.00 | L184: 17.80% | M184: Successful | N184: 2016-08-22
A185: 43 | B185: 2015-11-10 | D185: Pidilitind | E185: Buy | F185: 549.50 | H185: 630 | I185: 630.00 | J185: Target Achieved | K185: 80.50 | L185: 14.65% | M185: Successful | N185: 2016-02-19
A186: 44 | B186: 2015-12-04 | D186: Zensar Technology | E186: Accu | F186: 1027.50 | H186: 1315 | I186: 1250.00 | J186: Target Achieved | K186: 287.50 | L186: 27.98% | M186: Successful | N186: 2018-05-24
A187: 45 | B187: 2015-12-29 | D187: Vinati Organics Ltd | E187: Accu | F187: 465.00 | H187: 540 | I187: 540.00 | J187: Target Achieved | K187: 75.00 | L187: 16.13% | M187: Successful | N187: 2016-06-09
A188: 46 | B188: 2016-01-11 | D188: GSFC | E188: Buy | F188: 81.00 | H188: 110 | I188: 110.00 | J188: Target Achieved | K188: 29.00 | L188: 35.80% | M188: Successful | N188: 2017-01-10
A189: 47 | B189: 2016-01-13 | D189: SSWL | E189: Buy | F189: 417.50 | H189: 547 | I189: 535.00 | J189: Target Achieved | K189: 129.50 | L189: 31.02% | M189: Successful | N189: 2016-07-27
A190: 48 | B190: 2016-02-08 | D190: Persistent System Ltd | E190: Accu | F190: 650.00 | H190: 800 | I190: 800.00 | J190: Target Achieved | K190: 150.00 | L190: 23.08% | M190: Successful | N190: 2018-02-23
A191: 49 | B191: 2016-03-04 | D191: UPL | E191: Accu | F191: 437.50 | H191: 504.5 | I191: 522.00 | J191: Profit of Rs.67/- | K191: 67.00 | L191: 15.31% | M191: Successful | N191: 2016-04-20
A192: 50 | B192: 2016-03-09 | D192: Ashoka Buildcon Ltd | E192: Accu | F192: 189.50 | H192: 218 | I192: 218.00 | J192: Target Achieved | K192: 28.50 | L192: 15.04% | M192: Successful | N192: 2017-10-26
A193: 51 | B193: 2016-04-11 | D193: PTC INDIA FIN SERV LTD | E193: Accu | F193: 36.5 | H193: 15.85 | I193: 60.00 | J193: Loss of Rs.20.65/- | K193: -20.65 | L193: -56.58% | M193: Unsuccessful | N193: 2019-06-11
A194: 52 | B194: 2016-04-12 | D194: CAMLINFINE $ | E194: Accu | F194: 93.00 | H194: 149 | I194: 140.00 | J194: Profit of Rs 56/- | K194: 56.00 | L194: 60.22% | M194: Successful | N194: 2017-01-05
A195: 53 | B195: 2016-04-12 | D195: Greaves Cotton Ltd. | E195: Accu | F195: 130.00 | H195: 150 | I195: 150-155 | J195: Target Achieved | K195: 20.00 | L195: 15.38% | M195: Successful | N195: 2016-07-13
A196: 54 | B196: 2016-04-13 | D196: DHFL | E196: Accu | F196: 196.00 | H196: 299 | I196: 299.00 | J196: Target Achieved | K196: 103.00 | L196: 52.55% | M196: Successful | N196: 2016-09-07
A197: 55 | B197: 2016-04-13 | D197: Magma | E197: Accu | F197: 88.00 | H197: 103 | I197: 103.00 | J197: Target Achieved | K197: 15.00 | L197: 17.05% | M197: Successful | N197: 2016-06-09
A198: 56 | B198: 2016-05-02 | D198: KEC International ltd $ | E198: Accu | F198: 127.50 | H198: 148 | I198: 148-150 | J198: Target Achieved | K198: =H198-F198 -> 20.50 | L198: =K198/F198 -> 16.08% | M198: Successful | N198: 2016-07-13
A199: 57 | B199: 2016-05-03 | D199: Mindtree | E199: Accu | F199: 675.00 | H199: 815 | I199: 790-800 | J199: Target Achieved | K199: =H199-F199 -> 140.00 | L199: =K199/F199 -> 20.74% | M199: Successful | N199: 2018-02-23
A200: 58 | B200: 2016-06-01 | D200: Atulauto | E200: Accu | F200: 500 | H200: 232.50 | I200: 565-570 | J200: Loss of Rs.267.50 /- | K200: =H200-F200 -> -267.50 | L200: =K200/F200 -> -53.50% | M200: Unsuccessful | N200: 2019-09-27
A201: 59 | B201: 2016-06-06 | D201: TRITURBINE | E201: Accu | F201: 110.00 | H201: 126.5 | I201: 125.00 | J201: Profit of Rs.16.50/- | K201: =H201-F201 -> 16.50 | L201: =K201/F201 -> 15.00% | M201: Successful | N201: 2016-07-01
A202: 60 | B202: 2016-06-17 | D202: Pennar Industries Ltd | E202: Accu | F202: 44.00 | H202: 69.5 | I202: 69.50 | J202: Profit of Rs.25.50/- | K202: =H202-F202 -> 25.50 | L202: =K202/F202 -> 57.95% | M202: Successful | N202: 2017-08-30
A203: 61 | B203: 2016-06-28 | D203: EVEREADY | E203: Accu | F203: 262.50 | H203: 340 | I203: 333.00 | J203: Profit of Rs.77.50/- | K203: 77.50 | L203: 29.52% | M203: Successful | N203: 2017-10-09
A204: 62 | B204: 2016-06-28 | D204: FIEMIND | E204: Accu | F204: 840.00 | H204: 1230 | I204: 1230.00 | J204: Target Achieved | K204: 390.00 | L204: 46.43% | M204: Successful | N204: 2016-10-06
A205: 63 | B205: 2016-07-05 | D205: Bajaj Corp Ltd | E205: Accu | F205: 395 | H205: =(468.5+342.5)/2 -> 405.50 | I205: 510.00 | J205: Profit of Rs.10.50/- | K205: =H205-F205 -> 10.50 | L205: =K205/F205 -> 3% | M205: Neutral | N205: 2019-05-21
A206: 64 | B206: 2016-08-02 | D206: GPPL $ | E206: Buy | F206: =169.5-12.8 -> 156.7 | H206: 77.00 | I206: 198-200 | J206: Loss of Rs.79.7/- | K206: -79.70 | L206: -50.86% | M206: Unsuccessful | N206: 2019-02-26
A207: 65 | B207: 2016-08-04 | D207: WONDERLA HOLIDAYS LTD | E207: Accu | F207: 400 | H207: 305.00 | I207: 475.00 | J207: Loss of Rs.95/- | K207: -95.00 | L207: -23.75% | M207: Unsuccessful | N207: 2019-05-21
A208: 66 | B208: 2016-08-11 | D208: CAMLINFINE | E208: Accu | F208: 86.50 | H208: 130 | I208: 130.00 | J208: Profit of Rs.43.50/- | K208: 43.50 | L208: 50.29% | M208: Successful | N208: 2017-12-22
A209: 67 | B209: 2016-08-18 | D209: GRANULES | E209: Accu | F209: 133.5 | H209: 126.50 | I209: 178.00 | J209: Exit | K209: -7.00 | L209: -5.24% | M209: Unsuccessful | N209: 2016-09-02
A210: 68 | B210: 2016-08-31 | D210: VA TECH WABAG | E210: Accu | F210: 560.00 | H210: 725 | I210: 725.00 | J210: Target Achieved | K210: 165.00 | L210: 29.46% | M210: Successful | N210: 2016-03-27
A211: 69 | B211: 2016-09-01 | D211: SKIPPER LIMITED | E211: Accu | F211: 160.50 | H211: 210 | I211: 210.00 | J211: Target Achieved | K211: 49.50 | L211: 30.84% | M211: Successful | N211: 2017-05-16
A212: 70 | B212: 2016-10-03 | D212: IFBIND | E212: Accu | F212: 430.00 | H212: 596 | I212: 575.00 | J212: Profit of Rs.166/- | K212: 166.00 | L212: 38.60% | M212: Successful | N212: 2017-02-03
A213: 71 | B213: 2016-10-14 | D213: ASIANTILES | E213: Accu | F213: 280.00 | H213: 345 | I213: 345.00 | J213: Target Achieved | K213: =H213-F213 -> 65.00 | L213: =K213/F213 -> 23.21% | M213: Successful | N213: 2017-03-20
A214: 72 | B214: 2016-10-14 | D214: DEEPIND | E214: Accu | F214: 245.00 | H214: 325.5 | I214: 330.00 | J214: Profit of Rs.80.5/- | K214: 80.50 | L214: =K214/F214 -> 32.86% | M214: Successful | N214: 2017-02-03
A215: 73 | B215: 2016-10-17 | D215: DCBBANK | E215: Accu | F215: 125.00 | H215: 160 | I215: 160.00 | J215: Target Achieved | K215: 35.00 | L215: 28.00% | M215: Successful | N215: 2017-03-09
A216: 74 | B216: 2016-10-17 | D216: ORIENTREF | E216: Accu | F216: 114.00 | H216: 145 | I216: 145.00 | J216: Target Achieved | K216: 31.00 | L216: =K216/F216 -> 27.19% | M216: Successful | N216: 2017-05-04
A217: 75 | B217: 2016-10-17 | D217: GANECOS | E217: Accu | F217: 212.00 | H217: 280 | I217: 276.00 | J217: Profit of Rs.68/- | K217: 68.00 | L217: =K217/F217 -> 32.08% | M217: Successful | N217: 2017-05-03
A218: 76 | B218: 2016-11-04 | D218: NBCC | E218: Accu | F218: 155.00 | H218: 210 | I218: 210.00 | J218: Profit of Rs.55/- | K218: 55.00 | L218: =K218/F218 -> 35.48% | M218: Successful | N218: 2017-07-28
A219: 77 | B219: 2016-12-06 | D219: PRECAM | E219: Accu | F219: 150.5 | H219: 72.50 | I219: 174.00 | J219: Loss of Rs.78/- | K219: -78.00 | L219: -51.83% | M219: Unsuccessful | N219: 2018-08-21
... 108 more rows
